OrganisationNameLabel,OrganisationURI,EffectiveDate,Directorate/ServiceWhereExpenditureIncurred,ServiceCategoryLabel,ServiceCategoryURI,Supplier,SupplierRegisteredCompany Number,PaymentDate,TransactionNumber,NetAmount,IrrecoverableVAT,PurposeOfSpend,PurposeOfSpend,Procurement (Me,ProcurementClassification:ProclassLabel,ProcrementClassification:ProClassCode
South Lakeland District Council,http://opendatacommunities.org/id/district-council/south-lakeland,30/11/2018,Democratic Services,Central Services,,18 St John Street Chambers,,26-11-2018,0000082065,547.7,0,Professional Fees,Professional Fees,Legal & Counsels Fees,281300,Legal Services Legal Opinion
South Lakeland District Council,http://opendatacommunities.org/id/district-council/south-lakeland,30/11/2018,Business Support Community Services,Cultural Environmental Regulatory & Planning Services,,A G & P Jackson,,26-11-2018,0000082063,462,0,Agricultural Appraisal for site ,Agricultural Appraisal for site ,Other Consultants,150000,Consultancy
South Lakeland District Council,http://opendatacommunities.org/id/district-council/south-lakeland,30/11/2018,Business Support Community Services,Central Services,http://opendatacommunities.org/def/concept/finance/sercop/objective/102,ADECCO UK LIMITED,00593232,05-11-2018,0000081319,525.42,0,PAI Technician from 20/11/2017,PAI Technician from 20/11/2017,Contract & Agency staff,261400,HR Temporary & Agency Staff
South Lakeland District Council,http://opendatacommunities.org/id/district-council/south-lakeland,30/11/2018,Development Implementation,Cultural Environmental Regulatory & Planning Services,http://opendatacommunities.org/def/concept/finance/sercop/objective/104,ADECCO UK LIMITED,00593232,05-11-2018,0000081323,550.5,0,Economic Development Programme Support,Economic Development Programme Support,Other Consultants,261400,HR Temporary & Agency Staff
South Lakeland District Council,http://opendatacommunities.org/id/district-council/south-lakeland,30/11/2018,Development Implementation,Central Services,http://opendatacommunities.org/def/concept/finance/sercop/objective/102,ADECCO UK LIMITED,00593232,26-11-2018,0000081464,280.8,0,Cleaner for SLDC April,Cleaner for SLDC April,Contract & Agency staff,261400,HR Temporary & Agency Staff
South Lakeland District Council,http://opendatacommunities.org/id/district-council/south-lakeland,30/11/2018,Business Support Community Services,Central Services,http://opendatacommunities.org/def/concept/finance/sercop/objective/102,ADECCO UK LIMITED,00593232,14-11-2018,0000081740,517.08,0,PAI Technician from 20/11/2017,PAI Technician from 20/11/2017,Contract & Agency staff,261400,HR Temporary & Agency Staff
South Lakeland District Council,http://opendatacommunities.org/id/district-council/south-lakeland,30/11/2018,Development Implementation,Central Services,http://opendatacommunities.org/def/concept/finance/sercop/objective/102,ADECCO UK LIMITED,00593232,12-11-2018,0000081741,308.88,0,Cleaner for SLDC April,Cleaner for SLDC April,Contract & Agency staff,261400,HR Temporary & Agency Staff
South Lakeland District Council,http://opendatacommunities.org/id/district-council/south-lakeland,30/11/2018,Social Enterprise Admin,Highways & Transport Services,http://opendatacommunities.org/def/concept/finance/sercop/objective/107,ADECCO UK LIMITED,00593232,12-11-2018,0000081742,455.4,0,Agency Cover Car Park Assistants,Agency Cover Car Park Assistants,Contract & Agency staff,261400,HR Temporary & Agency Staff
South Lakeland District Council,http://opendatacommunities.org/id/district-council/south-lakeland,30/11/2018,Business Support Community Services,Central Services,http://opendatacommunities.org/def/concept/finance/sercop/objective/102,ADECCO UK LIMITED,00593232,19-11-2018,0000081743,391.98,0,PAI Technician from 20/11/2017,PAI Technician from 20/11/2017,Contract & Agency staff,261400,HR Temporary & Agency Staff
South Lakeland District Council,http://opendatacommunities.org/id/district-council/south-lakeland,30/11/2018,Human Resources,Central Services,http://opendatacommunities.org/def/concept/finance/sercop/objective/102,ADECCO UK LIMITED,00593232,19-11-2018,0000081744,558.68,0,Cleaner for SLDC April,Cleaner for SLDC April,Contract & Agency staff,261400,HR Temporary & Agency Staff
South Lakeland District Council,http://opendatacommunities.org/id/district-council/south-lakeland,30/11/2018,Business Support Community Services,Central Services,http://opendatacommunities.org/def/concept/finance/sercop/objective/102,ADECCO UK LIMITED,00593232,14-11-2018,0000081781,517.08,0,PAI Technician from 20/11/2017,PAI Technician from 20/11/2017,Contract & Agency staff,261400,HR Temporary & Agency Staff
South Lakeland District Council,http://opendatacommunities.org/id/district-council/south-lakeland,30/11/2018,Business Support Community Services,Central Services,,ADECCO UK LIMITED,00593232,28-11-2018,0000081942,492.06,0,PAI Technician from 20/11/2017,PAI Technician from 20/11/2017,Contract & Agency staff,261400,HR Temporary & Agency Staff
South Lakeland District Council,http://opendatacommunities.org/id/district-council/south-lakeland,30/11/2018,Social Enterprise Admin,Highways & Transport Services,,ADECCO UK LIMITED,00593232,26-11-2018,0000081943,455.4,0,Agency Cover Car Park Assistants,Agency Cover Car Park Assistants,Contract & Agency staff,261400,HR Temporary & Agency Staff
South Lakeland District Council,http://opendatacommunities.org/id/district-council/south-lakeland,30/11/2018,Development Implementation,Central Services,,ADECCO UK LIMITED,00593232,28-11-2018,0000081944,308.88,0,Cleaner for SLDC April,Cleaner for SLDC April,Contract & Agency staff,261400,HR Temporary & Agency Staff
South Lakeland District Council,http://opendatacommunities.org/id/district-council/south-lakeland,30/11/2018,Social Enterprise Admin,Highways & Transport Services,,ADECCO UK LIMITED,00593232,26-11-2018,0000081945,414,0,Agency Cover Car Park Assistants,Agency Cover Car Park Assistants,Contract & Agency staff,261400,HR Temporary & Agency Staff
South Lakeland District Council,http://opendatacommunities.org/id/district-council/south-lakeland,30/11/2018,Development Implementation,Central Services,,ADECCO UK LIMITED,00593232,03-12-2018,0000082128,280.8,0,Cleaner for SLDC April,Cleaner for SLDC April,Contract & Agency staff,261400,HR Temporary & Agency Staff
South Lakeland District Council,http://opendatacommunities.org/id/district-council/south-lakeland,30/11/2018,Business Support Community Services,Internal Trading Accounts,,AINSWORTH'S GARAGE,,12-11-2018,0000081684,20,0,Call outs,Call outs,Vehicle - Tyres,381400,Vehicle Mgt Maintenance
South Lakeland District Council,http://opendatacommunities.org/id/district-council/south-lakeland,30/11/2018,Business Support Community Services,Internal Trading Accounts,,AINSWORTH'S GARAGE,,26-11-2018,0000082031,29.25,0,Call outs,Call outs,Vehicle - Tyres,381400,Vehicle Mgt Maintenance
South Lakeland District Council,http://opendatacommunities.org/id/district-council/south-lakeland,30/11/2018,Business Support Community Services,Cultural Environmental Regulatory & Planning Services,,Air Monitors Limited,,26-11-2018,0000081964,480,0,Annual Server Fee - AQ Mesh,Annual Server Fee - AQ Mesh,Equipment-Service Contracts,221000,Health & Safety� Products
South Lakeland District Council,http://opendatacommunities.org/id/district-council/south-lakeland,30/11/2018,Environment and Housing,Housing Services,,ALAN SANDERSON,,28-11-2018,0000082149,421.1,0,Monthly rent ,Monthly rent ,Homelessness Prevention,250000,Housing
South Lakeland District Council,http://opendatacommunities.org/id/district-council/south-lakeland,30/11/2018,Kendal Town Hall,Cultural Environmental Regulatory & Planning Services,,ALEXANDRA PLC,,28-11-2018,0000082069,82.65,0,2 pairs of navy trousers 38 inch waist,2 pairs of navy trousers 38 inch waist,Protective Clothing & Uniforms,141300,Clothing Uniforms
South Lakeland District Council,http://opendatacommunities.org/id/district-council/south-lakeland,30/11/2018,Environment and Housing,Central Services,http://opendatacommunities.org/def/concept/finance/sercop/objective/102,ALLERDALE BOROUGH COUNCIL,,12-11-2018,0000081391,125.99,0,Hub event 2/8/18,Hub event 2/8/18,Other Consultants,908000,Public Bodies Council support services
South Lakeland District Council,http://opendatacommunities.org/id/district-council/south-lakeland,30/11/2018,Revenues and Benefits,Central Services,http://opendatacommunities.org/def/concept/finance/sercop/objective/102,ALLPAY.NET LTD (NCR),6871069,01-11-2018,0000081623,324.41,0,2018 - 19 Allpay - Internet Payment /,2018 - 19 Allpay - Internet Payment /,Commission,209999,Financial Services Not Elsewhere Classif
South Lakeland District Council,http://opendatacommunities.org/id/district-council/south-lakeland,30/11/2018,Revenues and Benefits,Central Services,http://opendatacommunities.org/def/concept/finance/sercop/objective/102,ALLPAY.NET LTD (NCR),6871069,01-11-2018,0000081624,15.32,0,2018 - 19 Allpay - Internet Payment /,2018 - 19 Allpay - Internet Payment /,Commission,209999,Financial Services Not Elsewhere Classif
South Lakeland District Council,http://opendatacommunities.org/id/district-council/south-lakeland,30/11/2018,Revenues and Benefits,Central Services,http://opendatacommunities.org/def/concept/finance/sercop/objective/102,ALLPAY.NET LTD (NCR),6871069,01-11-2018,0000081625,894.14,0,2018 - 19 Allpay - Internet Payment /,2018 - 19 Allpay - Internet Payment /,Commission,209999,Financial Services Not Elsewhere Classif
South Lakeland District Council,http://opendatacommunities.org/id/district-council/south-lakeland,30/11/2018,Revenues and Benefits,Central Services,http://opendatacommunities.org/def/concept/finance/sercop/objective/102,ALLPAY.NET LTD (NCR),6871069,01-11-2018,0000081626,21.56,0,2018 - 19 Allpay - Internet Payment /,2018 - 19 Allpay - Internet Payment /,Commission,209999,Financial Services Not Elsewhere Classif
South Lakeland District Council,http://opendatacommunities.org/id/district-council/south-lakeland,30/11/2018,Revenues and Benefits,Central Services,http://opendatacommunities.org/def/concept/finance/sercop/objective/102,ALLPAY.NET LTD (NCR),6871069,01-11-2018,0000081627,17.3,0,2018 - 19 Allpay - Internet Payment /,2018 - 19 Allpay - Internet Payment /,Commission,209999,Financial Services Not Elsewhere Classif
South Lakeland District Council,http://opendatacommunities.org/id/district-council/south-lakeland,30/11/2018,Revenues and Benefits,Central Services,http://opendatacommunities.org/def/concept/finance/sercop/objective/102,ALLPAY.NET LTD (NCR),6871069,01-11-2018,0000081628,12.3,0,2018 - 19 Allpay - Internet Payment /,2018 - 19 Allpay - Internet Payment /,Commission,209999,Financial Services Not Elsewhere Classif
South Lakeland District Council,http://opendatacommunities.org/id/district-council/south-lakeland,30/11/2018,Revenues and Benefits,Central Services,http://opendatacommunities.org/def/concept/finance/sercop/objective/102,ALLPAY.NET LTD (NCR),6871069,01-11-2018,0000081629,10.86,0,2018 - 19 Allpay - Internet Payment /,2018 - 19 Allpay - Internet Payment /,Commission,209999,Financial Services Not Elsewhere Classif
South Lakeland District Council,http://opendatacommunities.org/id/district-council/south-lakeland,30/11/2018,Revenues and Benefits,Central Services,http://opendatacommunities.org/def/concept/finance/sercop/objective/102,ALLPAY.NET LTD (NCR),6871069,01-11-2018,0000081630,18.78,0,2018 - 19 Allpay - Internet Payment /,2018 - 19 Allpay - Internet Payment /,Commission,209999,Financial Services Not Elsewhere Classif
South Lakeland District Council,http://opendatacommunities.org/id/district-council/south-lakeland,30/11/2018,Social Enterprise Admin,Highways & Transport Services,http://opendatacommunities.org/def/concept/finance/sercop/objective/107,ALLSTAR BUSINESS SOLUTIONS LTD (NCR),2631112,01-11-2018,0000081664,374.11,0,Fuel for CEO vans up to 31 March 2019,Fuel for CEO vans up to 31 March 2019,Fuel,381600,Vehicle Mgt Leasing
South Lakeland District Council,http://opendatacommunities.org/id/district-council/south-lakeland,30/11/2018,Social Enterprise Admin,Cultural Environmental Regulatory & Planning Services,http://opendatacommunities.org/def/concept/finance/sercop/objective/104,ALLSTAR BUSINESS SOLUTIONS LTD (NCR),2631112,01-11-2018,0000081664,145.55,0,Fuel for CEO vans up to 31 March 2019,Fuel for CEO vans up to 31 March 2019,Fuel,381600,Vehicle Mgt Leasing
South Lakeland District Council,http://opendatacommunities.org/id/district-council/south-lakeland,30/11/2018,Business Support Community Services,Cultural Environmental Regulatory & Planning Services,http://opendatacommunities.org/def/concept/finance/sercop/objective/104,ALLSTAR BUSINESS SOLUTIONS LTD (NCR),2631112,01-11-2018,0000081713,40.87,0,Fuel - Private Water Van - 25 October,Fuel - Private Water Van - 25 October,Fuel,381600,Vehicle Mgt Leasing
South Lakeland District Council,http://opendatacommunities.org/id/district-council/south-lakeland,30/11/2018,Business Support Community Services,Cultural Environmental Regulatory & Planning Services,http://opendatacommunities.org/def/concept/finance/sercop/objective/104,ALLSTAR BUSINESS SOLUTIONS LTD (NCR),2631112,01-11-2018,0000081838,6885.79,0,Fuel to 31/10,Fuel to 31/10,Fuel,381600,Vehicle Mgt Leasing
South Lakeland District Council,http://opendatacommunities.org/id/district-council/south-lakeland,30/11/2018,Business Support Community Services,Cultural Environmental Regulatory & Planning Services,http://opendatacommunities.org/def/concept/finance/sercop/objective/104,ALLSTAR BUSINESS SOLUTIONS LTD (NCR),2631112,01-11-2018,0000081838,17380.39,0,Fuel to 31/10,Fuel to 31/10,Fuel,381600,Vehicle Mgt Leasing
South Lakeland District Council,http://opendatacommunities.org/id/district-council/south-lakeland,30/11/2018,Democratic Services,Central Services,,ANTHONY COLLINS SOLICITORS,OC313432,28-11-2018,0000082135,3325.5,0,Fees in Conneciton with Potential Land,Fees in Conneciton with Potential Land,Legal & Counsels Fees,281300,Legal Services Legal Opinion
South Lakeland District Council,http://opendatacommunities.org/id/district-council/south-lakeland,30/11/2018,Business Support Community Services,Cultural Environmental Regulatory & Planning Services,http://opendatacommunities.org/def/concept/finance/sercop/objective/104,APSE,06735100,14-11-2018,0000081610,448,0,Nottingham,Nottingham,Advertising,202100,Financial Services Subscriptions
South Lakeland District Council,http://opendatacommunities.org/id/district-council/south-lakeland,30/11/2018,Social Enterprise Admin,Central Services,http://opendatacommunities.org/def/concept/finance/sercop/objective/102,APSE,06735100,12-11-2018,0000081715,239,0,APSE Training Principles of Contract,APSE Training Principles of Contract,Training Costs,202100,Financial Services Subscriptions
South Lakeland District Council,http://opendatacommunities.org/id/district-council/south-lakeland,30/11/2018,Cemeteries Office,Cultural Environmental Regulatory & Planning Services,,APSE,06735100,26-11-2018,0000081937,175,0,Attendance at APSE Cemeteries Seminar,Attendance at APSE Cemeteries Seminar,Training Costs,202100,Financial Services Subscriptions
South Lakeland District Council,http://opendatacommunities.org/id/district-council/south-lakeland,30/11/2018,Leisure and Wellbeing,Central Services,http://opendatacommunities.org/def/concept/finance/sercop/objective/102,Arboricultural Association,,12-11-2018,0000081720,87,0,Applied Tree Biology course at Preston,Applied Tree Biology course at Preston,Training Costs,181300,Environment Land Protection
South Lakeland District Council,http://opendatacommunities.org/id/district-council/south-lakeland,30/11/2018,Leisure and Wellbeing,Cultural Environmental Regulatory & Planning Services,http://opendatacommunities.org/def/concept/finance/sercop/objective/104,Arboricultural Association,,12-11-2018,0000081720,58,0,Applied Tree Biology course at Preston,Applied Tree Biology course at Preston,Training Costs,181300,Environment Land Protection
South Lakeland District Council,http://opendatacommunities.org/id/district-council/south-lakeland,30/11/2018,Business Support Community Services,Cultural Environmental Regulatory & Planning Services,,Arboricultural Association,,26-11-2018,0000082082,176.64,0,G N,G N,Professional Fees,181300,Environment Land Protection
South Lakeland District Council,http://opendatacommunities.org/id/district-council/south-lakeland,30/11/2018,Business Support Community Services,Internal Trading Accounts,,ARCO LIMITED,00133804,05-11-2018,0000081584,146.68,0,T shirts & sweatshirts,T shirts & sweatshirts,Protective Clothing & Uniforms,141100,Clothing Protective
South Lakeland District Council,http://opendatacommunities.org/id/district-council/south-lakeland,30/11/2018,Business Support Community Services,Cultural Environmental Regulatory & Planning Services,http://opendatacommunities.org/def/concept/finance/sercop/objective/104,ARCO LIMITED,00133804,05-11-2018,0000081590,353.4,0,Cleaning materials,Cleaning materials,Protective Clothing & Uniforms,141100,Clothing Protective
South Lakeland District Council,http://opendatacommunities.org/id/district-council/south-lakeland,30/11/2018,Business Support Community Services,Cultural Environmental Regulatory & Planning Services,http://opendatacommunities.org/def/concept/finance/sercop/objective/104,ARCO LIMITED,00133804,05-11-2018,0000081591,36,0,Cleaning materials,Cleaning materials,Protective Clothing & Uniforms,141100,Clothing Protective
South Lakeland District Council,http://opendatacommunities.org/id/district-council/south-lakeland,30/11/2018,Business Support Community Services,Cultural Environmental Regulatory & Planning Services,http://opendatacommunities.org/def/concept/finance/sercop/objective/104,ARCO LIMITED,00133804,07-11-2018,0000081613,220.02,0,Cleaning materials,Cleaning materials,Protective Clothing & Uniforms,141100,Clothing Protective
South Lakeland District Council,http://opendatacommunities.org/id/district-council/south-lakeland,30/11/2018,Business Support Community Services,Transport Planning Policy,http://opendatacommunities.org/def/concept/finance/sercop/objective/107,ARCO LIMITED,00133804,07-11-2018,0000081655,17.16,0,Cleaning materials,Cleaning materials,Cleaning Supplies & Services,141100,Clothing Protective
South Lakeland District Council,http://opendatacommunities.org/id/district-council/south-lakeland,30/11/2018,Business Support Community Services,Cultural Environmental Regulatory & Planning Services,http://opendatacommunities.org/def/concept/finance/sercop/objective/104,ARCO LIMITED,00133804,07-11-2018,0000081655,24.96,0,Cleaning materials,Cleaning materials,Equipment Furniture Materials,141100,Clothing Protective
South Lakeland District Council,http://opendatacommunities.org/id/district-council/south-lakeland,30/11/2018,Business Support Community Services,Cultural Environmental Regulatory & Planning Services,http://opendatacommunities.org/def/concept/finance/sercop/objective/104,ARCO LIMITED,00133804,07-11-2018,0000081655,77.9,0,Cleaning materials,Cleaning materials,Job Consumables,141100,Clothing Protective
South Lakeland District Council,http://opendatacommunities.org/id/district-council/south-lakeland,30/11/2018,Business Support Community Services,Cultural Environmental Regulatory & Planning Services,http://opendatacommunities.org/def/concept/finance/sercop/objective/104,ARCO LIMITED,00133804,07-11-2018,0000081655,412.2,0,Cleaning materials,Cleaning materials,Protective Clothing & Uniforms,141100,Clothing Protective
South Lakeland District Council,http://opendatacommunities.org/id/district-council/south-lakeland,30/11/2018,Business Support Community Services,Cultural Environmental Regulatory & Planning Services,http://opendatacommunities.org/def/concept/finance/sercop/objective/104,ARCO LIMITED,00133804,07-11-2018,0000081674,48.41,0,Cleaning materials,Cleaning materials,Protective Clothing & Uniforms,141100,Clothing Protective
South Lakeland District Council,http://opendatacommunities.org/id/district-council/south-lakeland,30/11/2018,Social Enterprise Admin,Highways & Transport Services,http://opendatacommunities.org/def/concept/finance/sercop/objective/107,ARCO LIMITED,00133804,19-11-2018,0000081798,32.99,0,1 Pair Medium Regatta weatherproof,1 Pair Medium Regatta weatherproof,Protective Clothing & Uniforms,141100,Clothing Protective
South Lakeland District Council,http://opendatacommunities.org/id/district-council/south-lakeland,30/11/2018,Business Support Community Services,Internal Trading Accounts,,ARCO LIMITED,00133804,14-11-2018,0000081822,196.33,0,T shirts & sweatshirts,T shirts & sweatshirts,Protective Clothing & Uniforms,141100,Clothing Protective
South Lakeland District Council,http://opendatacommunities.org/id/district-council/south-lakeland,30/11/2018,Business Support Community Services,Cultural Environmental Regulatory & Planning Services,http://opendatacommunities.org/def/concept/finance/sercop/objective/104,ARCO LIMITED,00133804,14-11-2018,0000081823,169.37,0,Cleaning materials,Cleaning materials,Protective Clothing & Uniforms,141100,Clothing Protective
South Lakeland District Council,http://opendatacommunities.org/id/district-council/south-lakeland,30/11/2018,Business Support Community Services,Cultural Environmental Regulatory & Planning Services,http://opendatacommunities.org/def/concept/finance/sercop/objective/104,ARCO LIMITED,00133804,14-11-2018,0000081824,82.47,0,Cleaning materials,Cleaning materials,Protective Clothing & Uniforms,141100,Clothing Protective
South Lakeland District Council,http://opendatacommunities.org/id/district-council/south-lakeland,30/11/2018,Business Support Community Services,Cultural Environmental Regulatory & Planning Services,http://opendatacommunities.org/def/concept/finance/sercop/objective/104,ARCO LIMITED,00133804,19-11-2018,0000081828,191.81,0,Cleaning materials,Cleaning materials,Protective Clothing & Uniforms,141100,Clothing Protective
South Lakeland District Council,http://opendatacommunities.org/id/district-council/south-lakeland,30/11/2018,Business Support Community Services,Cultural Environmental Regulatory & Planning Services,http://opendatacommunities.org/def/concept/finance/sercop/objective/104,ARCO LIMITED,00133804,19-11-2018,0000081829,18,0,Cleaning materials,Cleaning materials,Protective Clothing & Uniforms,141100,Clothing Protective
South Lakeland District Council,http://opendatacommunities.org/id/district-council/south-lakeland,30/11/2018,Business Support Community Services,Cultural Environmental Regulatory & Planning Services,http://opendatacommunities.org/def/concept/finance/sercop/objective/104,ARCO LIMITED,00133804,19-11-2018,0000081830,38.77,0,Cleaning materials,Cleaning materials,Protective Clothing & Uniforms,141100,Clothing Protective
South Lakeland District Council,http://opendatacommunities.org/id/district-council/south-lakeland,30/11/2018,Business Support Community Services,Cultural Environmental Regulatory & Planning Services,http://opendatacommunities.org/def/concept/finance/sercop/objective/104,ARCO LIMITED,00133804,14-11-2018,0000081861,185.55,0,Cleaning materials,Cleaning materials,Protective Clothing & Uniforms,141100,Clothing Protective
South Lakeland District Council,http://opendatacommunities.org/id/district-council/south-lakeland,30/11/2018,Business Support Community Services,Cultural Environmental Regulatory & Planning Services,http://opendatacommunities.org/def/concept/finance/sercop/objective/104,ARCO LIMITED,00133804,14-11-2018,0000081864,18,0,Cleaning materials,Cleaning materials,Protective Clothing & Uniforms,141100,Clothing Protective
South Lakeland District Council,http://opendatacommunities.org/id/district-council/south-lakeland,30/11/2018,Business Support Community Services,Cultural Environmental Regulatory & Planning Services,,ARCO LIMITED,00133804,19-11-2018,0000081905,130.65,0,Cleaning materials,Cleaning materials,Protective Clothing & Uniforms,141100,Clothing Protective
South Lakeland District Council,http://opendatacommunities.org/id/district-council/south-lakeland,30/11/2018,Business Support Community Services,Internal Trading Accounts,,ARCO LIMITED,00133804,19-11-2018,0000081921,47.88,0,T shirts & sweatshirts,T shirts & sweatshirts,Protective Clothing & Uniforms,141100,Clothing Protective
South Lakeland District Council,http://opendatacommunities.org/id/district-council/south-lakeland,30/11/2018,Business Support Community Services,Cultural Environmental Regulatory & Planning Services,,ARCO LIMITED,00133804,19-11-2018,0000081922,22.7,0,Cleaning materials,Cleaning materials,Job Consumables,141100,Clothing Protective
South Lakeland District Council,http://opendatacommunities.org/id/district-council/south-lakeland,30/11/2018,Business Support Community Services,Internal Trading Accounts,,ARCO LIMITED,00133804,19-11-2018,0000081923,11.97,0,T shirts & sweatshirts,T shirts & sweatshirts,Protective Clothing & Uniforms,141100,Clothing Protective
South Lakeland District Council,http://opendatacommunities.org/id/district-council/south-lakeland,30/11/2018,Business Support Community Services,Cultural Environmental Regulatory & Planning Services,,ARCO LIMITED,00133804,21-11-2018,0000081972,256.69,0,Cleaning materials,Cleaning materials,Protective Clothing & Uniforms,141100,Clothing Protective
South Lakeland District Council,http://opendatacommunities.org/id/district-council/south-lakeland,30/11/2018,Business Support Community Services,Cultural Environmental Regulatory & Planning Services,,ARCO LIMITED,00133804,21-11-2018,0000081973,18,0,Cleaning materials,Cleaning materials,Protective Clothing & Uniforms,141100,Clothing Protective
South Lakeland District Council,http://opendatacommunities.org/id/district-council/south-lakeland,30/11/2018,Business Support Community Services,Cultural Environmental Regulatory & Planning Services,,ARCO LIMITED,00133804,21-11-2018,0000081977,21.14,0,Cleaning materials,Cleaning materials,Protective Clothing & Uniforms,141100,Clothing Protective
South Lakeland District Council,http://opendatacommunities.org/id/district-council/south-lakeland,30/11/2018,Business Support Community Services,Cultural Environmental Regulatory & Planning Services,,ARCO LIMITED,00133804,21-11-2018,0000081979,17.31,0,Cleaning materials,Cleaning materials,Protective Clothing & Uniforms,141100,Clothing Protective
South Lakeland District Council,http://opendatacommunities.org/id/district-council/south-lakeland,30/11/2018,Business Support Community Services,Transport Planning Policy,,ARCO LIMITED,00133804,21-11-2018,0000081980,4.78,0,Cleaning materials,Cleaning materials,Cleaning Supplies & Services,141100,Clothing Protective
South Lakeland District Council,http://opendatacommunities.org/id/district-council/south-lakeland,30/11/2018,Business Support Community Services,Cultural Environmental Regulatory & Planning Services,,ARCO LIMITED,00133804,21-11-2018,0000081980,8.6,0,Cleaning materials,Cleaning materials,Equipment Furniture Materials,141100,Clothing Protective
South Lakeland District Council,http://opendatacommunities.org/id/district-council/south-lakeland,30/11/2018,Business Support Community Services,Cultural Environmental Regulatory & Planning Services,,ARCO LIMITED,00133804,21-11-2018,0000081981,17.31,0,Cleaning materials,Cleaning materials,Protective Clothing & Uniforms,141100,Clothing Protective
South Lakeland District Council,http://opendatacommunities.org/id/district-council/south-lakeland,30/11/2018,Business Support Community Services,Cultural Environmental Regulatory & Planning Services,,ARCO LIMITED,00133804,21-11-2018,0000082009,18,0,Cleaning materials,Cleaning materials,Protective Clothing & Uniforms,141100,Clothing Protective
South Lakeland District Council,http://opendatacommunities.org/id/district-council/south-lakeland,30/11/2018,Business Support Community Services,Cultural Environmental Regulatory & Planning Services,,ARCO LIMITED,00133804,26-11-2018,0000082080,15.98,0,Cleaning materials,Cleaning materials,Equipment Furniture Materials,141100,Clothing Protective
South Lakeland District Council,http://opendatacommunities.org/id/district-council/south-lakeland,30/11/2018,Business Support Community Services,Cultural Environmental Regulatory & Planning Services,,ARCO LIMITED,00133804,26-11-2018,0000082080,71.15,0,Cleaning materials,Cleaning materials,Job Consumables,141100,Clothing Protective
South Lakeland District Council,http://opendatacommunities.org/id/district-council/south-lakeland,30/11/2018,Business Support Community Services,Cultural Environmental Regulatory & Planning Services,,ARCO LIMITED,00133804,26-11-2018,0000082080,296.64,0,Cleaning materials,Cleaning materials,Protective Clothing & Uniforms,141100,Clothing Protective
South Lakeland District Council,http://opendatacommunities.org/id/district-council/south-lakeland,30/11/2018,Business Support Community Services,Cultural Environmental Regulatory & Planning Services,,ARCO LIMITED,00133804,28-11-2018,0000082144,63.52,0,Cleaning materials,Cleaning materials,Protective Clothing & Uniforms,141100,Clothing Protective
South Lakeland District Council,http://opendatacommunities.org/id/district-council/south-lakeland,30/11/2018,Social Enterprise Admin,Highways & Transport Services,,ARCO LIMITED,00133804,03-12-2018,0000082201,48.67,0,1 Pair 6PP7110 Goliath Boots EL170DPR,1 Pair 6PP7110 Goliath Boots EL170DPR,Protective Clothing & Uniforms,141100,Clothing Protective
South Lakeland District Council,http://opendatacommunities.org/id/district-council/south-lakeland,30/11/2018,Cemeteries Office,Cultural Environmental Regulatory & Planning Services,http://opendatacommunities.org/def/concept/finance/sercop/objective/104,ARNSIDE PARISH COUNCIL,,07-11-2018,0000081700,1750,0,Grant towards grounds maintenance of,Grant towards grounds maintenance of,Grants to Burial Authorities,908000,Public Bodies Council support services
South Lakeland District Council,http://opendatacommunities.org/id/district-council/south-lakeland,30/11/2018,Business Support Community Services,Housing Services,http://opendatacommunities.org/def/concept/finance/sercop/objective/108,Ashberry Recruitment,07202591,07-11-2018,0000081351,503.58,0,Agency staff at Town View Fields,Agency staff at Town View Fields,Contract & Agency staff,261300,HR Recruitment & Assessment
South Lakeland District Council,http://opendatacommunities.org/id/district-council/south-lakeland,30/11/2018,Environment and Housing,Housing Services,http://opendatacommunities.org/def/concept/finance/sercop/objective/108,Ashberry Recruitment,07202591,12-11-2018,0000081447,914.34,0,"Agency temp, support worker at TVF","Agency temp, support worker at TVF",Contract & Agency staff,261300,HR Recruitment & Assessment
South Lakeland District Council,http://opendatacommunities.org/id/district-council/south-lakeland,30/11/2018,Business Support Community Services,Housing Services,http://opendatacommunities.org/def/concept/finance/sercop/objective/108,Ashberry Recruitment,07202591,05-11-2018,0000081603,1120.22,0,Agency staff at Town View Fields,Agency staff at Town View Fields,Contract & Agency staff,261300,HR Recruitment & Assessment
South Lakeland District Council,http://opendatacommunities.org/id/district-council/south-lakeland,30/11/2018,Environment and Housing,Housing Services,http://opendatacommunities.org/def/concept/finance/sercop/objective/108,Ashberry Recruitment,07202591,12-11-2018,0000081747,1434.79,0,"Agency temp, support worker at TVF","Agency temp, support worker at TVF",Contract & Agency staff,261300,HR Recruitment & Assessment
South Lakeland District Council,http://opendatacommunities.org/id/district-council/south-lakeland,30/11/2018,Environment and Housing,Housing Services,,Ashberry Recruitment,07202591,21-11-2018,0000081946,1571.89,0,"Agency temp, support worker at TVF","Agency temp, support worker at TVF",Contract & Agency staff,261300,HR Recruitment & Assessment
South Lakeland District Council,http://opendatacommunities.org/id/district-council/south-lakeland,30/11/2018,Environment and Housing,Housing Services,,Ashberry Recruitment,07202591,28-11-2018,0000082160,750,0,Introduction Fee ,Introduction Fee ,Contract & Agency staff,261300,HR Recruitment & Assessment
South Lakeland District Council,http://opendatacommunities.org/id/district-council/south-lakeland,30/11/2018,Business Support Community Services,Housing Services,,Ashberry Recruitment,07202591,03-12-2018,0000082184,458.75,0,Agency staff at Town View Fields,Agency staff at Town View Fields,Contract & Agency staff,261300,HR Recruitment & Assessment
South Lakeland District Council,http://opendatacommunities.org/id/district-council/south-lakeland,30/11/2018,Environment and Housing,Housing Services,,Ashley Bennett,08672920,19-11-2018,0000081950,400,0,Monthly rent,Monthly rent,Homelessness Prevention,202000,Financial Services Rents
South Lakeland District Council,http://opendatacommunities.org/id/district-council/south-lakeland,30/11/2018,Democratic and Member Services,Central Services,http://opendatacommunities.org/def/concept/finance/sercop/objective/102,Association of Democratic Services,7068088,07-11-2018,0000081694,198,0,2018 2019 Membership renewal,2018 2019 Membership renewal,Professional Fees,908001,Public Bodies Other Public Bodies
South Lakeland District Council,http://opendatacommunities.org/id/district-council/south-lakeland,30/11/2018,Lake Wardens,Highways & Transport Services,,AUTOPARTS (CUMBRIA) LTD,02579204,26-11-2018,0000082106,162.23,0,3 x Packets of HSY6 yellow ring,3 x Packets of HSY6 yellow ring,Equipment Furniture Materials,381500,Vehicle Mgt Parts
South Lakeland District Council,http://opendatacommunities.org/id/district-council/south-lakeland,30/11/2018,Lake Wardens,Cultural Environmental Regulatory & Planning Services,,AUTOPARTS (CUMBRIA) LTD,02579204,26-11-2018,0000082106,35.45,0,3 x Packets of HSY6 yellow ring,3 x Packets of HSY6 yellow ring,Equipment Furniture Materials,381500,Vehicle Mgt Parts
South Lakeland District Council,http://opendatacommunities.org/id/district-council/south-lakeland,30/11/2018,Development Implementation,SLDC as Agent,,Bay Media Ltd,3788497,19-11-2018,0000081851,950,0,"Kirkland Banners, adjustment, cleaning","Kirkland Banners, adjustment, cleaning",General,291000,Arts & Leisure Services Events
South Lakeland District Council,http://opendatacommunities.org/id/district-council/south-lakeland,30/11/2018,Development Strategy,Planning and Development,,BEETHAM PARISH COUNCIL,,05-11-2018,0000081570,2154.93,0,CIL - Neighbourhood Funding Portion,CIL - Neighbourhood Funding Portion,CIL Neighbourhood Funding,908000,Public Bodies Council support services
South Lakeland District Council,http://opendatacommunities.org/id/district-council/south-lakeland,30/11/2018,Cemeteries Office,Cultural Environmental Regulatory & Planning Services,http://opendatacommunities.org/def/concept/finance/sercop/objective/104,Beetham Parochial Church Council,,07-11-2018,0000081705,540,0,2018/19 Grant towards maintenance of,2018/19 Grant towards maintenance of,Grants to Burial Authorities,121000,Cemetery & Crematorium Burial & Crem
South Lakeland District Council,http://opendatacommunities.org/id/district-council/south-lakeland,30/11/2018,Social Enterprise Admin,Highways & Transport Services,http://opendatacommunities.org/def/concept/finance/sercop/objective/107,BEMROSE BOOTH PARAGON LTD,04891375,05-11-2018,0000081192,478,0,100 Printer Rolls for Ticket Machines,100 Printer Rolls for Ticket Machines,Printing,191600,Facilities Printing
South Lakeland District Council,http://opendatacommunities.org/id/district-council/south-lakeland,30/11/2018,Kendal Town Hall,Central Services,http://opendatacommunities.org/def/concept/finance/sercop/objective/102,BERENDSEN UK LTD,00228604,05-11-2018,0000081460,30,0,Weekly cleaning and exchange of mats at,Weekly cleaning and exchange of mats at,Cleaning Supplies & Services,161000,Domestic Goods Commercial
South Lakeland District Council,http://opendatacommunities.org/id/district-council/south-lakeland,30/11/2018,Kendal Town Hall,Cultural Environmental Regulatory & Planning Services,http://opendatacommunities.org/def/concept/finance/sercop/objective/104,BERENDSEN UK LTD,00228604,05-11-2018,0000081460,125.8,0,Weekly cleaning and exchange of mats at,Weekly cleaning and exchange of mats at,Cleaning Supplies & Services,161000,Domestic Goods Commercial
South Lakeland District Council,http://opendatacommunities.org/id/district-council/south-lakeland,30/11/2018,Leisure and Wellbeing,Cultural Environmental Regulatory & Planning Services,http://opendatacommunities.org/def/concept/finance/sercop/objective/104,Bergen Arbortech,,14-11-2018,0000081806,985,0,"Victoria Road Gardens, Ulverston","Victoria Road Gardens, Ulverston",Arboricultural Work,241210,Horticultural Tree Trimming
South Lakeland District Council,http://opendatacommunities.org/id/district-council/south-lakeland,30/11/2018,Leisure and Wellbeing,Cultural Environmental Regulatory & Planning Services,,Bergen Arbortech,,26-11-2018,0000082101,1690,0,"W A, Kendal","W A, Kendal",Arboricultural Work,241210,Horticultural Tree Trimming
South Lakeland District Council,http://opendatacommunities.org/id/district-council/south-lakeland,30/11/2018,Policy & Partnerships,Central Services,http://opendatacommunities.org/def/concept/finance/sercop/objective/102,Bloom Procurement Services Ltd,,12-11-2018,0000081368,42333.27,0,Phase 0 Mobilisation - Leadership,Phase 0 Mobilisation - Leadership,Other Consultants,151900,Consultancy Management
South Lakeland District Council,http://opendatacommunities.org/id/district-council/south-lakeland,30/11/2018,Development Implementation,Central Services,http://opendatacommunities.org/def/concept/finance/sercop/objective/102,Bloom Procurement Services Ltd,,14-11-2018,0000081530,2564.5,0,Grange Lido RIBA Stages 2-3,Grange Lido RIBA Stages 2-3,PSC - Design Work,151900,Consultancy Management
South Lakeland District Council,http://opendatacommunities.org/id/district-council/south-lakeland,30/11/2018,Development Implementation,Cultural Environmental Regulatory & Planning Services,http://opendatacommunities.org/def/concept/finance/sercop/objective/104,Bloom Procurement Services Ltd,,14-11-2018,0000081530,27690,0,Grange Lido RIBA Stages 2-3,Grange Lido RIBA Stages 2-3,Other Consultants,151900,Consultancy Management
South Lakeland District Council,http://opendatacommunities.org/id/district-council/south-lakeland,30/11/2018,Development Implementation,Central Services,http://opendatacommunities.org/def/concept/finance/sercop/objective/102,Bloom Procurement Services Ltd,,14-11-2018,0000081531,3125,0,Grange Lido RIBA Stages 2-3,Grange Lido RIBA Stages 2-3,PSC - Design Work,151900,Consultancy Management
South Lakeland District Council,http://opendatacommunities.org/id/district-council/south-lakeland,30/11/2018,Policy & Partnerships,Central Services,http://opendatacommunities.org/def/concept/finance/sercop/objective/102,Bloom Procurement Services Ltd,,19-11-2018,0000081821,24046.95,0,Phase 0 Mobilisation - Leadership,Phase 0 Mobilisation - Leadership,Other Consultants,151900,Consultancy Management
South Lakeland District Council,http://opendatacommunities.org/id/district-council/south-lakeland,30/11/2018,Social Enterprise Admin,Culture and Related Serv,,Bloom Procurement Services Ltd,,03-12-2018,0000082163,1388,0,Millerground Enhancement Plan  and,Millerground Enhancement Plan  and,Purchase of Plant Machinery,151900,Consultancy Management
South Lakeland District Council,http://opendatacommunities.org/id/district-council/south-lakeland,30/11/2018,Human Resources,Central Services,http://opendatacommunities.org/def/concept/finance/sercop/objective/102,Bluetownonline Ltd,07464701,14-11-2018,0000081858,499,0,Bluetown CC Service Redesign Business,Bluetown CC Service Redesign Business,Staff Advertising,191000,Facilities Advertising
South Lakeland District Council,http://opendatacommunities.org/id/district-council/south-lakeland,30/11/2018,Human Resources,Housing Services,,Bluetownonline Ltd,07464701,21-11-2018,0000082002,499,0,Casual hostel support officers October,Casual hostel support officers October,Staff Advertising,191000,Facilities Advertising
South Lakeland District Council,http://opendatacommunities.org/id/district-council/south-lakeland,30/11/2018,Business Support Community Services,Cultural Environmental Regulatory & Planning Services,http://opendatacommunities.org/def/concept/finance/sercop/objective/104,BRIAN ARMISTEAD LTD T/A SINKFALL RECYCLI,04133280,05-11-2018,0000081588,1151.54,0,Green waste tipping - 2018/19,Green waste tipping - 2018/19,Tipping & Disposal Charges,391110,Construction Buildings Construction
South Lakeland District Council,http://opendatacommunities.org/id/district-council/south-lakeland,30/11/2018,Business Support Community Services,Cultural Environmental Regulatory & Planning Services,http://opendatacommunities.org/def/concept/finance/sercop/objective/104,BRIAN ARMISTEAD LTD T/A SINKFALL RECYCLI,04133280,07-11-2018,0000081615,1856.31,0,Green waste tipping - 2018/19,Green waste tipping - 2018/19,Tipping & Disposal Charges,391110,Construction Buildings Construction
South Lakeland District Council,http://opendatacommunities.org/id/district-council/south-lakeland,30/11/2018,Business Support Community Services,Cultural Environmental Regulatory & Planning Services,http://opendatacommunities.org/def/concept/finance/sercop/objective/104,BRIAN ARMISTEAD LTD T/A SINKFALL RECYCLI,04133280,07-11-2018,0000081616,861.6,0,Green waste tipping - 2018/19,Green waste tipping - 2018/19,Tipping & Disposal Charges,391110,Construction Buildings Construction
South Lakeland District Council,http://opendatacommunities.org/id/district-council/south-lakeland,30/11/2018,Business Support Community Services,Cultural Environmental Regulatory & Planning Services,http://opendatacommunities.org/def/concept/finance/sercop/objective/104,BRIAN ARMISTEAD LTD T/A SINKFALL RECYCLI,04133280,19-11-2018,0000081833,1063.39,0,Green waste tipping - 2018/19,Green waste tipping - 2018/19,Tipping & Disposal Charges,391110,Construction Buildings Construction
South Lakeland District Council,http://opendatacommunities.org/id/district-council/south-lakeland,30/11/2018,Business Support Community Services,Cultural Environmental Regulatory & Planning Services,,BRIAN ARMISTEAD LTD T/A SINKFALL RECYCLI,04133280,19-11-2018,0000081924,1946.61,0,Green waste tipping - 2018/19,Green waste tipping - 2018/19,Tipping & Disposal Charges,391110,Construction Buildings Construction
South Lakeland District Council,http://opendatacommunities.org/id/district-council/south-lakeland,30/11/2018,Business Support Community Services,Cultural Environmental Regulatory & Planning Services,,BRIAN ARMISTEAD LTD T/A SINKFALL RECYCLI,04133280,28-11-2018,0000082143,667.36,0,Green waste tipping - 2018/19,Green waste tipping - 2018/19,Tipping & Disposal Charges,391110,Construction Buildings Construction
South Lakeland District Council,http://opendatacommunities.org/id/district-council/south-lakeland,30/11/2018,Kendal Town Hall,Cultural Environmental Regulatory & Planning Services,http://opendatacommunities.org/def/concept/finance/sercop/objective/104,BUNZL CLEANING & HYGIENE SUPPLIES,2902454,26-11-2018,0000081790,48.57,0,3 x 5litre Mop and Shine for Kendal,3 x 5litre Mop and Shine for Kendal,Cleaning Supplies & Services,131011,Cleaning & Janitorial Cleaning Materials
South Lakeland District Council,http://opendatacommunities.org/id/district-council/south-lakeland,30/11/2018,Environment and Housing,Housing Services,,BUNZL CLEANING & HYGIENE SUPPLIES,2902454,28-11-2018,0000082062,141.13,0,Cleaning Supplies TVF,Cleaning Supplies TVF,Cleaning Supplies & Services,131011,Cleaning & Janitorial Cleaning Materials
South Lakeland District Council,http://opendatacommunities.org/id/district-council/south-lakeland,30/11/2018,Environment and Housing,Housing Services,,BUNZL CLEANING & HYGIENE SUPPLIES,2902454,28-11-2018,0000082164,45.8,0,Cleaning Supplies TVF,Cleaning Supplies TVF,Cleaning Supplies & Services,131011,Cleaning & Janitorial Cleaning Materials
South Lakeland District Council,http://opendatacommunities.org/id/district-council/south-lakeland,30/11/2018,Social Enterprise Admin,Cultural Environmental Regulatory & Planning Services,,BURTON TURF CARE,,26-11-2018,0000082068,2500,0,Verti draining  to the following areas:-,Verti draining  to the following areas:-,Grounds,391311,Construction Open Spaces Repair & Mtce
South Lakeland District Council,http://opendatacommunities.org/id/district-council/south-lakeland,30/11/2018,Development Strategy,Planning and Development,,BURTON-IN-KENDAL PARISH COUNCIL,,05-11-2018,0000081571,4596.96,0,CIL - Neighbourhood Funding Portion,CIL - Neighbourhood Funding Portion,CIL Neighbourhood Funding,908000,Public Bodies Council support services
South Lakeland District Council,http://opendatacommunities.org/id/district-council/south-lakeland,30/11/2018,Development Implementation,Cultural Environmental Regulatory & Planning Services,,BURTON-IN-KENDAL PARISH COUNCIL,,28-11-2018,0000082158,17000,0,LIPS Grant Funding for Burton Heritage,LIPS Grant Funding for Burton Heritage,Other Consultants,908000,Public Bodies Council support services
South Lakeland District Council,http://opendatacommunities.org/id/district-council/south-lakeland,30/11/2018,Business Support Community Services,SLDC as Agent,,BUSINESS AGAINST CRIME SOUTH LAKELAND,,19-11-2018,0000081900,15000,0,South Cumbria CSP 18-19 funding,South Cumbria CSP 18-19 funding,General,201700,Financial Services Grants
South Lakeland District Council,http://opendatacommunities.org/id/district-council/south-lakeland,30/11/2018,Financial Services,Central Services,http://opendatacommunities.org/def/concept/finance/sercop/objective/102,BUSY BEES BENEFITS LTD,06758298,12-11-2018,0000081687,45.26,0,CHILD CARE VOUCHER SERVICE CHARGE,CHILD CARE VOUCHER SERVICE CHARGE,Voluntary Deduction Fees,202100,Financial Services Subscriptions
South Lakeland District Council,http://opendatacommunities.org/id/district-council/south-lakeland,30/11/2018,Financial Services,Non-Service Payments,,BUSY BEES BENEFITS LTD,06758298,07-11-2018,0000081689,1293,0,child care vouchers,child care vouchers,General,202100,Financial Services Subscriptions
South Lakeland District Council,http://opendatacommunities.org/id/district-council/south-lakeland,30/11/2018,Business Support Community Services,Internal Trading Accounts,,C M SIGNS,,19-11-2018,0000081902,244,0,Signs,Signs,Transport-Repair & Maintenance,102400,Building Signage
South Lakeland District Council,http://opendatacommunities.org/id/district-council/south-lakeland,30/11/2018,Financial Services,Central Services,,Caboodle Technology Ltd,06784632,01-11-2018,0000082094,41.63,0,child care voucher service charge ,child care voucher service charge ,Voluntary Deduction Fees,260000,HR
South Lakeland District Council,http://opendatacommunities.org/id/district-council/south-lakeland,30/11/2018,Financial Services,Central Services,,Caboodle Technology Ltd,06784632,01-11-2018,0000082095,41.63,0,child care voucher service charge,child care voucher service charge,Voluntary Deduction Fees,260000,HR
South Lakeland District Council,http://opendatacommunities.org/id/district-council/south-lakeland,30/11/2018,Environment and Housing,Housing Services,,Callum Robinson,,28-11-2018,0000082150,415,0,Monthly rent ,Monthly rent ,Homelessness Prevention,250010,Housing Letting Agents
South Lakeland District Council,http://opendatacommunities.org/id/district-council/south-lakeland,30/11/2018,Business Support Community Services,Cultural Environmental Regulatory & Planning Services,http://opendatacommunities.org/def/concept/finance/sercop/objective/104,CANNON HYGIENE LTD,01298292,31-10-2018,0000081475,8.39,0,Clinical waste collections - 2018/19,Clinical waste collections - 2018/19,Clinincal Waste Disposal Costs,131011,Cleaning & Janitorial Cleaning Materials
South Lakeland District Council,http://opendatacommunities.org/id/district-council/south-lakeland,30/11/2018,Business Support Community Services,Cultural Environmental Regulatory & Planning Services,http://opendatacommunities.org/def/concept/finance/sercop/objective/104,CANNON HYGIENE LTD,01298292,05-11-2018,0000081583,2572.24,0,Clinical waste collections - 2018/19,Clinical waste collections - 2018/19,Clinincal Waste Disposal Costs,131011,Cleaning & Janitorial Cleaning Materials
South Lakeland District Council,http://opendatacommunities.org/id/district-council/south-lakeland,30/11/2018,Business Support Community Services,Cultural Environmental Regulatory & Planning Services,http://opendatacommunities.org/def/concept/finance/sercop/objective/104,CANNON HYGIENE LTD,01298292,12-11-2018,0000081775,19.93,0,Clinical waste collections - 2018/19,Clinical waste collections - 2018/19,Clinincal Waste Disposal Costs,131011,Cleaning & Janitorial Cleaning Materials
South Lakeland District Council,http://opendatacommunities.org/id/district-council/south-lakeland,30/11/2018,Business Support Community Services,Cultural Environmental Regulatory & Planning Services,,CANNON HYGIENE LTD,01298292,21-11-2018,0000082011,13,0,Clinical waste collections - 2018/19,Clinical waste collections - 2018/19,Clinincal Waste Disposal Costs,131011,Cleaning & Janitorial Cleaning Materials
South Lakeland District Council,http://opendatacommunities.org/id/district-council/south-lakeland,30/11/2018,Revenues and Benefits,Central Services,http://opendatacommunities.org/def/concept/finance/sercop/objective/102,CAPITA BUSINESS SERVICES LTD,02299747,12-11-2018,0000081654,19380.85,0,DWP LADS Programme IT,DWP LADS Programme IT,Software Maintenance,261500,HR Training & Conferences
South Lakeland District Council,http://opendatacommunities.org/id/district-council/south-lakeland,30/11/2018,Revenues and Benefits,Central Services,,CAPITA BUSINESS SERVICES LTD (NCR),,01-11-2018,0000081935,3785.9,0,2018-19 Internet Payment / bank charges,2018-19 Internet Payment / bank charges,Commission,261500,HR Training & Conferences
South Lakeland District Council,http://opendatacommunities.org/id/district-council/south-lakeland,30/11/2018,Development Implementation,Cultural Environmental Regulatory & Planning Services,,Capita Property and Infrastructure,,28-11-2018,0000082157,6473.5,0,ERDF Kendal Flood Risk,ERDF Kendal Flood Risk,Other Consultants,191700,Facilities Property Management
South Lakeland District Council,http://opendatacommunities.org/id/district-council/south-lakeland,30/11/2018,ICT Group,Central Services,http://opendatacommunities.org/def/concept/finance/sercop/objective/102,CCS MEDIA LTD,01693516,12-11-2018,0000081746,421.17,0,202652-02 Plantronics Voyager Focus UC,202652-02 Plantronics Voyager Focus UC,Computer-Supplies,271400,ICT Office & Reprographics Equipment
South Lakeland District Council,http://opendatacommunities.org/id/district-council/south-lakeland,30/11/2018,Democratic and Member Services,Central Services,,CENTRE FOR PUBLIC SCRUTINY LTD,5133443,28-11-2018,0000082137,150,0,National Health Scrutiny & Assurance,National Health Scrutiny & Assurance,Training Costs,201100,Financial Services Audit
South Lakeland District Council,http://opendatacommunities.org/id/district-council/south-lakeland,30/11/2018,Business Support Community Services,Cultural Environmental Regulatory & Planning Services,,CHARTERED INSTITUTE OF HOUSING,,26-11-2018,0000082038,194,0,S A,S A,Professional Fees,202100,Financial Services Subscriptions
South Lakeland District Council,http://opendatacommunities.org/id/district-council/south-lakeland,30/11/2018,Human Resources,Central Services,http://opendatacommunities.org/def/concept/finance/sercop/objective/102,Choose Occupational Health,07365943,07-11-2018,0000081707,522.5,0,full day clinic - July,full day clinic - July,Drs/Occ Health Fees,191800,Facilities Public Relations & Image
South Lakeland District Council,http://opendatacommunities.org/id/district-council/south-lakeland,30/11/2018,Human Resources,Central Services,http://opendatacommunities.org/def/concept/finance/sercop/objective/102,Choose Occupational Health,07365943,12-11-2018,0000081722,105,0,CD,CD,Drs/Occ Health Fees,191800,Facilities Public Relations & Image
South Lakeland District Council,http://opendatacommunities.org/id/district-council/south-lakeland,30/11/2018,Human Resources,Central Services,,Choose Occupational Health,07365943,26-11-2018,0000082112,57.75,0,pre employment ,pre employment ,Drs/Occ Health Fees,191800,Facilities Public Relations & Image
South Lakeland District Council,http://opendatacommunities.org/id/district-council/south-lakeland,30/11/2018,Human Resources,Central Services,,Choose Occupational Health,07365943,26-11-2018,0000082113,-26.25,0,PO FOR CREDIT NOTE,PO FOR CREDIT NOTE,Drs/Occ Health Fees,191800,Facilities Public Relations & Image
South Lakeland District Council,http://opendatacommunities.org/id/district-council/south-lakeland,30/11/2018,Development Management,Cultural Environmental Regulatory & Planning Services,http://opendatacommunities.org/def/concept/finance/sercop/objective/104,CHRIS BOWKER LTD,01642561,19-11-2018,0000081378,30,0,Checking of electriacl work under Part,Checking of electriacl work under Part,Electrican Inspection,101100,Building Electrical
South Lakeland District Council,http://opendatacommunities.org/id/district-council/south-lakeland,30/11/2018,Development Management,Cultural Environmental Regulatory & Planning Services,,CHRIS BOWKER LTD,01642561,21-11-2018,0000081893,90,0,Inspection of electrical work under,Inspection of electrical work under,Electrican Inspection,101100,Building Electrical
South Lakeland District Council,http://opendatacommunities.org/id/district-council/south-lakeland,30/11/2018,Development Management,Cultural Environmental Regulatory & Planning Services,,CHRIS BOWKER LTD,01642561,26-11-2018,0000082052,30,0,Inspection of electrical work under,Inspection of electrical work under,Electrican Inspection,101100,Building Electrical
South Lakeland District Council,http://opendatacommunities.org/id/district-council/south-lakeland,30/11/2018,Business Support Community Services,Internal Trading Accounts,,COMPASS COMPONENTS,,21-11-2018,0000082010,151.08,0,Consumables 2018/19,Consumables 2018/19,Job Consumables,101400,Building General Materials
South Lakeland District Council,http://opendatacommunities.org/id/district-council/south-lakeland,30/11/2018,Printing Section,Central Services,,Complete Business Solutions Group Ltd,07931407,28-11-2018,0000082145,42.9,0,Zerox Yellow 1 up labels,Zerox Yellow 1 up labels,Paper Supplies,279999,ICT Not Elsewhere Classified
South Lakeland District Council,http://opendatacommunities.org/id/district-council/south-lakeland,30/11/2018,Financial Services,Non-Service Payments,,COMPUTERSHARE VOUCHER SERVICES LTD,04968447,07-11-2018,0000081688,1075.93,0,child care vouchers,child care vouchers,General,202100,Financial Services Subscriptions
South Lakeland District Council,http://opendatacommunities.org/id/district-council/south-lakeland,30/11/2018,Lake Wardens,Cultural Environmental Regulatory & Planning Services,,CONISTON CORPORATE EMBROIDERY UK LTD,02421673,26-11-2018,0000081960,219.74,0,2 x Portwest (RW) Action Trousers,2 x Portwest (RW) Action Trousers,Protective Clothing & Uniforms,149999,Clothing Not Elsewhere Classified
South Lakeland District Council,http://opendatacommunities.org/id/district-council/south-lakeland,30/11/2018,Lake Wardens,Cultural Environmental Regulatory & Planning Services,,CONISTON CORPORATE EMBROIDERY UK LTD,02421673,26-11-2018,0000082105,19.95,0,1 x Pair of Dickies Super Safety,1 x Pair of Dickies Super Safety,Protective Clothing & Uniforms,149999,Clothing Not Elsewhere Classified
South Lakeland District Council,http://opendatacommunities.org/id/district-council/south-lakeland,30/11/2018,Cemeteries Office,Cultural Environmental Regulatory & Planning Services,http://opendatacommunities.org/def/concept/finance/sercop/objective/104,Coniston St Andrew's PCC,,07-11-2018,0000081704,845,0,2018/19 Grant towards grounds,2018/19 Grant towards grounds,Grants to Burial Authorities,121000,Cemetery & Crematorium Burial & Crem
South Lakeland District Council,http://opendatacommunities.org/id/district-council/south-lakeland,30/11/2018,Leisure and Wellbeing,External Trading Accounts,,CONTINENTAL LANDSCAPES LTD,2108452,14-11-2018,0000081540,599.34,0,New Road Maintenance 2018-19 part 2,New Road Maintenance 2018-19 part 2,Grounds,391310,Construction Open Spaces Construction
South Lakeland District Council,http://opendatacommunities.org/id/district-council/south-lakeland,30/11/2018,Leisure and Wellbeing,Highways & Transport Services,http://opendatacommunities.org/def/concept/finance/sercop/objective/107,CONTINENTAL LANDSCAPES LTD,2108452,14-11-2018,0000081541,12.74,0,Parks Routine Maintenance 2018-19,Parks Routine Maintenance 2018-19,Grounds,391310,Construction Open Spaces Construction
South Lakeland District Council,http://opendatacommunities.org/id/district-council/south-lakeland,30/11/2018,Leisure and Wellbeing,Highways & Transport Services,http://opendatacommunities.org/def/concept/finance/sercop/objective/107,CONTINENTAL LANDSCAPES LTD,2108452,14-11-2018,0000081541,127.44,0,Parks Routine Maintenance 2018-19,Parks Routine Maintenance 2018-19,Grounds,391310,Construction Open Spaces Construction
South Lakeland District Council,http://opendatacommunities.org/id/district-council/south-lakeland,30/11/2018,Leisure and Wellbeing,Highways & Transport Services,http://opendatacommunities.org/def/concept/finance/sercop/objective/107,CONTINENTAL LANDSCAPES LTD,2108452,14-11-2018,0000081541,1.27,0,Parks Routine Maintenance 2018-19,Parks Routine Maintenance 2018-19,Grounds,391310,Construction Open Spaces Construction
South Lakeland District Council,http://opendatacommunities.org/id/district-council/south-lakeland,30/11/2018,Leisure and Wellbeing,Highways & Transport Services,http://opendatacommunities.org/def/concept/finance/sercop/objective/107,CONTINENTAL LANDSCAPES LTD,2108452,14-11-2018,0000081541,12.74,0,Parks Routine Maintenance 2018-19,Parks Routine Maintenance 2018-19,Grounds,391310,Construction Open Spaces Construction
South Lakeland District Council,http://opendatacommunities.org/id/district-council/south-lakeland,30/11/2018,Leisure and Wellbeing,Highways & Transport Services,http://opendatacommunities.org/def/concept/finance/sercop/objective/107,CONTINENTAL LANDSCAPES LTD,2108452,14-11-2018,0000081541,127.44,0,Parks Routine Maintenance 2018-19,Parks Routine Maintenance 2018-19,Grounds,391310,Construction Open Spaces Construction
South Lakeland District Council,http://opendatacommunities.org/id/district-council/south-lakeland,30/11/2018,Leisure and Wellbeing,Highways & Transport Services,http://opendatacommunities.org/def/concept/finance/sercop/objective/107,CONTINENTAL LANDSCAPES LTD,2108452,14-11-2018,0000081541,12.74,0,Parks Routine Maintenance 2018-19,Parks Routine Maintenance 2018-19,Grounds,391310,Construction Open Spaces Construction
South Lakeland District Council,http://opendatacommunities.org/id/district-council/south-lakeland,30/11/2018,Leisure and Wellbeing,Highways & Transport Services,http://opendatacommunities.org/def/concept/finance/sercop/objective/107,CONTINENTAL LANDSCAPES LTD,2108452,14-11-2018,0000081541,25.49,0,Parks Routine Maintenance 2018-19,Parks Routine Maintenance 2018-19,Grounds,391310,Construction Open Spaces Construction
South Lakeland District Council,http://opendatacommunities.org/id/district-council/south-lakeland,30/11/2018,Leisure and Wellbeing,Highways & Transport Services,http://opendatacommunities.org/def/concept/finance/sercop/objective/107,CONTINENTAL LANDSCAPES LTD,2108452,14-11-2018,0000081541,15.93,0,Parks Routine Maintenance 2018-19,Parks Routine Maintenance 2018-19,Grounds,391310,Construction Open Spaces Construction
South Lakeland District Council,http://opendatacommunities.org/id/district-council/south-lakeland,30/11/2018,Leisure and Wellbeing,Highways & Transport Services,http://opendatacommunities.org/def/concept/finance/sercop/objective/107,CONTINENTAL LANDSCAPES LTD,2108452,14-11-2018,0000081541,159.3,0,Parks Routine Maintenance 2018-19,Parks Routine Maintenance 2018-19,Grounds,391310,Construction Open Spaces Construction
South Lakeland District Council,http://opendatacommunities.org/id/district-council/south-lakeland,30/11/2018,Leisure and Wellbeing,Highways & Transport Services,http://opendatacommunities.org/def/concept/finance/sercop/objective/107,CONTINENTAL LANDSCAPES LTD,2108452,14-11-2018,0000081541,6.37,0,Parks Routine Maintenance 2018-19,Parks Routine Maintenance 2018-19,Grounds,391310,Construction Open Spaces Construction
South Lakeland District Council,http://opendatacommunities.org/id/district-council/south-lakeland,30/11/2018,Leisure and Wellbeing,Highways & Transport Services,http://opendatacommunities.org/def/concept/finance/sercop/objective/107,CONTINENTAL LANDSCAPES LTD,2108452,14-11-2018,0000081541,63.72,0,Parks Routine Maintenance 2018-19,Parks Routine Maintenance 2018-19,Grounds,391310,Construction Open Spaces Construction
South Lakeland District Council,http://opendatacommunities.org/id/district-council/south-lakeland,30/11/2018,Leisure and Wellbeing,Highways & Transport Services,http://opendatacommunities.org/def/concept/finance/sercop/objective/107,CONTINENTAL LANDSCAPES LTD,2108452,14-11-2018,0000081541,25.49,0,Parks Routine Maintenance 2018-19,Parks Routine Maintenance 2018-19,Grounds,391310,Construction Open Spaces Construction
South Lakeland District Council,http://opendatacommunities.org/id/district-council/south-lakeland,30/11/2018,Leisure and Wellbeing,Highways & Transport Services,http://opendatacommunities.org/def/concept/finance/sercop/objective/107,CONTINENTAL LANDSCAPES LTD,2108452,14-11-2018,0000081541,6.37,0,Parks Routine Maintenance 2018-19,Parks Routine Maintenance 2018-19,Grounds,391310,Construction Open Spaces Construction
South Lakeland District Council,http://opendatacommunities.org/id/district-council/south-lakeland,30/11/2018,Leisure and Wellbeing,Highways & Transport Services,http://opendatacommunities.org/def/concept/finance/sercop/objective/107,CONTINENTAL LANDSCAPES LTD,2108452,14-11-2018,0000081541,4.14,0,Parks Routine Maintenance 2018-19,Parks Routine Maintenance 2018-19,Grounds,391310,Construction Open Spaces Construction
South Lakeland District Council,http://opendatacommunities.org/id/district-council/south-lakeland,30/11/2018,Leisure and Wellbeing,Highways & Transport Services,http://opendatacommunities.org/def/concept/finance/sercop/objective/107,CONTINENTAL LANDSCAPES LTD,2108452,14-11-2018,0000081541,6.37,0,Parks Routine Maintenance 2018-19,Parks Routine Maintenance 2018-19,Grounds,391310,Construction Open Spaces Construction
South Lakeland District Council,http://opendatacommunities.org/id/district-council/south-lakeland,30/11/2018,Leisure and Wellbeing,Highways & Transport Services,http://opendatacommunities.org/def/concept/finance/sercop/objective/107,CONTINENTAL LANDSCAPES LTD,2108452,14-11-2018,0000081541,76.46,0,Parks Routine Maintenance 2018-19,Parks Routine Maintenance 2018-19,Grounds,391310,Construction Open Spaces Construction
South Lakeland District Council,http://opendatacommunities.org/id/district-council/south-lakeland,30/11/2018,Leisure and Wellbeing,Highways & Transport Services,http://opendatacommunities.org/def/concept/finance/sercop/objective/107,CONTINENTAL LANDSCAPES LTD,2108452,14-11-2018,0000081541,3.19,0,Parks Routine Maintenance 2018-19,Parks Routine Maintenance 2018-19,Grounds,391310,Construction Open Spaces Construction
South Lakeland District Council,http://opendatacommunities.org/id/district-council/south-lakeland,30/11/2018,Leisure and Wellbeing,Highways & Transport Services,http://opendatacommunities.org/def/concept/finance/sercop/objective/107,CONTINENTAL LANDSCAPES LTD,2108452,14-11-2018,0000081541,5.73,0,Parks Routine Maintenance 2018-19,Parks Routine Maintenance 2018-19,Grounds,391310,Construction Open Spaces Construction
South Lakeland District Council,http://opendatacommunities.org/id/district-council/south-lakeland,30/11/2018,Leisure and Wellbeing,Highways & Transport Services,http://opendatacommunities.org/def/concept/finance/sercop/objective/107,CONTINENTAL LANDSCAPES LTD,2108452,14-11-2018,0000081541,6.37,0,Parks Routine Maintenance 2018-19,Parks Routine Maintenance 2018-19,Grounds,391310,Construction Open Spaces Construction
South Lakeland District Council,http://opendatacommunities.org/id/district-council/south-lakeland,30/11/2018,Leisure and Wellbeing,Highways & Transport Services,http://opendatacommunities.org/def/concept/finance/sercop/objective/107,CONTINENTAL LANDSCAPES LTD,2108452,14-11-2018,0000081541,70.09,0,Parks Routine Maintenance 2018-19,Parks Routine Maintenance 2018-19,Grounds,391310,Construction Open Spaces Construction
South Lakeland District Council,http://opendatacommunities.org/id/district-council/south-lakeland,30/11/2018,Leisure and Wellbeing,Highways & Transport Services,http://opendatacommunities.org/def/concept/finance/sercop/objective/107,CONTINENTAL LANDSCAPES LTD,2108452,14-11-2018,0000081541,133.81,0,Parks Routine Maintenance 2018-19,Parks Routine Maintenance 2018-19,Grounds,391310,Construction Open Spaces Construction
South Lakeland District Council,http://opendatacommunities.org/id/district-council/south-lakeland,30/11/2018,Leisure and Wellbeing,Highways & Transport Services,http://opendatacommunities.org/def/concept/finance/sercop/objective/107,CONTINENTAL LANDSCAPES LTD,2108452,14-11-2018,0000081541,6.37,0,Parks Routine Maintenance 2018-19,Parks Routine Maintenance 2018-19,Grounds,391310,Construction Open Spaces Construction
South Lakeland District Council,http://opendatacommunities.org/id/district-council/south-lakeland,30/11/2018,Leisure and Wellbeing,Highways & Transport Services,http://opendatacommunities.org/def/concept/finance/sercop/objective/107,CONTINENTAL LANDSCAPES LTD,2108452,14-11-2018,0000081541,12.74,0,Parks Routine Maintenance 2018-19,Parks Routine Maintenance 2018-19,Grounds,391310,Construction Open Spaces Construction
South Lakeland District Council,http://opendatacommunities.org/id/district-council/south-lakeland,30/11/2018,Leisure and Wellbeing,Highways & Transport Services,http://opendatacommunities.org/def/concept/finance/sercop/objective/107,CONTINENTAL LANDSCAPES LTD,2108452,14-11-2018,0000081541,12.74,0,Parks Routine Maintenance 2018-19,Parks Routine Maintenance 2018-19,Grounds,391310,Construction Open Spaces Construction
South Lakeland District Council,http://opendatacommunities.org/id/district-council/south-lakeland,30/11/2018,Leisure and Wellbeing,Highways & Transport Services,http://opendatacommunities.org/def/concept/finance/sercop/objective/107,CONTINENTAL LANDSCAPES LTD,2108452,14-11-2018,0000081541,191.16,0,Parks Routine Maintenance 2018-19,Parks Routine Maintenance 2018-19,Grounds,391310,Construction Open Spaces Construction
South Lakeland District Council,http://opendatacommunities.org/id/district-council/south-lakeland,30/11/2018,Leisure and Wellbeing,Highways & Transport Services,http://opendatacommunities.org/def/concept/finance/sercop/objective/107,CONTINENTAL LANDSCAPES LTD,2108452,14-11-2018,0000081541,6.37,0,Parks Routine Maintenance 2018-19,Parks Routine Maintenance 2018-19,Grounds,391310,Construction Open Spaces Construction
South Lakeland District Council,http://opendatacommunities.org/id/district-council/south-lakeland,30/11/2018,Leisure and Wellbeing,Highways & Transport Services,http://opendatacommunities.org/def/concept/finance/sercop/objective/107,CONTINENTAL LANDSCAPES LTD,2108452,14-11-2018,0000081541,57.35,0,Parks Routine Maintenance 2018-19,Parks Routine Maintenance 2018-19,Grounds,391310,Construction Open Spaces Construction
South Lakeland District Council,http://opendatacommunities.org/id/district-council/south-lakeland,30/11/2018,Leisure and Wellbeing,Highways & Transport Services,http://opendatacommunities.org/def/concept/finance/sercop/objective/107,CONTINENTAL LANDSCAPES LTD,2108452,14-11-2018,0000081541,12.74,0,Parks Routine Maintenance 2018-19,Parks Routine Maintenance 2018-19,Grounds,391310,Construction Open Spaces Construction
South Lakeland District Council,http://opendatacommunities.org/id/district-council/south-lakeland,30/11/2018,Leisure and Wellbeing,Highways & Transport Services,http://opendatacommunities.org/def/concept/finance/sercop/objective/107,CONTINENTAL LANDSCAPES LTD,2108452,14-11-2018,0000081541,25.49,0,Parks Routine Maintenance 2018-19,Parks Routine Maintenance 2018-19,Grounds,391310,Construction Open Spaces Construction
South Lakeland District Council,http://opendatacommunities.org/id/district-council/south-lakeland,30/11/2018,Leisure and Wellbeing,Highways & Transport Services,http://opendatacommunities.org/def/concept/finance/sercop/objective/107,CONTINENTAL LANDSCAPES LTD,2108452,14-11-2018,0000081541,19.12,0,Parks Routine Maintenance 2018-19,Parks Routine Maintenance 2018-19,Grounds,391310,Construction Open Spaces Construction
South Lakeland District Council,http://opendatacommunities.org/id/district-council/south-lakeland,30/11/2018,Leisure and Wellbeing,Highways & Transport Services,http://opendatacommunities.org/def/concept/finance/sercop/objective/107,CONTINENTAL LANDSCAPES LTD,2108452,14-11-2018,0000081541,19.12,0,Parks Routine Maintenance 2018-19,Parks Routine Maintenance 2018-19,Grounds,391310,Construction Open Spaces Construction
South Lakeland District Council,http://opendatacommunities.org/id/district-council/south-lakeland,30/11/2018,Leisure and Wellbeing,Cultural Environmental Regulatory & Planning Services,http://opendatacommunities.org/def/concept/finance/sercop/objective/104,CONTINENTAL LANDSCAPES LTD,2108452,14-11-2018,0000081541,10195.1,0,Parks Routine Maintenance 2018-19,Parks Routine Maintenance 2018-19,Grounds,391310,Construction Open Spaces Construction
South Lakeland District Council,http://opendatacommunities.org/id/district-council/south-lakeland,30/11/2018,Leisure and Wellbeing,Cultural Environmental Regulatory & Planning Services,http://opendatacommunities.org/def/concept/finance/sercop/objective/104,CONTINENTAL LANDSCAPES LTD,2108452,14-11-2018,0000081541,25.49,0,Parks Routine Maintenance 2018-19,Parks Routine Maintenance 2018-19,Grounds,391310,Construction Open Spaces Construction
South Lakeland District Council,http://opendatacommunities.org/id/district-council/south-lakeland,30/11/2018,Leisure and Wellbeing,Cultural Environmental Regulatory & Planning Services,http://opendatacommunities.org/def/concept/finance/sercop/objective/104,CONTINENTAL LANDSCAPES LTD,2108452,14-11-2018,0000081541,49701.07,0,Parks Routine Maintenance 2018-19,Parks Routine Maintenance 2018-19,Grounds,391310,Construction Open Spaces Construction
South Lakeland District Council,http://opendatacommunities.org/id/district-council/south-lakeland,30/11/2018,Leisure and Wellbeing,Cultural Environmental Regulatory & Planning Services,http://opendatacommunities.org/def/concept/finance/sercop/objective/104,CONTINENTAL LANDSCAPES LTD,2108452,14-11-2018,0000081541,509.75,0,Parks Routine Maintenance 2018-19,Parks Routine Maintenance 2018-19,Grounds CCC Grass Verges,391310,Construction Open Spaces Construction
South Lakeland District Council,http://opendatacommunities.org/id/district-council/south-lakeland,30/11/2018,Leisure and Wellbeing,Cultural Environmental Regulatory & Planning Services,http://opendatacommunities.org/def/concept/finance/sercop/objective/104,CONTINENTAL LANDSCAPES LTD,2108452,14-11-2018,0000081541,1911.58,0,Parks Routine Maintenance 2018-19,Parks Routine Maintenance 2018-19,Grounds,391310,Construction Open Spaces Construction
South Lakeland District Council,http://opendatacommunities.org/id/district-council/south-lakeland,30/11/2018,Leisure and Wellbeing,External Trading Accounts,,CONTINENTAL LANDSCAPES LTD,2108452,14-11-2018,0000081541,111.51,0,Parks Routine Maintenance 2018-19,Parks Routine Maintenance 2018-19,Grounds,391310,Construction Open Spaces Construction
South Lakeland District Council,http://opendatacommunities.org/id/district-council/south-lakeland,30/11/2018,Leisure and Wellbeing,Cultural Environmental Regulatory & Planning Services,http://opendatacommunities.org/def/concept/finance/sercop/objective/104,CONTINENTAL LANDSCAPES LTD,2108452,14-11-2018,0000081542,3852.09,0,Gravedigging for April 2018 - March 2019,Gravedigging for April 2018 - March 2019,Gravedigging,391310,Construction Open Spaces Construction
South Lakeland District Council,http://opendatacommunities.org/id/district-council/south-lakeland,30/11/2018,Cemeteries Office,Cultural Environmental Regulatory & Planning Services,http://opendatacommunities.org/def/concept/finance/sercop/objective/104,COOPER ENGRAVING,,12-11-2018,0000081392,105,0,1 x s/s seat plaque TRAFFORD for Grange,1 x s/s seat plaque TRAFFORD for Grange,Grounds Special,102400,Building Signage
South Lakeland District Council,http://opendatacommunities.org/id/district-council/south-lakeland,30/11/2018,Lake Wardens,Cultural Environmental Regulatory & Planning Services,http://opendatacommunities.org/def/concept/finance/sercop/objective/104,CPC,,19-11-2018,0000081881,55.6,0,4 x Rolls of Waterproof Duct Tape -,4 x Rolls of Waterproof Duct Tape -,Equipment Furniture Materials,271200,ICT Hardware
South Lakeland District Council,http://opendatacommunities.org/id/district-council/south-lakeland,30/11/2018,Development Implementation,Culture and Related Serv,http://opendatacommunities.org/def/concept/finance/sercop/objective/104,CRUDEN PROPERTY SERVICES LTD,03851237,19-11-2018,0000081845,5170.47,0,Ferry Nab Boathouse - Retension,Ferry Nab Boathouse - Retension,Contract payments,391111,Construction Buildings Repair & Mtce
South Lakeland District Council,http://opendatacommunities.org/id/district-council/south-lakeland,30/11/2018,Kendal Town Hall,Cultural Environmental Regulatory & Planning Services,http://opendatacommunities.org/def/concept/finance/sercop/objective/104,CUMBRIA - C P CATERING EQUIPMENT LTD,,12-11-2018,0000081716,193.31,0,28 white stacking mugs for KTH,28 white stacking mugs for KTH,Equipment Furniture Materials,111100,Catering Equipment & Utensils
South Lakeland District Council,http://opendatacommunities.org/id/district-council/south-lakeland,30/11/2018,Development Implementation,Cultural Environmental Regulatory & Planning Services,http://opendatacommunities.org/def/concept/finance/sercop/objective/104,CUMBRIA CHAMBER OF COMMERCE,04211364,07-11-2018,0000081643,22500,0,Provision of Business Support Services,Provision of Business Support Services,Grants to Organisations,151000,Consultancy Business
South Lakeland District Council,http://opendatacommunities.org/id/district-council/south-lakeland,30/11/2018,Business Support Community Services,Central Services,http://opendatacommunities.org/def/concept/finance/sercop/objective/102,CUMBRIA COUNTY COUNCIL,,19-11-2018,0000081273,667,0,LAND CHARGE SEARCH ENQUIRIES COMMONS,LAND CHARGE SEARCH ENQUIRIES COMMONS,Other Local Authorities,908000,Public Bodies Council support services
South Lakeland District Council,http://opendatacommunities.org/id/district-council/south-lakeland,30/11/2018,Business Support Community Services,Central Services,http://opendatacommunities.org/def/concept/finance/sercop/objective/102,CUMBRIA COUNTY COUNCIL,,12-11-2018,0000081639,4274,0,LAND CHARGE SEARCH ENQUIRIES HIGHWAYS,LAND CHARGE SEARCH ENQUIRIES HIGHWAYS,Other Local Authorities,908000,Public Bodies Council support services
South Lakeland District Council,http://opendatacommunities.org/id/district-council/south-lakeland,30/11/2018,Business Support Community Services,SLDC as Agent,,CUMBRIA COUNTY COUNCIL,,07-11-2018,0000081645,10000,0,CSP funding for Egerton Court project.,CSP funding for Egerton Court project.,General,908000,Public Bodies Council support services
South Lakeland District Council,http://opendatacommunities.org/id/district-council/south-lakeland,30/11/2018,Business Support Community Services,Environment Regulatory,,CUMBRIA COUNTY COUNCIL,,12-11-2018,0000081771,1200,0,Install street lighting column to,Install street lighting column to,Contract payments,908000,Public Bodies Council support services
South Lakeland District Council,http://opendatacommunities.org/id/district-council/south-lakeland,30/11/2018,Business Support Community Services,Highways & Transport Services,,CUMBRIA COUNTY COUNCIL,,28-11-2018,0000081932,23204.82,0,Night scouting (estimate),Night scouting (estimate),Parish Lights-Repairs & Maint,908000,Public Bodies Council support services
South Lakeland District Council,http://opendatacommunities.org/id/district-council/south-lakeland,30/11/2018,Business Support Community Services,Central Services,,CUMBRIA COUNTY COUNCIL,,03-12-2018,0000081941,1058,0,LAND CHARGE SEARCH ENQUIRIES COMMONS,LAND CHARGE SEARCH ENQUIRIES COMMONS,Other Local Authorities,908000,Public Bodies Council support services
South Lakeland District Council,http://opendatacommunities.org/id/district-council/south-lakeland,30/11/2018,Business Support Community Services,SLDC as Agent,,CUMBRIA COUNTY COUNCIL,,03-12-2018,0000082170,108,0,DBS Checks for Taxi Drivers,DBS Checks for Taxi Drivers,Criminal Records Bureau,908000,Public Bodies Council support services
South Lakeland District Council,http://opendatacommunities.org/id/district-council/south-lakeland,30/11/2018,Development Implementation,Cultural Environmental Regulatory & Planning Services,http://opendatacommunities.org/def/concept/finance/sercop/objective/104,CUMBRIA MAILING SERVICES LTD,03136821,14-11-2018,0000081718,615.64,0,SLDC Business Survey Mailing 2018,SLDC Business Survey Mailing 2018,Economic Development Fund,301200,Mail Services� Postage
South Lakeland District Council,http://opendatacommunities.org/id/district-council/south-lakeland,30/11/2018,Development Implementation,Cultural Environmental Regulatory & Planning Services,http://opendatacommunities.org/def/concept/finance/sercop/objective/104,CUMBRIA MAILING SERVICES LTD,03136821,14-11-2018,0000081718,561.24,0,SLDC Business Survey Mailing 2018,SLDC Business Survey Mailing 2018,Other Consultants,301200,Mail Services� Postage
South Lakeland District Council,http://opendatacommunities.org/id/district-council/south-lakeland,30/11/2018,Development Implementation,Cultural Environmental Regulatory & Planning Services,http://opendatacommunities.org/def/concept/finance/sercop/objective/104,CUMBRIA MAILING SERVICES LTD,03136821,12-11-2018,0000081719,1384.93,0,SLDC Business Survey Mailing 2018,SLDC Business Survey Mailing 2018,Economic Development Fund,301200,Mail Services� Postage
South Lakeland District Council,http://opendatacommunities.org/id/district-council/south-lakeland,30/11/2018,Development Implementation,SLDC as Agent,,CUMBRIA TOURISM,03027358,26-11-2018,0000082103,900,0,Advert in the 2019 Holiday Guide 1/2,Advert in the 2019 Holiday Guide 1/2,General,291400,Arts & Leisure Services Sport & Fitness
South Lakeland District Council,http://opendatacommunities.org/id/district-council/south-lakeland,30/11/2018,Cemeteries Office,Cultural Environmental Regulatory & Planning Services,http://opendatacommunities.org/def/concept/finance/sercop/objective/104,CUMBRIA WASTE RECYCLING LTD,03162439,19-11-2018,0000081807,115.16,0,Cemetery Bin Emptying 2018,Cemetery Bin Emptying 2018,Skip and Bin Hire and Disposal,182012,Environment Waste Management Recycling
South Lakeland District Council,http://opendatacommunities.org/id/district-council/south-lakeland,30/11/2018,Cemeteries Office,Cultural Environmental Regulatory & Planning Services,http://opendatacommunities.org/def/concept/finance/sercop/objective/104,CUMBRIA WASTE RECYCLING LTD,03162439,19-11-2018,0000081808,63.72,0,Cemetery Bin Emptying 2018,Cemetery Bin Emptying 2018,Skip and Bin Hire and Disposal,182012,Environment Waste Management Recycling
South Lakeland District Council,http://opendatacommunities.org/id/district-council/south-lakeland,30/11/2018,Cemeteries Office,Cultural Environmental Regulatory & Planning Services,http://opendatacommunities.org/def/concept/finance/sercop/objective/104,CUMBRIA WASTE RECYCLING LTD,03162439,19-11-2018,0000081809,69.04,0,Cemetery Bin Emptying 2018,Cemetery Bin Emptying 2018,Skip and Bin Hire and Disposal,182012,Environment Waste Management Recycling
South Lakeland District Council,http://opendatacommunities.org/id/district-council/south-lakeland,30/11/2018,Lake Wardens,Cultural Environmental Regulatory & Planning Services,http://opendatacommunities.org/def/concept/finance/sercop/objective/104,CUMBRIA WASTE RECYCLING LTD,03162439,28-11-2018,0000081810,273.26,0,Emptying of Refuse Wheelie Bins at Lake,Emptying of Refuse Wheelie Bins at Lake,Skip and Bin Hire and Disposal,182012,Environment Waste Management Recycling
South Lakeland District Council,http://opendatacommunities.org/id/district-council/south-lakeland,30/11/2018,Kendal Town Hall,Cultural Environmental Regulatory & Planning Services,http://opendatacommunities.org/def/concept/finance/sercop/objective/104,CUMBRIA WASTE RECYCLING LTD,03162439,19-11-2018,0000081812,168.5,0,Annual waste collection for Kendal Town,Annual waste collection for Kendal Town,Skip and Bin Hire and Disposal,182012,Environment Waste Management Recycling
South Lakeland District Council,http://opendatacommunities.org/id/district-council/south-lakeland,30/11/2018,Development Implementation,Central Services,http://opendatacommunities.org/def/concept/finance/sercop/objective/102,CUMBRIA WASTE RECYCLING LTD,03162439,28-11-2018,0000081813,286.17,0,South Lakeland House Bin & Skip Emptying,South Lakeland House Bin & Skip Emptying,Skip and Bin Hire and Disposal,182012,Environment Waste Management Recycling
South Lakeland District Council,http://opendatacommunities.org/id/district-council/south-lakeland,30/11/2018,Cemeteries Office,Cultural Environmental Regulatory & Planning Services,http://opendatacommunities.org/def/concept/finance/sercop/objective/104,CUMBRIA WASTE RECYCLING LTD,03162439,19-11-2018,0000081814,29.92,0,Cemetery Bin Emptying 2018,Cemetery Bin Emptying 2018,Skip and Bin Hire and Disposal,182012,Environment Waste Management Recycling
South Lakeland District Council,http://opendatacommunities.org/id/district-council/south-lakeland,30/11/2018,Leisure and Wellbeing,Highways & Transport Services,http://opendatacommunities.org/def/concept/finance/sercop/objective/107,CUMBRIA WASTE RECYCLING LTD,03162439,28-11-2018,0000081815,54.97,0,660ltr bin at Kendal multi storey car,660ltr bin at Kendal multi storey car,Skip and Bin Hire and Disposal,182012,Environment Waste Management Recycling
South Lakeland District Council,http://opendatacommunities.org/id/district-council/south-lakeland,30/11/2018,Lake Wardens,Cultural Environmental Regulatory & Planning Services,http://opendatacommunities.org/def/concept/finance/sercop/objective/104,CUMBRIA WASTE RECYCLING LTD,03162439,28-11-2018,0000081817,258.46,0,Emptying of Refuse Wheelie Bins at Lake,Emptying of Refuse Wheelie Bins at Lake,Skip and Bin Hire and Disposal,182012,Environment Waste Management Recycling
South Lakeland District Council,http://opendatacommunities.org/id/district-council/south-lakeland,30/11/2018,Cemeteries Office,Cultural Environmental Regulatory & Planning Services,http://opendatacommunities.org/def/concept/finance/sercop/objective/104,CUMBRIA WASTE RECYCLING LTD,03162439,19-11-2018,0000081818,64.92,0,Cemetery Bin Emptying 2018,Cemetery Bin Emptying 2018,Skip and Bin Hire and Disposal,182012,Environment Waste Management Recycling
South Lakeland District Council,http://opendatacommunities.org/id/district-council/south-lakeland,30/11/2018,Development Implementation,Cultural Environmental Regulatory & Planning Services,http://opendatacommunities.org/def/concept/finance/sercop/objective/104,CUMBRIA WASTE RECYCLING LTD,03162439,28-11-2018,0000081819,136.55,0,"Waste Collection at 124 Highgate,","Waste Collection at 124 Highgate,",Skip and Bin Hire and Disposal,182012,Environment Waste Management Recycling
South Lakeland District Council,http://opendatacommunities.org/id/district-council/south-lakeland,30/11/2018,Development Implementation,Central Services,http://opendatacommunities.org/def/concept/finance/sercop/objective/102,CUMBRIA WASTE RECYCLING LTD,03162439,28-11-2018,0000081820,34.52,0,Langstone House 360 ltr Wheelie Bin,Langstone House 360 ltr Wheelie Bin,Skip and Bin Hire and Disposal,182012,Environment Waste Management Recycling
South Lakeland District Council,http://opendatacommunities.org/id/district-council/south-lakeland,30/11/2018,Business Support Community Services,Cultural Environmental Regulatory & Planning Services,http://opendatacommunities.org/def/concept/finance/sercop/objective/104,CUMBRIA WASTE RECYCLING LTD,03162439,14-11-2018,0000081862,620,0,Skip emptying at Ecclerigg & Ulverston,Skip emptying at Ecclerigg & Ulverston,Tipping & Disposal Charges,182012,Environment Waste Management Recycling
South Lakeland District Council,http://opendatacommunities.org/id/district-council/south-lakeland,30/11/2018,Business Support Community Services,Cultural Environmental Regulatory & Planning Services,http://opendatacommunities.org/def/concept/finance/sercop/objective/104,CUMBRIA WASTE RECYCLING LTD,03162439,14-11-2018,0000081863,1612,0,Skip emptying at Ecclerigg & Ulverston,Skip emptying at Ecclerigg & Ulverston,Tipping & Disposal Charges,182012,Environment Waste Management Recycling
South Lakeland District Council,http://opendatacommunities.org/id/district-council/south-lakeland,30/11/2018,Business Support Community Services,Cultural Environmental Regulatory & Planning Services,,CUMBRIA WASTE RECYCLING LTD,03162439,19-11-2018,0000081926,11300,0,Empty recycling banks in 2018/19,Empty recycling banks in 2018/19,Empty recycling banks,182012,Environment Waste Management Recycling
South Lakeland District Council,http://opendatacommunities.org/id/district-council/south-lakeland,30/11/2018,Development Implementation,Cultural Environmental Regulatory & Planning Services,http://opendatacommunities.org/def/concept/finance/sercop/objective/104,CUMBRIAN NEWSPAPERS LIMITED,00002729,26-11-2018,0000081653,300,0,12 Months Advertising in InCumbria,12 Months Advertising in InCumbria,Publicity Marketing,191000,Facilities Advertising
South Lakeland District Council,http://opendatacommunities.org/id/district-council/south-lakeland,30/11/2018,ICT Group,Central Services,,DAISY COMMUNICATIONS LTD,04145329,21-11-2018,0000081959,364.37,0,Daisy Line Rentals,Daisy Line Rentals,Telephones-Rentals,271700,ICT Telecommunications Fixed
South Lakeland District Council,http://opendatacommunities.org/id/district-council/south-lakeland,30/11/2018,ICT Group,Central Services,,DAISY COMMUNICATIONS LTD,04145329,21-11-2018,0000081959,78.6,0,Daisy Line Rentals,Daisy Line Rentals,Telephones-Calls,271700,ICT Telecommunications Fixed
South Lakeland District Council,http://opendatacommunities.org/id/district-council/south-lakeland,30/11/2018,Environment and Housing,Housing Services,,DC Transport,,21-11-2018,0000081955,135,0,Removal costs ,Removal costs ,Homelessness Prevention,361100,Public Transport Haulage
South Lakeland District Council,http://opendatacommunities.org/id/district-council/south-lakeland,30/11/2018,Environment and Housing,Housing Services,,DC Transport,,03-12-2018,0000082200,65,0,Extra costs for removal of Victoria,Extra costs for removal of Victoria,Homelessness Prevention,361100,Public Transport Haulage
South Lakeland District Council,http://opendatacommunities.org/id/district-council/south-lakeland,30/11/2018,Business Support Community Services,Internal Trading Accounts,,DENNIS EAGLE LTD,03794455,05-11-2018,0000081595,400.66,0,Parts,Parts,Transport-Repair & Maintenance,381300,Vehicle Mgt Industrial
South Lakeland District Council,http://opendatacommunities.org/id/district-council/south-lakeland,30/11/2018,Business Support Community Services,Internal Trading Accounts,,DENNIS EAGLE LTD,03794455,05-11-2018,0000081596,263.94,0,Parts,Parts,Transport-Repair & Maintenance,381300,Vehicle Mgt Industrial
South Lakeland District Council,http://opendatacommunities.org/id/district-council/south-lakeland,30/11/2018,Business Support Community Services,Internal Trading Accounts,,DENNIS EAGLE LTD,03794455,19-11-2018,0000081901,499.7,0,Parts,Parts,Transport-Repair & Maintenance,381300,Vehicle Mgt Industrial
South Lakeland District Council,http://opendatacommunities.org/id/district-council/south-lakeland,30/11/2018,Business Support Community Services,Internal Trading Accounts,,DENNIS EAGLE LTD,03794455,19-11-2018,0000081903,440.99,0,Parts,Parts,Transport-Repair & Maintenance,381300,Vehicle Mgt Industrial
South Lakeland District Council,http://opendatacommunities.org/id/district-council/south-lakeland,30/11/2018,Business Support Community Services,Internal Trading Accounts,,DENNIS EAGLE LTD,03794455,21-11-2018,0000081969,240.3,0,Parts,Parts,Transport-Repair & Maintenance,381300,Vehicle Mgt Industrial
South Lakeland District Council,http://opendatacommunities.org/id/district-council/south-lakeland,30/11/2018,Business Support Community Services,Internal Trading Accounts,,DENNIS EAGLE LTD,03794455,26-11-2018,0000082023,85.92,0,Parts,Parts,Transport-Repair & Maintenance,381300,Vehicle Mgt Industrial
South Lakeland District Council,http://opendatacommunities.org/id/district-council/south-lakeland,30/11/2018,Business Support Community Services,Internal Trading Accounts,,DENNIS EAGLE LTD,03794455,26-11-2018,0000082028,183.92,0,Parts,Parts,Transport-Repair & Maintenance,381300,Vehicle Mgt Industrial
South Lakeland District Council,http://opendatacommunities.org/id/district-council/south-lakeland,30/11/2018,Business Support Community Services,Internal Trading Accounts,,DENNIS EAGLE LTD,03794455,26-11-2018,0000082035,84.7,0,Parts,Parts,Transport-Repair & Maintenance,381300,Vehicle Mgt Industrial
South Lakeland District Council,http://opendatacommunities.org/id/district-council/south-lakeland,30/11/2018,Business Support Community Services,Internal Trading Accounts,,DENNIS EAGLE LTD,03794455,26-11-2018,0000082036,23.58,0,Parts,Parts,Transport-Repair & Maintenance,381300,Vehicle Mgt Industrial
South Lakeland District Council,http://opendatacommunities.org/id/district-council/south-lakeland,30/11/2018,Environment and Housing,Housing Services,,DOMESTIC APPLIANCE CENTRE,05445116,19-11-2018,0000081940,58,0,Washing machine leak ,Washing machine leak ,Homelessness Prevention,199999,Facilities Not Elsewhere Classified
South Lakeland District Council,http://opendatacommunities.org/id/district-council/south-lakeland,30/11/2018,Lake Wardens,Cultural Environmental Regulatory & Planning Services,http://opendatacommunities.org/def/concept/finance/sercop/objective/104,DOUGLAS GILL INTERNATIOAL LTD,,07-11-2018,0000081661,131.3,0,2 x Pairs of Helmsmans Gloves -,2 x Pairs of Helmsmans Gloves -,Protective Clothing & Uniforms,141000,Clothing Childrens & Adults
South Lakeland District Council,http://opendatacommunities.org/id/district-council/south-lakeland,30/11/2018,Lake Wardens,Cultural Environmental Regulatory & Planning Services,,DOUGLAS GILL INTERNATIOAL LTD,,28-11-2018,0000082155,219.5,0,1 x OS3 (OS31J) Mens Coastal Jacket in,1 x OS3 (OS31J) Mens Coastal Jacket in,Protective Clothing & Uniforms,141000,Clothing Childrens & Adults
South Lakeland District Council,http://opendatacommunities.org/id/district-council/south-lakeland,30/11/2018,Business Support Community Services,Internal Trading Accounts,,DRIVELINE & HYDRAULIC ENGINEERING LTD,05527968,26-11-2018,0000082030,139.13,0,Bearing,Bearing,Transport-Repair & Maintenance,391200,Construction Engineering
South Lakeland District Council,http://opendatacommunities.org/id/district-council/south-lakeland,30/11/2018,Environment and Housing,Housing Services,http://opendatacommunities.org/def/concept/finance/sercop/objective/108,Landlord,,14-11-2018,0000081848,520,0,Monthly rent ,Monthly rent ,Homelessness Prevention,202000,Financial Services Rents
South Lakeland District Council,http://opendatacommunities.org/id/district-council/south-lakeland,30/11/2018,Business Support Community Services,Internal Trading Accounts,,Dundee Tyres Ltd T/A Tyrebin,06949335,19-11-2018,0000081826,149.4,0,Disposals,Disposals,Vehicle - Tyres,182012,Environment Waste Management Recycling
South Lakeland District Council,http://opendatacommunities.org/id/district-council/south-lakeland,30/11/2018,ICT Group,Central Services,http://opendatacommunities.org/def/concept/finance/sercop/objective/102,EDEN DISTRICT COUNCIL,,12-11-2018,0000081181,22500,0,GIS setup and training costs,GIS setup and training costs,Software Maintenance,908000,Public Bodies Council support services
South Lakeland District Council,http://opendatacommunities.org/id/district-council/south-lakeland,30/11/2018,Environment and Housing,Housing Services,,EDEN HOUSING ASSOCIATION LTD,,28-11-2018,0000082133,325,0,Training sessions with Homeless Link -,Training sessions with Homeless Link -,Homelessness Prevention,261400,HR Temporary & Agency Staff
South Lakeland District Council,http://opendatacommunities.org/id/district-council/south-lakeland,30/11/2018,Business Support Community Services,Internal Trading Accounts,,EK MOTOR FACTORS LTD,00838524,05-11-2018,0000081589,5.95,0,Parts,Parts,Transport-Uninsured Damage,381400,Vehicle Mgt Maintenance
South Lakeland District Council,http://opendatacommunities.org/id/district-council/south-lakeland,30/11/2018,Business Support Community Services,Internal Trading Accounts,,EK MOTOR FACTORS LTD,00838524,07-11-2018,0000081617,2.72,0,Parts,Parts,Transport-Repair & Maintenance,381400,Vehicle Mgt Maintenance
South Lakeland District Council,http://opendatacommunities.org/id/district-council/south-lakeland,30/11/2018,Business Support Community Services,Internal Trading Accounts,,EK MOTOR FACTORS LTD,00838524,07-11-2018,0000081618,44.53,0,Parts,Parts,Transport-Repair & Maintenance,381400,Vehicle Mgt Maintenance
South Lakeland District Council,http://opendatacommunities.org/id/district-council/south-lakeland,30/11/2018,Business Support Community Services,Internal Trading Accounts,,EK MOTOR FACTORS LTD,00838524,07-11-2018,0000081619,30.31,0,Parts,Parts,Transport-Repair & Maintenance,381400,Vehicle Mgt Maintenance
South Lakeland District Council,http://opendatacommunities.org/id/district-council/south-lakeland,30/11/2018,Business Support Community Services,Internal Trading Accounts,,EK MOTOR FACTORS LTD,00838524,07-11-2018,0000081672,26.99,0,Parts,Parts,Transport-Repair & Maintenance,381400,Vehicle Mgt Maintenance
South Lakeland District Council,http://opendatacommunities.org/id/district-council/south-lakeland,30/11/2018,Business Support Community Services,Internal Trading Accounts,,EK MOTOR FACTORS LTD,00838524,12-11-2018,0000081765,225.08,0,Parts,Parts,Transport-Repair & Maintenance,381400,Vehicle Mgt Maintenance
South Lakeland District Council,http://opendatacommunities.org/id/district-council/south-lakeland,30/11/2018,Business Support Community Services,Internal Trading Accounts,,EK MOTOR FACTORS LTD,00838524,12-11-2018,0000081767,19.96,0,Parts,Parts,Transport-Repair & Maintenance,381400,Vehicle Mgt Maintenance
South Lakeland District Council,http://opendatacommunities.org/id/district-council/south-lakeland,30/11/2018,Business Support Community Services,Internal Trading Accounts,,EK MOTOR FACTORS LTD,00838524,12-11-2018,0000081770,5.95,0,Parts,Parts,Transport-Uninsured Damage,381400,Vehicle Mgt Maintenance
South Lakeland District Council,http://opendatacommunities.org/id/district-council/south-lakeland,30/11/2018,Business Support Community Services,Internal Trading Accounts,,EK MOTOR FACTORS LTD,00838524,19-11-2018,0000081835,57.42,0,Parts,Parts,Transport-Repair & Maintenance,381400,Vehicle Mgt Maintenance
South Lakeland District Council,http://opendatacommunities.org/id/district-council/south-lakeland,30/11/2018,Business Support Community Services,Internal Trading Accounts,,EK MOTOR FACTORS LTD,00838524,14-11-2018,0000081866,86,0,Parts,Parts,Transport-Repair & Maintenance,381400,Vehicle Mgt Maintenance
South Lakeland District Council,http://opendatacommunities.org/id/district-council/south-lakeland,30/11/2018,Business Support Community Services,Internal Trading Accounts,,EK MOTOR FACTORS LTD,00838524,14-11-2018,0000081867,13.99,0,Parts,Parts,Transport-Repair & Maintenance,381400,Vehicle Mgt Maintenance
South Lakeland District Council,http://opendatacommunities.org/id/district-council/south-lakeland,30/11/2018,Business Support Community Services,Internal Trading Accounts,,EK MOTOR FACTORS LTD,00838524,14-11-2018,0000081870,9.6,0,Parts,Parts,Transport-Repair & Maintenance,381400,Vehicle Mgt Maintenance
South Lakeland District Council,http://opendatacommunities.org/id/district-council/south-lakeland,30/11/2018,Business Support Community Services,Internal Trading Accounts,,EK MOTOR FACTORS LTD,00838524,19-11-2018,0000081908,43,0,Parts,Parts,Transport-Repair & Maintenance,381400,Vehicle Mgt Maintenance
South Lakeland District Council,http://opendatacommunities.org/id/district-council/south-lakeland,30/11/2018,Business Support Community Services,Internal Trading Accounts,,EK MOTOR FACTORS LTD,00838524,19-11-2018,0000081928,11.9,0,Parts,Parts,Transport-Repair & Maintenance,381400,Vehicle Mgt Maintenance
South Lakeland District Council,http://opendatacommunities.org/id/district-council/south-lakeland,30/11/2018,Business Support Community Services,Internal Trading Accounts,,EK MOTOR FACTORS LTD,00838524,21-11-2018,0000081971,5.1,0,Parts,Parts,Transport-Repair & Maintenance,381400,Vehicle Mgt Maintenance
South Lakeland District Council,http://opendatacommunities.org/id/district-council/south-lakeland,30/11/2018,Business Support Community Services,Internal Trading Accounts,,EK MOTOR FACTORS LTD,00838524,26-11-2018,0000082077,270,0,Parts,Parts,Transport-Repair & Maintenance,381400,Vehicle Mgt Maintenance
South Lakeland District Council,http://opendatacommunities.org/id/district-council/south-lakeland,30/11/2018,Business Support Community Services,Internal Trading Accounts,,EK MOTOR FACTORS LTD,00838524,26-11-2018,0000082078,-50,0,Parts,Parts,Transport-Repair & Maintenance,381400,Vehicle Mgt Maintenance
South Lakeland District Council,http://opendatacommunities.org/id/district-council/south-lakeland,30/11/2018,Business Support Community Services,Internal Trading Accounts,,EK MOTOR FACTORS LTD,00838524,28-11-2018,0000082123,46.7,0,Parts,Parts,Job Consumables,381400,Vehicle Mgt Maintenance
South Lakeland District Council,http://opendatacommunities.org/id/district-council/south-lakeland,30/11/2018,Human Resources,Central Services,http://opendatacommunities.org/def/concept/finance/sercop/objective/102,EMA Business,,14-11-2018,0000081800,260,0,HR Consultancy Services Sept 18,HR Consultancy Services Sept 18,Other Consultants,261520,Human Resources Training
South Lakeland District Council,http://opendatacommunities.org/id/district-council/south-lakeland,30/11/2018,Business Support Community Services,Cultural Environmental Regulatory & Planning Services,,Enevo UK Ltd,9347391,19-11-2018,0000081925,416,0,Monthly subscriptions 2018/19,Monthly subscriptions 2018/19,Equipment Furniture Materials,261517,ICT-Consultancy
South Lakeland District Council,http://opendatacommunities.org/id/district-council/south-lakeland,30/11/2018,Development Implementation,Central Services,http://opendatacommunities.org/def/concept/finance/sercop/objective/102,ENVIROFIRST LTD,05999123,12-11-2018,0000081606,170.4,0,Lowther Street Wheelie Bin Mixed,Lowther Street Wheelie Bin Mixed,Allocation Refuse Costs,182012,Environment Waste Management Recycling
South Lakeland District Council,http://opendatacommunities.org/id/district-council/south-lakeland,30/11/2018,Kendal Town Hall,Cultural Environmental Regulatory & Planning Services,,FARRERS,09023215,03-12-2018,0000082178,82.71,0,FARRERS FAIR TRADE HOT CHOCOLATE - PER,FARRERS FAIR TRADE HOT CHOCOLATE - PER,Catering Supplies,111200,Catering Food & Beverages
South Lakeland District Council,http://opendatacommunities.org/id/district-council/south-lakeland,30/11/2018,Business Support Community Services,Internal Trading Accounts,,FAUN ZOELLER (UK) LTD,00751804,19-11-2018,0000081837,219.35,0,Valves,Valves,Transport-Repair & Maintenance,381400,Vehicle Mgt Maintenance
South Lakeland District Council,http://opendatacommunities.org/id/district-council/south-lakeland,30/11/2018,Business Support Community Services,Internal Trading Accounts,,FAUN ZOELLER (UK) LTD,00751804,21-11-2018,0000081970,1542.05,0,Parts,Parts,Transport-Repair & Maintenance,381400,Vehicle Mgt Maintenance
South Lakeland District Council,http://opendatacommunities.org/id/district-council/south-lakeland,30/11/2018,Leisure and Wellbeing,Cultural Environmental Regulatory & Planning Services,http://opendatacommunities.org/def/concept/finance/sercop/objective/104,Fenland Leisure,,19-11-2018,0000081408,524.6,0,S8 - Gullwings Seesaw Seat c/w Fixing,S8 - Gullwings Seesaw Seat c/w Fixing,Playground Equipment,331100,Sports & Play Equipment- Playground Main
South Lakeland District Council,http://opendatacommunities.org/id/district-council/south-lakeland,30/11/2018,Environment and Housing,Housing Services,,Landlord,,19-11-2018,0000081951,890,0,Monthly rent ,Monthly rent ,Homelessness Prevention,250000,Housing
South Lakeland District Council,http://opendatacommunities.org/id/district-council/south-lakeland,30/11/2018,Environment and Housing,Housing Services,,Landlord,,28-11-2018,0000082148,410,0,Monthly rent ,Monthly rent ,Homelessness Prevention,250000,Housing
South Lakeland District Council,http://opendatacommunities.org/id/district-council/south-lakeland,30/11/2018,Human Resources,Central Services,http://opendatacommunities.org/def/concept/finance/sercop/objective/102,FORBES SOLICITORS,,12-11-2018,0000081723,268.5,0,Invoice Number : 507506,Invoice Number : 507506,Legal & Counsels Fees,281300,Legal Services Legal Opinion
South Lakeland District Council,http://opendatacommunities.org/id/district-council/south-lakeland,30/11/2018,Human Resources,Central Services,http://opendatacommunities.org/def/concept/finance/sercop/objective/102,FORBES SOLICITORS,,12-11-2018,0000081724,1507,0,Invoice Number : 507507,Invoice Number : 507507,Legal & Counsels Fees,281300,Legal Services Legal Opinion
South Lakeland District Council,http://opendatacommunities.org/id/district-council/south-lakeland,30/11/2018,Human Resources,Central Services,http://opendatacommunities.org/def/concept/finance/sercop/objective/102,FORBES SOLICITORS,,12-11-2018,0000081756,2376,0,Invoice number: 509388,Invoice number: 509388,Legal & Counsels Fees,281300,Legal Services Legal Opinion
South Lakeland District Council,http://opendatacommunities.org/id/district-council/south-lakeland,30/11/2018,Financial Services,Central Services,http://opendatacommunities.org/def/concept/finance/sercop/objective/102,Fred Harvey Associates,,12-11-2018,0000081784,300,0,EU Procurement Support 2018/19,EU Procurement Support 2018/19,Other Consultants,150000,Consultancy
South Lakeland District Council,http://opendatacommunities.org/id/district-council/south-lakeland,30/11/2018,Business Support Community Services,Internal Trading Accounts,,FST CONSUMABLES LTD,01342012,12-11-2018,0000081769,68.89,0,Consumables 2018/19,Consumables 2018/19,Job Consumables,101600,Building Hand Tools
South Lakeland District Council,http://opendatacommunities.org/id/district-council/south-lakeland,30/11/2018,Business Support Community Services,Internal Trading Accounts,,FUCHS LUBRICANTS (UK) PLC,02412689,07-11-2018,0000081677,1844.82,0,Oil,Oil,Transport-Repair & Maintenance,381100,Vehicle Mgt Fuel
South Lakeland District Council,http://opendatacommunities.org/id/district-council/south-lakeland,30/11/2018,Business Support Community Services,Internal Trading Accounts,,FURNESS FLUID POWER LTD,05675728,05-11-2018,0000081043,56.03,0,Repairs,Repairs,Transport-Repair & Maintenance,260000,HR
South Lakeland District Council,http://opendatacommunities.org/id/district-council/south-lakeland,30/11/2018,Business Support Community Services,Internal Trading Accounts,,FURNESS FLUID POWER LTD,05675728,12-11-2018,0000081682,58.25,0,Repair hose,Repair hose,Transport-Repair & Maintenance,260000,HR
South Lakeland District Council,http://opendatacommunities.org/id/district-council/south-lakeland,30/11/2018,Environment and Housing,Housing Services,http://opendatacommunities.org/def/concept/finance/sercop/objective/108,G B BURROW & SON,,07-11-2018,0000081708,132,0,Storage costs ,Storage costs ,Homelessness Prevention,192300,Facilities Storage
South Lakeland District Council,http://opendatacommunities.org/id/district-council/south-lakeland,30/11/2018,Environment and Housing,Housing Services,http://opendatacommunities.org/def/concept/finance/sercop/objective/108,G B BURROW & SON,,07-11-2018,0000081709,104,0,Storage costs ,Storage costs ,Homelessness Prevention,192300,Facilities Storage
South Lakeland District Council,http://opendatacommunities.org/id/district-council/south-lakeland,30/11/2018,Environment and Housing,Housing Services,http://opendatacommunities.org/def/concept/finance/sercop/objective/108,G B BURROW & SON,,07-11-2018,0000081710,44,0,Storage costs ,Storage costs ,Homelessness Prevention,192300,Facilities Storage
South Lakeland District Council,http://opendatacommunities.org/id/district-council/south-lakeland,30/11/2018,Westmorland Centre Parking Office,Highways & Transport Services,,G&D CURRENCY TECH LTD,04376601,21-11-2018,0000082006,395,0,Maintenance support on the KEC coin,Maintenance support on the KEC coin,Equipment-Service Contracts,151200,Consultancy Efficiency
South Lakeland District Council,http://opendatacommunities.org/id/district-council/south-lakeland,30/11/2018,Business Support Community Services,Internal Trading Accounts,,GARWOOD EUROPE LTD,04333504,19-11-2018,0000081361,67.34,0,Guards,Guards,Transport-Repair & Maintenance,182011,Environment Waste Management Consumables
South Lakeland District Council,http://opendatacommunities.org/id/district-council/south-lakeland,30/11/2018,Business Support Community Services,Internal Trading Accounts,,GARWOOD EUROPE LTD,04333504,14-11-2018,0000081362,759.09,0,Guards,Guards,Transport-Repair & Maintenance,182011,Environment Waste Management Consumables
South Lakeland District Council,http://opendatacommunities.org/id/district-council/south-lakeland,30/11/2018,Business Support Community Services,Housing Services,http://opendatacommunities.org/def/concept/finance/sercop/objective/108,GATES TRAVEL SERVICE,,19-11-2018,0000081304,13.2,0,Travel warrant Grange-Over-Sands to,Travel warrant Grange-Over-Sands to,Homelessness Prevention,261600,HR Travel & Subsistence
South Lakeland District Council,http://opendatacommunities.org/id/district-council/south-lakeland,30/11/2018,Business Support Community Services,Housing Services,http://opendatacommunities.org/def/concept/finance/sercop/objective/108,GATES TRAVEL SERVICE,,19-11-2018,0000081527,11.8,0,Travel warrant Grange to Barrow return,Travel warrant Grange to Barrow return,Homelessness Prevention,261600,HR Travel & Subsistence
South Lakeland District Council,http://opendatacommunities.org/id/district-council/south-lakeland,30/11/2018,Development Implementation,Central Services,http://opendatacommunities.org/def/concept/finance/sercop/objective/102,GATES TRAVEL SERVICE,,19-11-2018,0000081725,155.4,0,Rail travel ,Rail travel ,Public Transport,261600,HR Travel & Subsistence
South Lakeland District Council,http://opendatacommunities.org/id/district-council/south-lakeland,30/11/2018,Business Support Community Services,Housing Services,,GATES TRAVEL SERVICE,,21-11-2018,0000081909,21.4,0,Travel warrant,Travel warrant,Homelessness Prevention,261600,HR Travel & Subsistence
South Lakeland District Council,http://opendatacommunities.org/id/district-council/south-lakeland,30/11/2018,Development Implementation,Central Services,,GATES TRAVEL SERVICE,,28-11-2018,0000081986,171,0,Rail travel ,Rail travel ,Public Transport,261600,HR Travel & Subsistence
South Lakeland District Council,http://opendatacommunities.org/id/district-council/south-lakeland,30/11/2018,Business Support Community Services,Housing Services,,GATES TRAVEL SERVICE,,26-11-2018,0000082013,16,0,Travel warrant Morecambe to Kendal,Travel warrant Morecambe to Kendal,Homelessness Prevention,261600,HR Travel & Subsistence
South Lakeland District Council,http://opendatacommunities.org/id/district-council/south-lakeland,30/11/2018,Business Support Community Services,Housing Services,,GATES TRAVEL SERVICE,,28-11-2018,0000082081,20.9,0,Travel warrant Kendal to Morecambe,Travel warrant Kendal to Morecambe,Homelessness Prevention,261600,HR Travel & Subsistence
South Lakeland District Council,http://opendatacommunities.org/id/district-council/south-lakeland,30/11/2018,Business Support Community Services,Housing Services,,GATES TRAVEL SERVICE,,03-12-2018,0000082125,20.9,0,Travel warrant Kendal - Morecambe return,Travel warrant Kendal - Morecambe return,Homelessness Prevention,261600,HR Travel & Subsistence
South Lakeland District Council,http://opendatacommunities.org/id/district-council/south-lakeland,30/11/2018,Environment and Housing,Housing Services,,GATES TRAVEL SERVICE,,28-11-2018,0000082140,17.9,0,Travel warrant Kendal to Brampton,Travel warrant Kendal to Brampton,Homelessness Prevention,261600,HR Travel & Subsistence
South Lakeland District Council,http://opendatacommunities.org/id/district-council/south-lakeland,30/11/2018,Business Support Community Services,Cultural Environmental Regulatory & Planning Services,http://opendatacommunities.org/def/concept/finance/sercop/objective/104,GB Sign Solutions Ltd,09609330,05-11-2018,0000081592,113.5,0,Street nameplates,Street nameplates,Fixtures & Fittings,102400,Building Signage
South Lakeland District Council,http://opendatacommunities.org/id/district-council/south-lakeland,30/11/2018,Business Support Community Services,Cultural Environmental Regulatory & Planning Services,http://opendatacommunities.org/def/concept/finance/sercop/objective/104,GB Sign Solutions Ltd,09609330,05-11-2018,0000081593,186.5,0,Street nameplates,Street nameplates,Fixtures & Fittings,102400,Building Signage
South Lakeland District Council,http://opendatacommunities.org/id/district-council/south-lakeland,30/11/2018,Business Support Community Services,Cultural Environmental Regulatory & Planning Services,http://opendatacommunities.org/def/concept/finance/sercop/objective/104,GB Sign Solutions Ltd,09609330,19-11-2018,0000081612,1358.69,0,Street nameplates,Street nameplates,Fixtures & Fittings,102400,Building Signage
South Lakeland District Council,http://opendatacommunities.org/id/district-council/south-lakeland,30/11/2018,Business Support Community Services,Cultural Environmental Regulatory & Planning Services,,GB Sign Solutions Ltd,09609330,19-11-2018,0000081927,65,0,Street nameplates,Street nameplates,Fixtures & Fittings,102400,Building Signage
South Lakeland District Council,http://opendatacommunities.org/id/district-council/south-lakeland,30/11/2018,Business Support Community Services,Cultural Environmental Regulatory & Planning Services,,GB Sign Solutions Ltd,09609330,21-11-2018,0000081978,116.75,0,Street nameplates,Street nameplates,Fixtures & Fittings,102400,Building Signage
South Lakeland District Council,http://opendatacommunities.org/id/district-council/south-lakeland,30/11/2018,Policy & Partnerships,Central Services,http://opendatacommunities.org/def/concept/finance/sercop/objective/102,GBS Corporate Training,06452080,19-11-2018,0000081789,1100,0,Creative Problem Solving Training 17th,Creative Problem Solving Training 17th,Training Costs,261500,HR Training & Conferences
South Lakeland District Council,http://opendatacommunities.org/id/district-council/south-lakeland,30/11/2018,Business Support Community Services,Internal Trading Accounts,,Gemco Service Limited,03514486,07-11-2018,0000081676,120,0,test van,test van,Transport-Repair & Maintenance,381400,Vehicle Mgt Maintenance
South Lakeland District Council,http://opendatacommunities.org/id/district-council/south-lakeland,30/11/2018,Printing Section,Central Services,,GLENDALE PRESENTATION & GRAPHICS,05645509,26-11-2018,0000082041,3200,0,Plockmatic 104 SquareFold,Plockmatic 104 SquareFold,Equipment-Service Contracts,191100,Facilities Design & Photography
South Lakeland District Council,http://opendatacommunities.org/id/district-council/south-lakeland,30/11/2018,Development Implementation,Cultural Environmental Regulatory & Planning Services,,GRANGE OVER SANDS TOWN COUNCIL,,26-11-2018,0000082107,80,0,Hire of Victoria Hall - Room 4 3rd May,Hire of Victoria Hall - Room 4 3rd May,Economic Development Fund,908000,Public Bodies Council support services
South Lakeland District Council,http://opendatacommunities.org/id/district-council/south-lakeland,30/11/2018,Democratic and Member Services,Central Services,http://opendatacommunities.org/def/concept/finance/sercop/objective/102,GRANTS- MISCELLANEOUS,,07-11-2018,0000081534,1000,0,Locality donation to fund the repair of,Locality donation to fund the repair of,Contributions to Organisations,201700,Financial Services Grants
South Lakeland District Council,http://opendatacommunities.org/id/district-council/south-lakeland,30/11/2018,Democratic and Member Services,Central Services,http://opendatacommunities.org/def/concept/finance/sercop/objective/102,GRANTS- MISCELLANEOUS,,07-11-2018,0000081538,250,0,Locality donation to fund  new,Locality donation to fund  new,Contributions to Organisations,201700,Financial Services Grants
South Lakeland District Council,http://opendatacommunities.org/id/district-council/south-lakeland,30/11/2018,Democratic and Member Services,Central Services,http://opendatacommunities.org/def/concept/finance/sercop/objective/102,GRANTS- MISCELLANEOUS,,07-11-2018,0000081695,300,0,locality donation to support the X112,locality donation to support the X112,Contributions to Organisations,201700,Financial Services Grants
South Lakeland District Council,http://opendatacommunities.org/id/district-council/south-lakeland,30/11/2018,Democratic and Member Services,Central Services,,GRANTS- MISCELLANEOUS,,21-11-2018,0000082005,180,0,Locality donation to fund extra,Locality donation to fund extra,Contributions to Organisations,201700,Financial Services Grants
South Lakeland District Council,http://opendatacommunities.org/id/district-council/south-lakeland,30/11/2018,Policy & Partnerships,Culture and Related Serv,,GRANTS- MISCELLANEOUS,,26-11-2018,0000082042,10000,0,Cycling Project- South Lakes Wheels for,Cycling Project- South Lakes Wheels for,Grant Payments,201700,Financial Services Grants
South Lakeland District Council,http://opendatacommunities.org/id/district-council/south-lakeland,30/11/2018,Policy & Partnerships,SLDC as Agent,,GRANTS- MISCELLANEOUS,,26-11-2018,0000082050,400,0,SLEDP Project,SLEDP Project,General,201700,Financial Services Grants
South Lakeland District Council,http://opendatacommunities.org/id/district-council/south-lakeland,30/11/2018,Policy & Partnerships,Culture and Related Serv,,GRANTS- MISCELLANEOUS,,28-11-2018,0000082162,10000,0,B4RN Project Funding,B4RN Project Funding,Grant Payments,201700,Financial Services Grants
South Lakeland District Council,http://opendatacommunities.org/id/district-council/south-lakeland,30/11/2018,Policy & Partnerships,Culture and Related Serv,,GRANTS- MISCELLANEOUS,,03-12-2018,0000082225,2500,0,Windermere Town Council- Restoration,Windermere Town Council- Restoration,Grant Payments,201700,Financial Services Grants
South Lakeland District Council,http://opendatacommunities.org/id/district-council/south-lakeland,30/11/2018,Cemeteries Office,Cultural Environmental Regulatory & Planning Services,http://opendatacommunities.org/def/concept/finance/sercop/objective/104,Grasmere Parochial Church Council,,07-11-2018,0000081703,540,0,Annual Grant 2018/19 towards,Annual Grant 2018/19 towards,Grants to Burial Authorities,121000,Cemetery & Crematorium Burial & Crem
South Lakeland District Council,http://opendatacommunities.org/id/district-council/south-lakeland,30/11/2018,Financial Services,Central Services,,GREATER MANCHESTER PENSION FUND,,28-11-2018,0000082083,11285.98,0,18/19 Contribution for Past Pensions,18/19 Contribution for Past Pensions,Pensions Increase Act,908999,Public Bodies Not Elsewhere Classified
South Lakeland District Council,http://opendatacommunities.org/id/district-council/south-lakeland,30/11/2018,Leisure and Wellbeing,Cultural Environmental Regulatory & Planning Services,http://opendatacommunities.org/def/concept/finance/sercop/objective/104,Greaves Tree Services,,07-11-2018,0000081550,50,0,"Sunnyside & Canal Towpath, Kendal","Sunnyside & Canal Towpath, Kendal",Arboricultural Work,241600,Horticultural Trees & Shrubs
South Lakeland District Council,http://opendatacommunities.org/id/district-council/south-lakeland,30/11/2018,Leisure and Wellbeing,Cultural Environmental Regulatory & Planning Services,http://opendatacommunities.org/def/concept/finance/sercop/objective/104,Greaves Tree Services,,05-11-2018,0000081552,300,0,"Sunnyside & Canal Towpath, Kendal","Sunnyside & Canal Towpath, Kendal",Arboricultural Work,241600,Horticultural Trees & Shrubs
South Lakeland District Council,http://opendatacommunities.org/id/district-council/south-lakeland,30/11/2018,Leisure and Wellbeing,Cultural Environmental Regulatory & Planning Services,http://opendatacommunities.org/def/concept/finance/sercop/objective/104,Greaves Tree Services,,07-11-2018,0000081553,300,0,"Sunnyside & Canal Towpath, Kendal","Sunnyside & Canal Towpath, Kendal",Arboricultural Work,241600,Horticultural Trees & Shrubs
South Lakeland District Council,http://opendatacommunities.org/id/district-council/south-lakeland,30/11/2018,Leisure and Wellbeing,Cultural Environmental Regulatory & Planning Services,http://opendatacommunities.org/def/concept/finance/sercop/objective/104,Greaves Tree Services,,07-11-2018,0000081554,750,0,Claife Avenue Windermere Fell marked,Claife Avenue Windermere Fell marked,Arboricultural Work,241600,Horticultural Trees & Shrubs
South Lakeland District Council,http://opendatacommunities.org/id/district-council/south-lakeland,30/11/2018,Leisure and Wellbeing,Cultural Environmental Regulatory & Planning Services,http://opendatacommunities.org/def/concept/finance/sercop/objective/104,Greaves Tree Services,,07-11-2018,0000081555,460,0,Claife Avenue Windermere Fell marked,Claife Avenue Windermere Fell marked,Arboricultural Work,241600,Horticultural Trees & Shrubs
South Lakeland District Council,http://opendatacommunities.org/id/district-council/south-lakeland,30/11/2018,Leisure and Wellbeing,Cultural Environmental Regulatory & Planning Services,http://opendatacommunities.org/def/concept/finance/sercop/objective/104,Greaves Tree Services,,28-11-2018,0000081560,50,0,Claife Avenue Windermere Fell marked,Claife Avenue Windermere Fell marked,Arboricultural Work,241600,Horticultural Trees & Shrubs
South Lakeland District Council,http://opendatacommunities.org/id/district-council/south-lakeland,30/11/2018,Leisure and Wellbeing,Cultural Environmental Regulatory & Planning Services,http://opendatacommunities.org/def/concept/finance/sercop/objective/104,Greaves Tree Services,,07-11-2018,0000081561,75,0,Claife Avenue Windermere Fell marked,Claife Avenue Windermere Fell marked,Arboricultural Work,241600,Horticultural Trees & Shrubs
South Lakeland District Council,http://opendatacommunities.org/id/district-council/south-lakeland,30/11/2018,Leisure and Wellbeing,Cultural Environmental Regulatory & Planning Services,,Greaves Tree Services,,21-11-2018,0000081963,120,0,"Pruning ash tree at Parr Street, Kendal","Pruning ash tree at Parr Street, Kendal",Arboricultural Work,241600,Horticultural Trees & Shrubs
South Lakeland District Council,http://opendatacommunities.org/id/district-council/south-lakeland,30/11/2018,Leisure and Wellbeing,Cultural Environmental Regulatory & Planning Services,,Greaves Tree Services,,21-11-2018,0000081965,400,0,Claife Avenue Windermere Fell marked,Claife Avenue Windermere Fell marked,Arboricultural Work,241600,Horticultural Trees & Shrubs
South Lakeland District Council,http://opendatacommunities.org/id/district-council/south-lakeland,30/11/2018,Business Support Community Services,Cultural Environmental Regulatory & Planning Services,,GREENCHEM SOLUTIONS LTD,05175801,21-11-2018,0000081975,449.75,0,AdBlue,AdBlue,AD - Blue,189999,Environmental Services Not Elsewhere Cla
South Lakeland District Council,http://opendatacommunities.org/id/district-council/south-lakeland,30/11/2018,Business Support Community Services,Internal Trading Accounts,,GREENCHEM SOLUTIONS LTD,05175801,28-11-2018,0000082139,487,0,AdBlue,AdBlue,Equipment Furniture Materials,189999,Environmental Services Not Elsewhere Cla
South Lakeland District Council,http://opendatacommunities.org/id/district-council/south-lakeland,30/11/2018,Business Support Community Services,Cultural Environmental Regulatory & Planning Services,http://opendatacommunities.org/def/concept/finance/sercop/objective/104,Greenwich Leisure Ltd,,07-11-2018,0000081646,55829,0,Leisure Management Fees,Leisure Management Fees,Leisure Partner Paymts,291400,Arts & Leisure Services Sport & Fitness
South Lakeland District Council,http://opendatacommunities.org/id/district-council/south-lakeland,30/11/2018,Community & Housing Group,Housing Services,http://opendatacommunities.org/def/concept/finance/sercop/objective/108,GROWING CONCERNS LTD,,19-11-2018,0000081836,1583.9,0,For Handy Person Service 2018/19,For Handy Person Service 2018/19,Handyperson,391200,Construction Engineering
South Lakeland District Council,http://opendatacommunities.org/id/district-council/south-lakeland,30/11/2018,Leisure and Wellbeing,Cultural Environmental Regulatory & Planning Services,,HAGS-SMP Ltd,00908021,03-12-2018,0000082222,1500,0,"grolly springer, piggy springer and","grolly springer, piggy springer and",Playground Equipment,331000,Sports Playground Equipment
South Lakeland District Council,http://opendatacommunities.org/id/district-council/south-lakeland,30/11/2018,Social Enterprise Admin,Cultural Environmental Regulatory & Planning Services,,HAGS-SMP Ltd,00908021,03-12-2018,0000082223,3065.28,0,To supply and install additional,To supply and install additional,Play Areas Maintenance,331000,Sports Playground Equipment
South Lakeland District Council,http://opendatacommunities.org/id/district-council/south-lakeland,30/11/2018,Business Support Community Services,Internal Trading Accounts,,HAKO MACHINES LIMITED,01414225,05-11-2018,0000081586,979.8,0,6 x compact sweepers,6 x compact sweepers,Transport-Repair & Maintenance,131000,Cleaning & Janitorial Cleaning Materials
South Lakeland District Council,http://opendatacommunities.org/id/district-council/south-lakeland,30/11/2018,Business Support Community Services,Internal Trading Accounts,,HAKO MACHINES LIMITED,01414225,07-11-2018,0000081675,587.5,0,6 x compact sweepers,6 x compact sweepers,Transport-Repair & Maintenance,131000,Cleaning & Janitorial Cleaning Materials
South Lakeland District Council,http://opendatacommunities.org/id/district-council/south-lakeland,30/11/2018,Business Support Community Services,Internal Trading Accounts,,HAKO MACHINES LIMITED,01414225,26-11-2018,0000082073,92.15,0,Hose,Hose,Transport-Repair & Maintenance,131000,Cleaning & Janitorial Cleaning Materials
South Lakeland District Council,http://opendatacommunities.org/id/district-council/south-lakeland,30/11/2018,Business Support Community Services,Internal Trading Accounts,,HAKO MACHINES LIMITED,01414225,26-11-2018,0000082074,407.94,0,Hose,Hose,Transport-Repair & Maintenance,131000,Cleaning & Janitorial Cleaning Materials
South Lakeland District Council,http://opendatacommunities.org/id/district-council/south-lakeland,30/11/2018,Business Support Community Services,Internal Trading Accounts,,Harry Park Tyres Ltd,08131208,12-11-2018,0000081768,25,0,Tyres,Tyres,Vehicle - Tyres,381500,Vehicle Mgt Parts
South Lakeland District Council,http://opendatacommunities.org/id/district-council/south-lakeland,30/11/2018,Business Support Community Services,Internal Trading Accounts,,Harry Park Tyres Ltd,08131208,14-11-2018,0000081869,1440,0,Tyres,Tyres,Vehicle - Tyres,381500,Vehicle Mgt Parts
South Lakeland District Council,http://opendatacommunities.org/id/district-council/south-lakeland,30/11/2018,Business Support Community Services,Internal Trading Accounts,,Harry Park Tyres Ltd,08131208,19-11-2018,0000081907,1650,0,Tyres,Tyres,Vehicle - Tyres,381500,Vehicle Mgt Parts
South Lakeland District Council,http://opendatacommunities.org/id/district-council/south-lakeland,30/11/2018,Development Implementation,Central Services,http://opendatacommunities.org/def/concept/finance/sercop/objective/102,HEATONS MBI,,19-11-2018,0000081804,420,0,3 x Task Chairs (M207HA) Phoenix Havana,3 x Task Chairs (M207HA) Phoenix Havana,Other Consultants,211200,Furniture & Soft Furn Office Furniture
South Lakeland District Council,http://opendatacommunities.org/id/district-council/south-lakeland,30/11/2018,Development Implementation,Central Services,http://opendatacommunities.org/def/concept/finance/sercop/objective/102,HEATONS MBI,,19-11-2018,0000081805,280,0,2 x Task Chair (M207HA Phoenix Havana,2 x Task Chair (M207HA Phoenix Havana,Equipment Furniture Materials,211200,Furniture & Soft Furn Office Furniture
South Lakeland District Council,http://opendatacommunities.org/id/district-council/south-lakeland,30/11/2018,Development Implementation,Cultural Environmental Regulatory & Planning Services,http://opendatacommunities.org/def/concept/finance/sercop/objective/104,Helen Moriarty,,12-11-2018,0000081762,1359.38,0,Project Management Officer for,Project Management Officer for,Other Consultants,151000,Consultancy Business
South Lakeland District Council,http://opendatacommunities.org/id/district-council/south-lakeland,30/11/2018,Democratic and Member Services,Central Services,http://opendatacommunities.org/def/concept/finance/sercop/objective/102,HELSINGTON PARISH COUNCIL,,12-11-2018,0000081754,300,0,locality donation to fund replaceing,locality donation to fund replaceing,Contributions to Organisations,908000,Public Bodies Council support services
South Lakeland District Council,http://opendatacommunities.org/id/district-council/south-lakeland,30/11/2018,Revenues and Benefits,Central Services,http://opendatacommunities.org/def/concept/finance/sercop/objective/102,HER MAJESTY'S COURTS & TRIBUNAL SERVICE,,07-11-2018,0000081652,287,0,2018-19 C Tax Liability Orders,2018-19 C Tax Liability Orders,Court Costs,908001,Public Bodies Other Public Bodies
South Lakeland District Council,http://opendatacommunities.org/id/district-council/south-lakeland,30/11/2018,Democratic and Member Services,Central Services,,HEVERSHAM PARISH COUNCIL,,19-11-2018,0000081915,350,0,locality donation to fund towards a,locality donation to fund towards a,Contributions to Organisations,908000,Public Bodies Council support services
South Lakeland District Council,http://opendatacommunities.org/id/district-council/south-lakeland,30/11/2018,Policy & Partnerships,Cultural Environmental Regulatory & Planning Services,,HIGHLIGHTS PRODUCTIONS LTD,,26-11-2018,0000082099,3500,0,Strategic Cultural Partnership grant,Strategic Cultural Partnership grant,Grants & Contribut to Vol Orga,291400,Arts & Leisure Services Sport & Fitness
South Lakeland District Council,http://opendatacommunities.org/id/district-council/south-lakeland,30/11/2018,Business Support Community Services,Housing Services,http://opendatacommunities.org/def/concept/finance/sercop/objective/108,HOME GROUP LTD,IP22981R,12-11-2018,0000081749,461.27,0,Rent payment,Rent payment,Homelessness Prevention,250000,Housing
South Lakeland District Council,http://opendatacommunities.org/id/district-council/south-lakeland,30/11/2018,Business Support Community Services,Internal Trading Accounts,,HYDRAIR TRUCK & TRAILER PARTS LTD,,14-11-2018,0000081797,14.73,0,Parts,Parts,Transport-Repair & Maintenance,381500,Vehicle Mgt Parts
South Lakeland District Council,http://opendatacommunities.org/id/district-council/south-lakeland,30/11/2018,Business Support Community Services,Internal Trading Accounts,,HYDRAIR TRUCK & TRAILER PARTS LTD,,19-11-2018,0000081906,47.7,0,Parts,Parts,Transport-Repair & Maintenance,381500,Vehicle Mgt Parts
South Lakeland District Council,http://opendatacommunities.org/id/district-council/south-lakeland,30/11/2018,Business Support Community Services,Internal Trading Accounts,,HYDRAIR TRUCK & TRAILER PARTS LTD,,26-11-2018,0000082024,269.22,0,Parts,Parts,Transport-Repair & Maintenance,381500,Vehicle Mgt Parts
South Lakeland District Council,http://opendatacommunities.org/id/district-council/south-lakeland,30/11/2018,Business Support Community Services,Internal Trading Accounts,,HYDRAIR TRUCK & TRAILER PARTS LTD,,26-11-2018,0000082026,189.56,0,Parts,Parts,Transport-Repair & Maintenance,381500,Vehicle Mgt Parts
South Lakeland District Council,http://opendatacommunities.org/id/district-council/south-lakeland,30/11/2018,Business Support Community Services,Internal Trading Accounts,,HYDRAIR TRUCK & TRAILER PARTS LTD,,26-11-2018,0000082027,57.9,0,Parts,Parts,Transport-Repair & Maintenance,381500,Vehicle Mgt Parts
South Lakeland District Council,http://opendatacommunities.org/id/district-council/south-lakeland,30/11/2018,Business Support Community Services,Internal Trading Accounts,,HYDRAIR TRUCK & TRAILER PARTS LTD,,26-11-2018,0000082029,360.35,0,Parts,Parts,Transport-Repair & Maintenance,381500,Vehicle Mgt Parts
South Lakeland District Council,http://opendatacommunities.org/id/district-council/south-lakeland,30/11/2018,Business Support Community Services,Internal Trading Accounts,,HYDRAIR TRUCK & TRAILER PARTS LTD,,26-11-2018,0000082033,157.11,0,Parts,Parts,Transport-Repair & Maintenance,381500,Vehicle Mgt Parts
South Lakeland District Council,http://opendatacommunities.org/id/district-council/south-lakeland,30/11/2018,Business Support Community Services,Internal Trading Accounts,,HYDRAIR TRUCK & TRAILER PARTS LTD,,26-11-2018,0000082034,346.67,0,Parts,Parts,Transport-Repair & Maintenance,381500,Vehicle Mgt Parts
South Lakeland District Council,http://opendatacommunities.org/id/district-council/south-lakeland,30/11/2018,Policy & Partnerships,Central Services,http://opendatacommunities.org/def/concept/finance/sercop/objective/102,INFORMATION COMMISSIONERS OFFICE,,12-11-2018,0000081761,2900,0,Data Protection Fee Renewal 2018/19 for,Data Protection Fee Renewal 2018/19 for,Subscriptions to Associations,202100,Financial Services Subscriptions
South Lakeland District Council,http://opendatacommunities.org/id/district-council/south-lakeland,30/11/2018,ICT Group,Central Services,http://opendatacommunities.org/def/concept/finance/sercop/objective/102,Insight Direct (Uk) Ltd,2579852,07-11-2018,0000081382,25200,0,Managed Backup and DR Contract (4th,Managed Backup and DR Contract (4th,Private Contractos gen,271200,ICT Hardware
South Lakeland District Council,http://opendatacommunities.org/id/district-council/south-lakeland,30/11/2018,ICT Group,Central Services,http://opendatacommunities.org/def/concept/finance/sercop/objective/102,Insight Direct (Uk) Ltd,2579852,12-11-2018,0000081549,1136.7,0,"BenQ BL2405HT - LED monitor - 24""","BenQ BL2405HT - LED monitor - 24""",Computer-Supplies,271200,ICT Hardware
South Lakeland District Council,http://opendatacommunities.org/id/district-council/south-lakeland,30/11/2018,Development Implementation,Central Services,http://opendatacommunities.org/def/concept/finance/sercop/objective/102,INSTITUTION OF ECONOMIC DEVELOPMENT,,19-11-2018,0000081855,498,0,I Hl and G C to,I Hl and G C to,Training Costs,202100,Financial Services Subscriptions
South Lakeland District Council,http://opendatacommunities.org/id/district-council/south-lakeland,30/11/2018,Business Support Community Services,Internal Trading Accounts,,J R RICHARDSON LTD,02225792,26-11-2018,0000082079,237.59,0,Vehicle washing consumables,Vehicle washing consumables,Job Consumables,381500,Vehicle Mgt Parts
South Lakeland District Council,http://opendatacommunities.org/id/district-council/south-lakeland,30/11/2018,Leisure and Wellbeing,Cultural Environmental Regulatory & Planning Services,http://opendatacommunities.org/def/concept/finance/sercop/objective/104,J S Cleaning Services,,07-11-2018,0000081637,75,0,For weekly cleaning of chapel,For weekly cleaning of chapel,Cleaning Supplies & Services,131010,Cleaning & Janitorial Cleaning Materials
South Lakeland District Council,http://opendatacommunities.org/id/district-council/south-lakeland,30/11/2018,Development Implementation,Central Services,http://opendatacommunities.org/def/concept/finance/sercop/objective/102,J S Cleaning Services,,07-11-2018,0000081642,448,0,Cleaner for SLDC,Cleaner for SLDC,Contract & Agency staff,131010,Cleaning & Janitorial Cleaning Materials
South Lakeland District Council,http://opendatacommunities.org/id/district-council/south-lakeland,30/11/2018,Environment and Housing,Housing Services,http://opendatacommunities.org/def/concept/finance/sercop/objective/108,James Andrews Recruitment Solutions,06834852,07-11-2018,0000081529,532.57,0,Payment for staff,Payment for staff,Contract & Agency staff,261400,HR Temporary & Agency Staff
South Lakeland District Council,http://opendatacommunities.org/id/district-council/south-lakeland,30/11/2018,Environment and Housing,Housing Services,http://opendatacommunities.org/def/concept/finance/sercop/objective/108,James Andrews Recruitment Solutions,06834852,05-11-2018,0000081598,686.74,0,Payment for staff,Payment for staff,Contract & Agency staff,261400,HR Temporary & Agency Staff
South Lakeland District Council,http://opendatacommunities.org/id/district-council/south-lakeland,30/11/2018,Environment and Housing,Housing Services,http://opendatacommunities.org/def/concept/finance/sercop/objective/108,James Andrews Recruitment Solutions,06834852,05-11-2018,0000081599,812.87,0,Payment for staff,Payment for staff,Contract & Agency staff,261400,HR Temporary & Agency Staff
South Lakeland District Council,http://opendatacommunities.org/id/district-council/south-lakeland,30/11/2018,Environment and Housing,Housing Services,http://opendatacommunities.org/def/concept/finance/sercop/objective/108,James Andrews Recruitment Solutions,06834852,07-11-2018,0000081711,833.89,0,Payment for staff,Payment for staff,Contract & Agency staff,261400,HR Temporary & Agency Staff
South Lakeland District Council,http://opendatacommunities.org/id/district-council/south-lakeland,30/11/2018,Environment and Housing,Housing Services,,James Andrews Recruitment Solutions,06834852,19-11-2018,0000081913,960.03,0,Payment for staff,Payment for staff,Contract & Agency staff,261400,HR Temporary & Agency Staff
South Lakeland District Council,http://opendatacommunities.org/id/district-council/south-lakeland,30/11/2018,Environment and Housing,Housing Services,,James Andrews Recruitment Solutions,06834852,26-11-2018,0000082053,637.68,0,Payment for staff,Payment for staff,Contract & Agency staff,261400,HR Temporary & Agency Staff
South Lakeland District Council,http://opendatacommunities.org/id/district-council/south-lakeland,30/11/2018,Environment and Housing,Housing Services,,James Andrews Recruitment Solutions,06834852,03-12-2018,0000082182,735.79,0,Payment for staff,Payment for staff,Contract & Agency staff,261400,HR Temporary & Agency Staff
South Lakeland District Council,http://opendatacommunities.org/id/district-council/south-lakeland,30/11/2018,Business Support Community Services,Cultural Environmental Regulatory & Planning Services,http://opendatacommunities.org/def/concept/finance/sercop/objective/104,JEWSON LIMITED,00348407,19-11-2018,0000081834,34.29,0,Fixtures & fittings 2017/18,Fixtures & fittings 2017/18,Fixtures & Fittings,101400,Building General Materials
South Lakeland District Council,http://opendatacommunities.org/id/district-council/south-lakeland,30/11/2018,Business Support Community Services,Cultural Environmental Regulatory & Planning Services,,JEWSON LIMITED,00348407,28-11-2018,0000082122,27.7,0,Fixtures & fittings 2017/18,Fixtures & fittings 2017/18,Fixtures & Fittings,101400,Building General Materials
South Lakeland District Council,http://opendatacommunities.org/id/district-council/south-lakeland,30/11/2018,Business Support Community Services,Housing Services,http://opendatacommunities.org/def/concept/finance/sercop/objective/108,JJM Properties,,05-11-2018,0000081545,670,0,Rent in advance ,Rent in advance ,Homelessness Prevention,250010,Housing Letting Agents
South Lakeland District Council,http://opendatacommunities.org/id/district-council/south-lakeland,30/11/2018,Customer Services,Central Services,,JOHNSTON PUBLISHING LTD,01919088,26-11-2018,0000082055,10749.52,0,Printing Southlakeland News,Printing Southlakeland News,Advertising,171114,Education Literature
South Lakeland District Council,http://opendatacommunities.org/id/district-council/south-lakeland,30/11/2018,Business Support Community Services,Internal Trading Accounts,,K & S Commercial Ltd,9068885,28-11-2018,0000082120,703,0,Repair tacho,Repair tacho,Transport-Repair & Maintenance,381400,Vehicle Mgt Maintenance
South Lakeland District Council,http://opendatacommunities.org/id/district-council/south-lakeland,30/11/2018,Business Support Community Services,Internal Trading Accounts,,K S INTERNATIONAL LTD,02703321,19-11-2018,0000081856,115,0,Parts,Parts,Transport-Repair & Maintenance,381500,Vehicle Mgt Parts
South Lakeland District Council,http://opendatacommunities.org/id/district-council/south-lakeland,30/11/2018,Business Support Community Services,Internal Trading Accounts,,K S INTERNATIONAL LTD,02703321,19-11-2018,0000081856,10,0,Parts,Parts,Transport-Uninsured Damage,381500,Vehicle Mgt Parts
South Lakeland District Council,http://opendatacommunities.org/id/district-council/south-lakeland,30/11/2018,Business Support Community Services,Internal Trading Accounts,,K S INTERNATIONAL LTD,02703321,26-11-2018,0000082032,19,0,Parts,Parts,Transport-Repair & Maintenance,381500,Vehicle Mgt Parts
South Lakeland District Council,http://opendatacommunities.org/id/district-council/south-lakeland,30/11/2018,Business Support Community Services,Internal Trading Accounts,,K S INTERNATIONAL LTD,02703321,26-11-2018,0000082032,10,0,Parts,Parts,Transport-Uninsured Damage,381500,Vehicle Mgt Parts
South Lakeland District Council,http://opendatacommunities.org/id/district-council/south-lakeland,30/11/2018,Revenues and Benefits,Non-Service Payments,,Kendal BID Ltd,08986243,19-11-2018,0000081918,11653.35,0,BID Levy - Collection figures for,BID Levy - Collection figures for,Payment to BID,201700,Financial Services Grants
South Lakeland District Council,http://opendatacommunities.org/id/district-council/south-lakeland,30/11/2018,Development Strategy,Planning and Development,,KENDAL TOWN COUNCIL,,05-11-2018,0000081569,6171.79,0,CIL - Neighbourhood Funding Portion,CIL - Neighbourhood Funding Portion,CIL Neighbourhood Funding,908000,Public Bodies Council support services
South Lakeland District Council,http://opendatacommunities.org/id/district-council/south-lakeland,30/11/2018,Cemeteries Office,Cultural Environmental Regulatory & Planning Services,http://opendatacommunities.org/def/concept/finance/sercop/objective/104,KIRKBY IRELETH PAROCHIAL CHURCH COUNCIL,,07-11-2018,0000081702,535,0,Annual Grant 2018/19 towards grounds,Annual Grant 2018/19 towards grounds,Grants to Burial Authorities,121000,Cemetery & Crematorium Burial & Crem
South Lakeland District Council,http://opendatacommunities.org/id/district-council/south-lakeland,30/11/2018,Cemeteries Office,Cultural Environmental Regulatory & Planning Services,http://opendatacommunities.org/def/concept/finance/sercop/objective/104,Kirkby Lonsdale District Church Council,03298067,07-11-2018,0000081701,1350,0,2018/19 Grant tpowards grounds,2018/19 Grant tpowards grounds,Grants to Burial Authorities,121000,Cemetery & Crematorium Burial & Crem
South Lakeland District Council,http://opendatacommunities.org/id/district-council/south-lakeland,30/11/2018,Development Strategy,Planning and Development,,KIRKBY LONSDALE TOWN COUNCIL,,05-11-2018,0000081572,3321.65,0,CIL - Neighbourhood Funding Portion,CIL - Neighbourhood Funding Portion,CIL Neighbourhood Funding,908000,Public Bodies Council support services
South Lakeland District Council,http://opendatacommunities.org/id/district-council/south-lakeland,30/11/2018,Business Support Community Services,Internal Trading Accounts,,KLEENOIL FILTRATION LTD,02040801,14-11-2018,0000081825,138.5,0,Filters,Filters,Transport-Repair & Maintenance,101700,Building Heating & Air Conditioning
South Lakeland District Council,http://opendatacommunities.org/id/district-council/south-lakeland,30/11/2018,Printing Section,Central Services,http://opendatacommunities.org/def/concept/finance/sercop/objective/102,Konica Minolta Bus Solutions (UK) Ltd,,07-11-2018,0000081136,3780.69,0,Rental and Click Charges for all Konica,Rental and Click Charges for all Konica,Photocopier Rentals,192000,Facilities Reprographics
South Lakeland District Council,http://opendatacommunities.org/id/district-council/south-lakeland,30/11/2018,Printing Section,Central Services,http://opendatacommunities.org/def/concept/finance/sercop/objective/102,Konica Minolta Bus Solutions (UK) Ltd,,12-11-2018,0000081137,1979.73,0,Rental and Click Charges for all Konica,Rental and Click Charges for all Konica,Photocopier Rentals,192000,Facilities Reprographics
South Lakeland District Council,http://opendatacommunities.org/id/district-council/south-lakeland,30/11/2018,Printing Section,Central Services,http://opendatacommunities.org/def/concept/finance/sercop/objective/102,Konica Minolta Bus Solutions (UK) Ltd,,12-11-2018,0000081156,3251.61,0,Rental and Click Charges for all Konica,Rental and Click Charges for all Konica,Photocopier Rentals,192000,Facilities Reprographics
South Lakeland District Council,http://opendatacommunities.org/id/district-council/south-lakeland,30/11/2018,Printing Section,Central Services,http://opendatacommunities.org/def/concept/finance/sercop/objective/102,Konica Minolta Bus Solutions (UK) Ltd,,21-11-2018,0000081275,3589.44,0,Rental and Click Charges for all Konica,Rental and Click Charges for all Konica,Photocopier Rentals,192000,Facilities Reprographics
South Lakeland District Council,http://opendatacommunities.org/id/district-council/south-lakeland,30/11/2018,Printing Section,Central Services,http://opendatacommunities.org/def/concept/finance/sercop/objective/102,Konica Minolta Bus Solutions (UK) Ltd,,12-11-2018,0000081751,40.41,0,Rental and Click Charges for all Konica,Rental and Click Charges for all Konica,Photocopier Rentals,192000,Facilities Reprographics
South Lakeland District Council,http://opendatacommunities.org/id/district-council/south-lakeland,30/11/2018,Business Support Community Services,Housing Services,http://opendatacommunities.org/def/concept/finance/sercop/objective/108,LAKE DISTRICT ESTATES CO LTD,,12-11-2018,0000081721,1650,0,Deposit ,Deposit ,Homelessness Prevention,250000,Housing
South Lakeland District Council,http://opendatacommunities.org/id/district-council/south-lakeland,30/11/2018,Business Support Community Services,Central Services,http://opendatacommunities.org/def/concept/finance/sercop/objective/102,LAKE DISTRICT NATIONAL PARK AUTHORITY,,12-11-2018,0000081506,2987.5,0,LAND CHARGE SEARCH ENQUIRIES LDNPA,LAND CHARGE SEARCH ENQUIRIES LDNPA,Other Local Authorities,201700,Financial Services Grants
South Lakeland District Council,http://opendatacommunities.org/id/district-council/south-lakeland,30/11/2018,Environment and Housing,Housing Services,http://opendatacommunities.org/def/concept/finance/sercop/objective/108,Lakeside Taxis,,12-11-2018,0000081752,128.5,0,Taxis ,Taxis ,Homelessness Prevention,361600,Public Transport Taxi Services Home to S
South Lakeland District Council,http://opendatacommunities.org/id/district-council/south-lakeland,30/11/2018,Development Implementation,Cultural Environmental Regulatory & Planning Services,http://opendatacommunities.org/def/concept/finance/sercop/objective/104,LAMBERT SMITH HAMPTON GROUP,2521225,07-11-2018,0000081636,7065,0,Review of the Depot strategies.,Review of the Depot strategies.,Other Consultants,999999,Unclassifiable
South Lakeland District Council,http://opendatacommunities.org/id/district-council/south-lakeland,30/11/2018,Environment and Housing,Central Services,http://opendatacommunities.org/def/concept/finance/sercop/objective/102,LAMBERT SMITH HAMPTON GROUP,2521225,26-11-2018,0000081776,382.5,0,I attach a timesheet showing the hours,I attach a timesheet showing the hours,Other Consultants,999999,Unclassifiable
South Lakeland District Council,http://opendatacommunities.org/id/district-council/south-lakeland,30/11/2018,Development Implementation,Central Services,http://opendatacommunities.org/def/concept/finance/sercop/objective/102,LAMBERT SMITH HAMPTON GROUP,2521225,19-11-2018,0000081853,41331,0,Property Services Contract April -,Property Services Contract April -,PSC - Property Works,999999,Unclassifiable
South Lakeland District Council,http://opendatacommunities.org/id/district-council/south-lakeland,30/11/2018,Development Implementation,Transport,http://opendatacommunities.org/def/concept/finance/sercop/objective/107,LAMBERT SMITH HAMPTON GROUP,2521225,19-11-2018,0000081884,249.39,0,Cash Collectors Office & Pedestrian,Cash Collectors Office & Pedestrian,Contract payments,999999,Unclassifiable
South Lakeland District Council,http://opendatacommunities.org/id/district-council/south-lakeland,30/11/2018,Business Support Community Services,Cultural Environmental Regulatory & Planning Services,,LAMBERT SMITH HAMPTON GROUP,2521225,19-11-2018,0000081895,950,0,Viability Assessment SL/2018/0181,Viability Assessment SL/2018/0181,Other Consultants,999999,Unclassifiable
South Lakeland District Council,http://opendatacommunities.org/id/district-council/south-lakeland,30/11/2018,Business Support Community Services,Internal Trading Accounts,,LANCASHIRE DAF,,07-11-2018,0000081366,33.54,0,Parts,Parts,Transport-Uninsured Damage,381400,Vehicle Mgt Maintenance
South Lakeland District Council,http://opendatacommunities.org/id/district-council/south-lakeland,30/11/2018,Business Support Community Services,Internal Trading Accounts,,LANCASHIRE DAF,,07-11-2018,0000081671,22.68,0,Parts,Parts,Transport-Repair & Maintenance,381400,Vehicle Mgt Maintenance
South Lakeland District Council,http://opendatacommunities.org/id/district-council/south-lakeland,30/11/2018,Business Support Community Services,Internal Trading Accounts,,LANCASHIRE DAF,,12-11-2018,0000081680,320,0,Parts,Parts,Transport-Repair & Maintenance,381400,Vehicle Mgt Maintenance
South Lakeland District Council,http://opendatacommunities.org/id/district-council/south-lakeland,30/11/2018,Business Support Community Services,Internal Trading Accounts,,LANCASHIRE DAF,,12-11-2018,0000081685,197.61,0,Parts,Parts,Transport-Repair & Maintenance,381400,Vehicle Mgt Maintenance
South Lakeland District Council,http://opendatacommunities.org/id/district-council/south-lakeland,30/11/2018,Business Support Community Services,Internal Trading Accounts,,LANCASHIRE DAF,,12-11-2018,0000081686,634.34,0,Parts,Parts,Transport-Repair & Maintenance,381400,Vehicle Mgt Maintenance
South Lakeland District Council,http://opendatacommunities.org/id/district-council/south-lakeland,30/11/2018,Business Support Community Services,Internal Trading Accounts,,LANCASHIRE DAF,,21-11-2018,0000081982,47.95,0,Parts,Parts,Transport-Repair & Maintenance,381400,Vehicle Mgt Maintenance
South Lakeland District Council,http://opendatacommunities.org/id/district-council/south-lakeland,30/11/2018,Business Support Community Services,Internal Trading Accounts,,LANCASHIRE DAF,,21-11-2018,0000081983,43.05,0,Parts,Parts,Transport-Repair & Maintenance,381400,Vehicle Mgt Maintenance
South Lakeland District Council,http://opendatacommunities.org/id/district-council/south-lakeland,30/11/2018,Business Support Community Services,Internal Trading Accounts,,LANCASHIRE DAF,,21-11-2018,0000082007,136.95,0,Parts,Parts,Transport-Repair & Maintenance,381400,Vehicle Mgt Maintenance
South Lakeland District Council,http://opendatacommunities.org/id/district-council/south-lakeland,30/11/2018,Business Support Community Services,Internal Trading Accounts,,LANCASHIRE DAF,,26-11-2018,0000082039,72.27,0,Parts,Parts,Transport-Repair & Maintenance,381400,Vehicle Mgt Maintenance
South Lakeland District Council,http://opendatacommunities.org/id/district-council/south-lakeland,30/11/2018,Business Support Community Services,Internal Trading Accounts,,LANCASHIRE DAF,,26-11-2018,0000082040,40.66,0,Parts,Parts,Transport-Repair & Maintenance,381400,Vehicle Mgt Maintenance
South Lakeland District Council,http://opendatacommunities.org/id/district-council/south-lakeland,30/11/2018,Development Implementation,Cultural Environmental Regulatory & Planning Services,http://opendatacommunities.org/def/concept/finance/sercop/objective/104,Lancaster Canal Regeneration Partnership,,07-11-2018,0000081644,250,0,LCRP - Partner Contribution 2018/19,LCRP - Partner Contribution 2018/19,Economic Development Fund,181300,Environment Land Protection
South Lakeland District Council,http://opendatacommunities.org/id/district-council/south-lakeland,30/11/2018,Development Implementation,Cultural Environmental Regulatory & Planning Services,http://opendatacommunities.org/def/concept/finance/sercop/objective/104,Lancaster Canal Regeneration Partnership,,19-11-2018,0000081854,2250,0,Contribution to the LCRP Project,Contribution to the LCRP Project,Economic Development Fund,181300,Environment Land Protection
South Lakeland District Council,http://opendatacommunities.org/id/district-council/south-lakeland,30/11/2018,Development Implementation,Cultural Environmental Regulatory & Planning Services,http://opendatacommunities.org/def/concept/finance/sercop/objective/104,LANCASTER CITY COUNCIL,,12-11-2018,0000081335,500,0,Arnside & Silverdale ANOB DPD - HRA,Arnside & Silverdale ANOB DPD - HRA,Other Consultants,201900,Financial Services Refund
South Lakeland District Council,http://opendatacommunities.org/id/district-council/south-lakeland,30/11/2018,Business Support Community Services,Central Services,,LANCASTER TRAINING SERVICES LTD,01447612,03-12-2018,0000082179,300,0,Dacia Duster Training - 9 October 2018,Dacia Duster Training - 9 October 2018,Training Costs,261500,HR Training & Conferences
South Lakeland District Council,http://opendatacommunities.org/id/district-council/south-lakeland,30/11/2018,Westmorland Centre Parking Office,Highways & Transport Services,,LOOMIS UK LTD,03200432,28-11-2018,0000082060,1061.79,0,Cash collection October - December 2018,Cash collection October - December 2018,Private Contractos gen,192200,Facilities Security
South Lakeland District Council,http://opendatacommunities.org/id/district-council/south-lakeland,30/11/2018,Business Support Community Services,Internal Trading Accounts,,M G D LTD,,19-11-2018,0000081831,35,0,MOTs 2018/19,MOTs 2018/19,MOT/Servicing Costs,381400,Vehicle Mgt Maintenance
South Lakeland District Council,http://opendatacommunities.org/id/district-council/south-lakeland,30/11/2018,Business Support Community Services,Internal Trading Accounts,,M G D LTD,,14-11-2018,0000081868,35,0,MOTs 2018/19,MOTs 2018/19,MOT/Servicing Costs,381400,Vehicle Mgt Maintenance
South Lakeland District Council,http://opendatacommunities.org/id/district-council/south-lakeland,30/11/2018,Business Support Community Services,Internal Trading Accounts,,M G D LTD,,19-11-2018,0000081904,35,0,MOTs 2018/19,MOTs 2018/19,MOT/Servicing Costs,381400,Vehicle Mgt Maintenance
South Lakeland District Council,http://opendatacommunities.org/id/district-council/south-lakeland,30/11/2018,Business Support Community Services,Cultural Environmental Regulatory & Planning Services,http://opendatacommunities.org/def/concept/finance/sercop/objective/104,Macdonald & Company Freelance Ltd,03882135,07-11-2018,0000081608,2178,0,Supply of Contract Worker for Planning,Supply of Contract Worker for Planning,Contract & Agency staff,261400,HR Temporary & Agency Staff
South Lakeland District Council,http://opendatacommunities.org/id/district-council/south-lakeland,30/11/2018,Business Support Community Services,Cultural Environmental Regulatory & Planning Services,,Macdonald & Company Freelance Ltd,03882135,19-11-2018,0000081889,2119.5,0,Supply of Contract Worker for Planning,Supply of Contract Worker for Planning,Contract & Agency staff,261400,HR Temporary & Agency Staff
South Lakeland District Council,http://opendatacommunities.org/id/district-council/south-lakeland,30/11/2018,Business Support Community Services,Cultural Environmental Regulatory & Planning Services,,Macdonald & Company Freelance Ltd,03882135,19-11-2018,0000081914,2116.8,0,Supply of Contract Worker for Planning,Supply of Contract Worker for Planning,Contract & Agency staff,261400,HR Temporary & Agency Staff
South Lakeland District Council,http://opendatacommunities.org/id/district-council/south-lakeland,30/11/2018,Business Support Community Services,Cultural Environmental Regulatory & Planning Services,,Macdonald & Company Freelance Ltd,03882135,26-11-2018,0000082104,2133,0,Supply of Contract Worker for Planning,Supply of Contract Worker for Planning,Contract & Agency staff,261400,HR Temporary & Agency Staff
South Lakeland District Council,http://opendatacommunities.org/id/district-council/south-lakeland,30/11/2018,Environment and Housing,Housing Services,,Landlord,,21-11-2018,0000081953,700,0,Monthly rent,Monthly rent,Homelessness Prevention,250000,Housing
South Lakeland District Council,http://opendatacommunities.org/id/district-council/south-lakeland,30/11/2018,Kendal Town Hall,External Trading Accounts,,Masterstaff Limited,02777593,14-11-2018,0000081581,75,0,Agency cleaning cover for Kendal Indoor,Agency cleaning cover for Kendal Indoor,Contract & Agency staff,261300,HR Recruitment & Assessment
South Lakeland District Council,http://opendatacommunities.org/id/district-council/south-lakeland,30/11/2018,Business Support Community Services,Cultural Environmental Regulatory & Planning Services,http://opendatacommunities.org/def/concept/finance/sercop/objective/104,Masterstaff Limited,02777593,05-11-2018,0000081585,3473.69,0,Agency staff,Agency staff,Contract & Agency staff,261300,HR Recruitment & Assessment
South Lakeland District Council,http://opendatacommunities.org/id/district-council/south-lakeland,30/11/2018,Business Support Community Services,Cultural Environmental Regulatory & Planning Services,http://opendatacommunities.org/def/concept/finance/sercop/objective/104,Masterstaff Limited,02777593,12-11-2018,0000081773,3408.61,0,Agency staff,Agency staff,Contract & Agency staff,261300,HR Recruitment & Assessment
South Lakeland District Council,http://opendatacommunities.org/id/district-council/south-lakeland,30/11/2018,Business Support Community Services,Cultural Environmental Regulatory & Planning Services,,Masterstaff Limited,02777593,19-11-2018,0000081929,1782.37,0,Agency staff,Agency staff,Contract & Agency staff,261300,HR Recruitment & Assessment
South Lakeland District Council,http://opendatacommunities.org/id/district-council/south-lakeland,30/11/2018,Kendal Town Hall,External Trading Accounts,,Masterstaff Limited,02777593,03-12-2018,0000082091,75,0,Agency cleaning cover for Kendal Indoor,Agency cleaning cover for Kendal Indoor,Contract & Agency staff,261300,HR Recruitment & Assessment
South Lakeland District Council,http://opendatacommunities.org/id/district-council/south-lakeland,30/11/2018,Business Support Community Services,Cultural Environmental Regulatory & Planning Services,,Masterstaff Limited,02777593,28-11-2018,0000082124,3031.35,0,Agency staff,Agency staff,Contract & Agency staff,261300,HR Recruitment & Assessment
South Lakeland District Council,http://opendatacommunities.org/id/district-council/south-lakeland,30/11/2018,Environment and Housing,Housing Services,http://opendatacommunities.org/def/concept/finance/sercop/objective/108,Mazars,,14-11-2018,0000081850,1190,0,Monthly rent ,Monthly rent ,Homelessness Prevention,202000,Financial Services Rents
South Lakeland District Council,http://opendatacommunities.org/id/district-council/south-lakeland,30/11/2018,Lake Wardens,Cultural Environmental Regulatory & Planning Services,http://opendatacommunities.org/def/concept/finance/sercop/objective/104,Medical Gas Solutions Ltd T/a,04967365,19-11-2018,0000081882,37.95,0,Monthly Rental of medical gas cylinders,Monthly Rental of medical gas cylinders,Equipment Furniture Materials,221100,Health & Safety� Maintenance
South Lakeland District Council,http://opendatacommunities.org/id/district-council/south-lakeland,30/11/2018,Development Implementation,Environment Regulatory,,Metcalfe Plant Hire Ltd,02093086,26-11-2018,0000082059,4696.82,0,"Rothay Park River Works, Ambleside","Rothay Park River Works, Ambleside",Contract payments,100000,Building Construction materials
South Lakeland District Council,http://opendatacommunities.org/id/district-council/south-lakeland,30/11/2018,Westmorland Centre Parking Office,Highways & Transport Services,http://opendatacommunities.org/def/concept/finance/sercop/objective/107,METRIC GROUP LIMITED,02560839,07-11-2018,0000081349,178.5,0,Call out to assess flood damaged,Call out to assess flood damaged,Fixed Plant & Machinery Maint,359999,Street & Traffic Not Elsewhere Classifie
South Lakeland District Council,http://opendatacommunities.org/id/district-council/south-lakeland,30/11/2018,Social Enterprise Admin,Highways & Transport Services,http://opendatacommunities.org/def/concept/finance/sercop/objective/107,METRIC GROUP LIMITED,02560839,12-11-2018,0000081640,735,0,Web hosting and web tariff editor for,Web hosting and web tariff editor for,Fixed Plant & Machinery Maint,359999,Street & Traffic Not Elsewhere Classifie
South Lakeland District Council,http://opendatacommunities.org/id/district-council/south-lakeland,30/11/2018,Business Support Community Services,Housing Services,http://opendatacommunities.org/def/concept/finance/sercop/objective/108,MICHAEL BRACKEN,,05-11-2018,0000081558,115.07,0,Reimbursement of costs - end of tenancy,Reimbursement of costs - end of tenancy,Homelessness Prevention,250000,Housing
South Lakeland District Council,http://opendatacommunities.org/id/district-council/south-lakeland,30/11/2018,Environment and Housing,Housing Services,http://opendatacommunities.org/def/concept/finance/sercop/objective/108,Michael Nicholson,,12-11-2018,0000081782,600,0,Monthly rent ,Monthly rent ,Homelessness Prevention,250000,Housing
South Lakeland District Council,http://opendatacommunities.org/id/district-council/south-lakeland,30/11/2018,Business Support Community Services,Cultural Environmental Regulatory & Planning Services,http://opendatacommunities.org/def/concept/finance/sercop/objective/104,MILNTHORPE KENNELS & CATTERY,08932302,07-11-2018,0000081620,2699.74,0,Stray dog kenneling fees 2018/19,Stray dog kenneling fees 2018/19,Kenneling Fees,181500,Environment Animal Services
South Lakeland District Council,http://opendatacommunities.org/id/district-council/south-lakeland,30/11/2018,Kendal Town Hall,External Trading Accounts,,MK Illuminations,04366174,03-12-2018,0000082177,70.23,0,Market Hall Christmas lights 2018 final,Market Hall Christmas lights 2018 final,Equipment Furniture Materials,109999,Building Not Elsewhere Classified
South Lakeland District Council,http://opendatacommunities.org/id/district-council/south-lakeland,30/11/2018,Revenues and Benefits,Central Services,http://opendatacommunities.org/def/concept/finance/sercop/objective/102,MORGAN HUNT UK LIMITED,04349535,12-11-2018,0000081251,868.06,0,12 weeks,12 weeks,Contract & Agency staff,269999,HR Not Elsewhere Classified
South Lakeland District Council,http://opendatacommunities.org/id/district-council/south-lakeland,30/11/2018,Revenues and Benefits,Central Services,http://opendatacommunities.org/def/concept/finance/sercop/objective/102,MORGAN HUNT UK LIMITED,04349535,12-11-2018,0000081377,937.87,0,12 weeks,12 weeks,Contract & Agency staff,269999,HR Not Elsewhere Classified
South Lakeland District Council,http://opendatacommunities.org/id/district-council/south-lakeland,30/11/2018,Revenues and Benefits,Central Services,http://opendatacommunities.org/def/concept/finance/sercop/objective/102,MORGAN HUNT UK LIMITED,04349535,14-11-2018,0000081546,599.56,0,12 weeks,12 weeks,Contract & Agency staff,269999,HR Not Elsewhere Classified
South Lakeland District Council,http://opendatacommunities.org/id/district-council/south-lakeland,30/11/2018,Revenues and Benefits,Central Services,http://opendatacommunities.org/def/concept/finance/sercop/objective/102,MORGAN HUNT UK LIMITED,04349535,14-11-2018,0000081728,993.45,0,12 weeks,12 weeks,Contract & Agency staff,269999,HR Not Elsewhere Classified
South Lakeland District Council,http://opendatacommunities.org/id/district-council/south-lakeland,30/11/2018,Revenues and Benefits,Central Services,,MORGAN HUNT UK LIMITED,04349535,26-11-2018,0000081896,993.45,0,12 weeks,12 weeks,Contract & Agency staff,269999,HR Not Elsewhere Classified
South Lakeland District Council,http://opendatacommunities.org/id/district-council/south-lakeland,30/11/2018,Revenues and Benefits,Central Services,,MORGAN HUNT UK LIMITED,04349535,26-11-2018,0000082046,993.45,0,12 weeks,12 weeks,Contract & Agency staff,269999,HR Not Elsewhere Classified
South Lakeland District Council,http://opendatacommunities.org/id/district-council/south-lakeland,30/11/2018,Environment and Housing,Housing Services,http://opendatacommunities.org/def/concept/finance/sercop/objective/108,My Dream Cleaners Ltd,09839482,05-11-2018,0000081601,90,0,Cleaning at TVF Hostel,Cleaning at TVF Hostel,Cleaning Supplies & Services,131320,Cleaning & Janitorial Cleaning Service
South Lakeland District Council,http://opendatacommunities.org/id/district-council/south-lakeland,30/11/2018,Environment and Housing,Housing Services,http://opendatacommunities.org/def/concept/finance/sercop/objective/108,My Dream Cleaners Ltd,09839482,05-11-2018,0000081602,60,0,Cleaning at TVF Hostel,Cleaning at TVF Hostel,Cleaning Supplies & Services,131320,Cleaning & Janitorial Cleaning Service
South Lakeland District Council,http://opendatacommunities.org/id/district-council/south-lakeland,30/11/2018,Environment and Housing,Housing Services,,My Dream Cleaners Ltd,09839482,21-11-2018,0000081962,189.25,0,Cleaning at TVF Hostel,Cleaning at TVF Hostel,Cleaning Supplies & Services,131320,Cleaning & Janitorial Cleaning Service
South Lakeland District Council,http://opendatacommunities.org/id/district-council/south-lakeland,30/11/2018,Environment and Housing,Housing Services,,My Dream Cleaners Ltd,09839482,26-11-2018,0000082021,208.75,0,Cleaning at TVF Hostel,Cleaning at TVF Hostel,Cleaning Supplies & Services,131320,Cleaning & Janitorial Cleaning Service
South Lakeland District Council,http://opendatacommunities.org/id/district-council/south-lakeland,30/11/2018,Policy & Partnerships,Central Services,http://opendatacommunities.org/def/concept/finance/sercop/objective/102,NATIONWIDE FIRE TRAINING LTD,05034855,12-11-2018,0000081468,170,0,"Emergency First Aid Training, Tuesday","Emergency First Aid Training, Tuesday",Health and Safety,221100,Health & Safety� Maintenance
South Lakeland District Council,http://opendatacommunities.org/id/district-council/south-lakeland,30/11/2018,Policy & Partnerships,Central Services,,NATIONWIDE FIRE TRAINING LTD,05034855,19-11-2018,0000081887,45,0,Fire Warden Training Thursday 8th,Fire Warden Training Thursday 8th,Health and Safety,221100,Health & Safety� Maintenance
South Lakeland District Council,http://opendatacommunities.org/id/district-council/south-lakeland,30/11/2018,Development Strategy,Planning and Development,,NATLAND PARISH COUNCIL,,05-11-2018,0000081573,4779.25,0,CIL - Neighbourhood Funding Portion,CIL - Neighbourhood Funding Portion,CIL Neighbourhood Funding,908000,Public Bodies Council support services
South Lakeland District Council,http://opendatacommunities.org/id/district-council/south-lakeland,30/11/2018,Social Enterprise Admin,Cultural Environmental Regulatory & Planning Services,http://opendatacommunities.org/def/concept/finance/sercop/objective/104,NEWSQUEST MEDIA GROUP LTD,03102566,19-11-2018,0000081457,275.08,0,PUBLIC NOTICES FOR PLANNING 1 APRIL - 31,PUBLIC NOTICES FOR PLANNING 1 APRIL - 31,Advertising,191000,Facilities Advertising
South Lakeland District Council,http://opendatacommunities.org/id/district-council/south-lakeland,30/11/2018,Policy & Partnerships,Cultural Environmental Regulatory & Planning Services,http://opendatacommunities.org/def/concept/finance/sercop/objective/104,NEWSQUEST MEDIA GROUP LTD,03102566,12-11-2018,0000081631,449.36,0,Advertisment required for Asset of,Advertisment required for Asset of,Publicity Material,191000,Facilities Advertising
South Lakeland District Council,http://opendatacommunities.org/id/district-council/south-lakeland,30/11/2018,Social Enterprise Admin,Cultural Environmental Regulatory & Planning Services,http://opendatacommunities.org/def/concept/finance/sercop/objective/104,NEWSQUEST MEDIA GROUP LTD,03102566,12-11-2018,0000081632,255.92,0,PUBLIC NOTICES FOR PLANNING 1 APRIL - 31,PUBLIC NOTICES FOR PLANNING 1 APRIL - 31,Advertising,191000,Facilities Advertising
South Lakeland District Council,http://opendatacommunities.org/id/district-council/south-lakeland,30/11/2018,Development Strategy,Cultural Environmental Regulatory & Planning Services,http://opendatacommunities.org/def/concept/finance/sercop/objective/104,NEWSQUEST MEDIA GROUP LTD,03102566,12-11-2018,0000081633,423.2,0,DM DPD Main Modifications consultation,DM DPD Main Modifications consultation,Advertising,191000,Facilities Advertising
South Lakeland District Council,http://opendatacommunities.org/id/district-council/south-lakeland,30/11/2018,Development Strategy,Cultural Environmental Regulatory & Planning Services,http://opendatacommunities.org/def/concept/finance/sercop/objective/104,NEWSQUEST MEDIA GROUP LTD,03102566,12-11-2018,0000081634,423.2,0,DM DPD Main Modifications consultation,DM DPD Main Modifications consultation,Advertising,191000,Facilities Advertising
South Lakeland District Council,http://opendatacommunities.org/id/district-council/south-lakeland,30/11/2018,Policy & Partnerships,Cultural Environmental Regulatory & Planning Services,http://opendatacommunities.org/def/concept/finance/sercop/objective/104,NEWSQUEST MEDIA GROUP LTD,03102566,19-11-2018,0000081635,449.36,0,Asset of Community Value Publication,Asset of Community Value Publication,Publicity Material,191000,Facilities Advertising
South Lakeland District Council,http://opendatacommunities.org/id/district-council/south-lakeland,30/11/2018,Social Enterprise Admin,Cultural Environmental Regulatory & Planning Services,http://opendatacommunities.org/def/concept/finance/sercop/objective/104,NEWSQUEST MEDIA GROUP LTD,03102566,12-11-2018,0000081727,243,0,PUBLIC NOTICES FOR PLANNING 1 APRIL - 31,PUBLIC NOTICES FOR PLANNING 1 APRIL - 31,Advertising,191000,Facilities Advertising
South Lakeland District Council,http://opendatacommunities.org/id/district-council/south-lakeland,30/11/2018,Social Enterprise Admin,Cultural Environmental Regulatory & Planning Services,http://opendatacommunities.org/def/concept/finance/sercop/objective/104,NEWSQUEST MEDIA GROUP LTD,03102566,28-11-2018,0000081840,290.66,0,PUBLIC NOTICES FOR PLANNING 1 APRIL - 31,PUBLIC NOTICES FOR PLANNING 1 APRIL - 31,Advertising,191000,Facilities Advertising
South Lakeland District Council,http://opendatacommunities.org/id/district-council/south-lakeland,30/11/2018,Social Enterprise Admin,Cultural Environmental Regulatory & Planning Services,http://opendatacommunities.org/def/concept/finance/sercop/objective/104,NEWSQUEST MEDIA GROUP LTD,03102566,19-11-2018,0000081880,224.18,0,PUBLIC NOTICES FOR PLANNING 1 APRIL - 31,PUBLIC NOTICES FOR PLANNING 1 APRIL - 31,Advertising,191000,Facilities Advertising
South Lakeland District Council,http://opendatacommunities.org/id/district-council/south-lakeland,30/11/2018,Social Enterprise Admin,Cultural Environmental Regulatory & Planning Services,,NEWSQUEST MEDIA GROUP LTD,03102566,28-11-2018,0000082153,351.14,0,PUBLIC NOTICES FOR PLANNING 1 APRIL - 31,PUBLIC NOTICES FOR PLANNING 1 APRIL - 31,Advertising,191000,Facilities Advertising
South Lakeland District Council,http://opendatacommunities.org/id/district-council/south-lakeland,30/11/2018,Democratic Services,Central Services,,NEWSQUEST MEDIA GROUP LTD,03102566,03-12-2018,0000082233,682.12,0,IRP Members' Allowances 2019/20,IRP Members' Allowances 2019/20,Advertising,191000,Facilities Advertising
South Lakeland District Council,http://opendatacommunities.org/id/district-council/south-lakeland,30/11/2018,Business Support Community Services,Cultural Environmental Regulatory & Planning Services,,North West Equine Vets Ltd,09731215,26-11-2018,0000082114,125.74,0,Vets Fees for Inspections of Riding,Vets Fees for Inspections of Riding,Vets Fees,180040,Env. Service- Veterinary Services
South Lakeland District Council,http://opendatacommunities.org/id/district-council/south-lakeland,30/11/2018,Business Support Community Services,Cultural Environmental Regulatory & Planning Services,,North West Equine Vets Ltd,09731215,26-11-2018,0000082115,99.35,0,Vets Fees for Inspections of Riding,Vets Fees for Inspections of Riding,Vets Fees,180040,Env. Service- Veterinary Services
South Lakeland District Council,http://opendatacommunities.org/id/district-council/south-lakeland,30/11/2018,Business Support Community Services,Cultural Environmental Regulatory & Planning Services,,North West Equine Vets Ltd,09731215,26-11-2018,0000082116,514.89,0,Vets Fees for Inspections of Riding,Vets Fees for Inspections of Riding,Vets Fees,180040,Env. Service- Veterinary Services
South Lakeland District Council,http://opendatacommunities.org/id/district-council/south-lakeland,30/11/2018,Business Support Community Services,Cultural Environmental Regulatory & Planning Services,,North West Equine Vets Ltd,09731215,26-11-2018,0000082117,45.14,0,Vets Fees for Inspections of Riding,Vets Fees for Inspections of Riding,Vets Fees,180040,Env. Service- Veterinary Services
South Lakeland District Council,http://opendatacommunities.org/id/district-council/south-lakeland,30/11/2018,ICT Group,Central Services,,NORTHGATE PUBLIC SERVICES (UK) LTD,00968498,26-11-2018,0000082061,603.58,0,Ref: 399048,Ref: 399048,Software Maintenance,271600,ICT Software Customised & Bespoke
South Lakeland District Council,http://opendatacommunities.org/id/district-council/south-lakeland,30/11/2018,Policy & Partnerships,Central Services,,NORTHGATE VEHICLE HIRE LTD,01434157,28-11-2018,0000081890,33.5,0,Car hire on 8-9 November,Car hire on 8-9 November,Car Allowances,381600,Vehicle Mgt Leasing
South Lakeland District Council,http://opendatacommunities.org/id/district-council/south-lakeland,30/11/2018,Business Support Community Services,Central Services,,NORTHGATE VEHICLE HIRE LTD,01434157,21-11-2018,0000081891,67,0,Vehicle Hire,Vehicle Hire,Training Costs,381600,Vehicle Mgt Leasing
South Lakeland District Council,http://opendatacommunities.org/id/district-council/south-lakeland,30/11/2018,Development Implementation,Central Services,http://opendatacommunities.org/def/concept/finance/sercop/objective/102,NPS NORTH WEST LTD,06614601,14-11-2018,0000081669,664.5,0,Brodgen St Toilet UTC Office,Brodgen St Toilet UTC Office,Contract payments,391110,Construction Buildings Construction
South Lakeland District Council,http://opendatacommunities.org/id/district-council/south-lakeland,30/11/2018,Development Implementation,Transport,,Nu-phalt Contracting Ltd,04985379,26-11-2018,0000082102,2279.42,0,SLDC - Resurfacing works at Grange &,SLDC - Resurfacing works at Grange &,Contract payments,391400,Construction Roads
South Lakeland District Council,http://opendatacommunities.org/id/district-council/south-lakeland,30/11/2018,Business Support Community Services,Cultural Environmental Regulatory & Planning Services,http://opendatacommunities.org/def/concept/finance/sercop/objective/104,Park Avenue,,05-11-2018,0000081604,1369,0,AGENCY PLANNING OFFICER,AGENCY PLANNING OFFICER,Contract & Agency staff,150000,Consultancy
South Lakeland District Council,http://opendatacommunities.org/id/district-council/south-lakeland,30/11/2018,Business Support Community Services,Cultural Environmental Regulatory & Planning Services,http://opendatacommunities.org/def/concept/finance/sercop/objective/104,Park Avenue,,19-11-2018,0000081877,1369,0,AGENCY PLANNING OFFICER,AGENCY PLANNING OFFICER,Contract & Agency staff,150000,Consultancy
South Lakeland District Council,http://opendatacommunities.org/id/district-council/south-lakeland,30/11/2018,Business Support Community Services,Cultural Environmental Regulatory & Planning Services,,Park Avenue,,26-11-2018,0000082043,1369,0,AGENCY PLANNING OFFICER,AGENCY PLANNING OFFICER,Contract & Agency staff,150000,Consultancy
South Lakeland District Council,http://opendatacommunities.org/id/district-council/south-lakeland,30/11/2018,Social Enterprise Admin,Highways & Transport Services,http://opendatacommunities.org/def/concept/finance/sercop/objective/107,PATROL,,19-11-2018,0000081788,463.4,0,Charges for Traffic Penalty Tribunal,Charges for Traffic Penalty Tribunal,Brokers & Bureau Fees,192214,Facilities Security Street Wardens
South Lakeland District Council,http://opendatacommunities.org/id/district-council/south-lakeland,30/11/2018,Social Enterprise Admin,SLDC as Agent,,PAY BY PHONE (PAYPOINT),,19-11-2018,0000081841,869.77,0,Pay-by-phone charges from 1 April 2018,Pay-by-phone charges from 1 April 2018,General,351400,Street & Traffic Traffic Control
South Lakeland District Council,http://opendatacommunities.org/id/district-council/south-lakeland,30/11/2018,Business Support Community Services,Cultural Environmental Regulatory & Planning Services,http://opendatacommunities.org/def/concept/finance/sercop/objective/104,PENNINGTONS (KENDAL) LIMITED,00434649,12-11-2018,0000081772,2500,0,Annual Charge for use of Link Road at,Annual Charge for use of Link Road at,Tipping & Disposal Charges,182013,Environment Waste Mgt Waste Collection
South Lakeland District Council,http://opendatacommunities.org/id/district-council/south-lakeland,30/11/2018,Kendal Town Hall,Cultural Environmental Regulatory & Planning Services,http://opendatacommunities.org/def/concept/finance/sercop/objective/104,PHS GROUP PLC,,14-11-2018,0000081289,24.5,0,Weekly exchange of sanitary bins and,Weekly exchange of sanitary bins and,Cleaning Supplies & Services,131312,Cleaning & Janitorial Washroom Sanitat
South Lakeland District Council,http://opendatacommunities.org/id/district-council/south-lakeland,30/11/2018,Business Support Community Services,Transport Planning Policy,http://opendatacommunities.org/def/concept/finance/sercop/objective/107,Physio-Control UK Sales Ltd,54166128,07-11-2018,0000081611,1950,0,Defibrillators,Defibrillators,Equipment Furniture Materials,221000,Health & Safety� Products
South Lakeland District Council,http://opendatacommunities.org/id/district-council/south-lakeland,30/11/2018,Business Support Community Services,Internal Trading Accounts,,PIER 1 METALWORKS LTD,04291520,12-11-2018,0000081683,600,0,Repair doors,Repair doors,Transport-Repair & Maintenance,391200,Construction Engineering
South Lakeland District Council,http://opendatacommunities.org/id/district-council/south-lakeland,30/11/2018,Leisure and Wellbeing,Culture and Related Serv,http://opendatacommunities.org/def/concept/finance/sercop/objective/104,Prescott Special Projects Ltd,,14-11-2018,0000081691,8841.93,0,"For paths, drainage and landscape works","For paths, drainage and landscape works",Contract payments,391300,Construction Open Spaces
South Lakeland District Council,http://opendatacommunities.org/id/district-council/south-lakeland,30/11/2018,ICT Group,Central Services,http://opendatacommunities.org/def/concept/finance/sercop/objective/102,PROBRAND LTD,02653446,12-11-2018,0000081576,553.97,0,Optoma EH400 - DLP projector - portable,Optoma EH400 - DLP projector - portable,Purchase of IT Equipment,271600,ICT Software Customised & Bespoke
South Lakeland District Council,http://opendatacommunities.org/id/district-council/south-lakeland,30/11/2018,Development Implementation,SLDC as Agent,,PS BUSINESS MATTERS,08147185,19-11-2018,0000081726,2000,0,Kendal Futures Programme - Project,Kendal Futures Programme - Project,General,151900,Consultancy Management
South Lakeland District Council,http://opendatacommunities.org/id/district-council/south-lakeland,30/11/2018,Business Support Community Services,Cultural Environmental Regulatory & Planning Services,,Public Health England,,03-12-2018,0000082131,360,0,Cockle Sample,Cockle Sample,Sampling & Inspection fees,221100,Health & Safety� Maintenance
South Lakeland District Council,http://opendatacommunities.org/id/district-council/south-lakeland,30/11/2018,Business Support Community Services,Internal Trading Accounts,,QPS PLASTIC LTD,,12-11-2018,0000081766,154.75,0,Barrier,Barrier,Transport-Uninsured Damage,109999,Building Not Elsewhere Classified
South Lakeland District Council,http://opendatacommunities.org/id/district-council/south-lakeland,30/11/2018,Environment and Housing,Housing Services,http://opendatacommunities.org/def/concept/finance/sercop/objective/108,Landlord,,07-11-2018,0000081622,400,0,Monthly rent,Monthly rent,Homelessness Prevention,250000,Housing
South Lakeland District Council,http://opendatacommunities.org/id/district-council/south-lakeland,30/11/2018,Business Support Community Services,Cultural Environmental Regulatory & Planning Services,http://opendatacommunities.org/def/concept/finance/sercop/objective/104,RIBBLE FUEL OILS,,19-11-2018,0000081827,1735.32,0,Gas oil 2018/19,Gas oil 2018/19,Fuel,381100,Vehicle Mgt Fuel
South Lakeland District Council,http://opendatacommunities.org/id/district-council/south-lakeland,30/11/2018,Business Support Community Services,Internal Trading Accounts,,RIBBLESDALE AUTO ELECTRICS 1992 LTD,02732686,19-11-2018,0000081930,204,0,Parts,Parts,Transport-Repair & Maintenance,381500,Vehicle Mgt Parts
South Lakeland District Council,http://opendatacommunities.org/id/district-council/south-lakeland,30/11/2018,Lake Wardens,Cultural Environmental Regulatory & Planning Services,http://opendatacommunities.org/def/concept/finance/sercop/objective/104,RICKERBY LTD,04985069,05-11-2018,0000081577,232.79,0,1 x Dixon-Bate Tractor Hitch,1 x Dixon-Bate Tractor Hitch,Transport-Repair & Maintenance,381000,Vehicle Mgt Commercial
South Lakeland District Council,http://opendatacommunities.org/id/district-council/south-lakeland,30/11/2018,Lake Wardens,Cultural Environmental Regulatory & Planning Services,http://opendatacommunities.org/def/concept/finance/sercop/objective/104,RICKERBY LTD,04985069,05-11-2018,0000081578,132.06,0,1 x Dixon-Bate Tractor Hitch,1 x Dixon-Bate Tractor Hitch,Transport-Repair & Maintenance,381000,Vehicle Mgt Commercial
South Lakeland District Council,http://opendatacommunities.org/id/district-council/south-lakeland,30/11/2018,Customer Services,Cultural Environmental Regulatory & Planning Services,http://opendatacommunities.org/def/concept/finance/sercop/objective/104,RIGHT 2 WORK,,19-11-2018,0000081692,4410,0,FOR REMOVAL OF BULKY WASTE,FOR REMOVAL OF BULKY WASTE,Bulky Waste Scheme,321010,Social Care Adult Advice & Counselling
South Lakeland District Council,http://opendatacommunities.org/id/district-council/south-lakeland,30/11/2018,Democratic and Member Services,Central Services,,RIVERBANK HOSPITALITY CATERING,,19-11-2018,0000081938,79,0,buffet for planning workshop on 12,buffet for planning workshop on 12,Training Costs,111000,Catering Banquet & Catering
South Lakeland District Council,http://opendatacommunities.org/id/district-council/south-lakeland,30/11/2018,Printing Section,Central Services,http://opendatacommunities.org/def/concept/finance/sercop/objective/102,ROSEFOX PAPER LIMITED,01655083,07-11-2018,0000081579,41.71,0,ECO Cain Craft Board 280gsm,ECO Cain Craft Board 280gsm,Paper Supplies,341000,Stationery Paper
South Lakeland District Council,http://opendatacommunities.org/id/district-council/south-lakeland,30/11/2018,Printing Section,Central Services,http://opendatacommunities.org/def/concept/finance/sercop/objective/102,ROSEFOX PAPER LIMITED,01655083,07-11-2018,0000081580,289.14,0,ECO Cain Craft Board 280gsm,ECO Cain Craft Board 280gsm,Paper Supplies,341000,Stationery Paper
South Lakeland District Council,http://opendatacommunities.org/id/district-council/south-lakeland,30/11/2018,Printing Section,Central Services,http://opendatacommunities.org/def/concept/finance/sercop/objective/102,ROSEFOX PAPER LIMITED,01655083,12-11-2018,0000081745,154.5,0,A3 Paper One 80gsm,A3 Paper One 80gsm,Paper Supplies,341000,Stationery Paper
South Lakeland District Council,http://opendatacommunities.org/id/district-council/south-lakeland,30/11/2018,Democratic and Member Services,Central Services,http://opendatacommunities.org/def/concept/finance/sercop/objective/102,ROYAL BRITISH LEGION POPPY APPEAL,,05-11-2018,0000081600,575,0,1 wreath required (late request),1 wreath required (late request),Chairman's Allowance,201710,Financial Services-Grants-Charitable
South Lakeland District Council,http://opendatacommunities.org/id/district-council/south-lakeland,30/11/2018,Democratic and Member Services,Central Services,http://opendatacommunities.org/def/concept/finance/sercop/objective/102,ROYAL BRITISH LEGION POPPY APPEAL,,12-11-2018,0000081753,25,0,Remembrance wreath ,Remembrance wreath ,Chairman's Allowance,201710,Financial Services-Grants-Charitable
South Lakeland District Council,http://opendatacommunities.org/id/district-council/south-lakeland,30/11/2018,Revenues and Benefits,SLDC as Agent,,ROYAL MAIL GROUP PLC,,07-11-2018,0000081641,1185.98,0,2018-19 Postal Charges a/c 0198123013,2018-19 Postal Charges a/c 0198123013,General,301200,Mail Services� Postage
South Lakeland District Council,http://opendatacommunities.org/id/district-council/south-lakeland,30/11/2018,Revenues and Benefits,Central Services,http://opendatacommunities.org/def/concept/finance/sercop/objective/102,ROYAL MAIL GROUP PLC,,12-11-2018,0000081663,33.49,0,2018-19 Postal Charges a/c 0055114000,2018-19 Postal Charges a/c 0055114000,Postages,301200,Mail Services� Postage
South Lakeland District Council,http://opendatacommunities.org/id/district-council/south-lakeland,30/11/2018,Revenues and Benefits,SLDC as Agent,,ROYAL MAIL GROUP PLC,,19-11-2018,0000081791,1113.54,0,2018-19 Postal Charges a/c 0198123013,2018-19 Postal Charges a/c 0198123013,General,301200,Mail Services� Postage
South Lakeland District Council,http://opendatacommunities.org/id/district-council/south-lakeland,30/11/2018,Electoral Services,Central Services,http://opendatacommunities.org/def/concept/finance/sercop/objective/102,ROYAL MAIL GROUP PLC,,19-11-2018,0000081839,200.55,0,Reponse plus service during the canvass,Reponse plus service during the canvass,Postages,301200,Mail Services� Postage
South Lakeland District Council,http://opendatacommunities.org/id/district-council/south-lakeland,30/11/2018,Revenues and Benefits,SLDC as Agent,,ROYAL MAIL GROUP PLC,,19-11-2018,0000081934,1221.35,0,2018-19 Postal Charges a/c 0198123013,2018-19 Postal Charges a/c 0198123013,General,301200,Mail Services� Postage
South Lakeland District Council,http://opendatacommunities.org/id/district-council/south-lakeland,30/11/2018,Revenues and Benefits,Central Services,,ROYAL MAIL GROUP PLC,,26-11-2018,0000082110,34.96,0,2018-19 Postal Charges a/c 0055114000,2018-19 Postal Charges a/c 0055114000,Postages,301200,Mail Services� Postage
South Lakeland District Council,http://opendatacommunities.org/id/district-council/south-lakeland,30/11/2018,Revenues and Benefits,SLDC as Agent,,ROYAL MAIL GROUP PLC,,26-11-2018,0000082111,1342.44,0,2018-19 Postal Charges a/c 0198123013,2018-19 Postal Charges a/c 0198123013,General,301200,Mail Services� Postage
South Lakeland District Council,http://opendatacommunities.org/id/district-council/south-lakeland,30/11/2018,Electoral Services,Central Services,,ROYAL MAIL GROUP PLC,,03-12-2018,0000082187,108.85,0,Response plus postage weeks ending 3,Response plus postage weeks ending 3,Individual Electoral Registrat,301200,Mail Services� Postage
South Lakeland District Council,http://opendatacommunities.org/id/district-council/south-lakeland,30/11/2018,Lake Wardens,Highways & Transport Services,,RS COMPONENTS LTD,01002091,19-11-2018,0000081931,10,0,1 x Engel Hot Knife,1 x Engel Hot Knife,Equipment Furniture Materials,101100,Building Electrical
South Lakeland District Council,http://opendatacommunities.org/id/district-council/south-lakeland,30/11/2018,Lake Wardens,Cultural Environmental Regulatory & Planning Services,,RS COMPONENTS LTD,01002091,19-11-2018,0000081931,80.91,0,1 x Engel Hot Knife,1 x Engel Hot Knife,Equipment Furniture Materials,101100,Building Electrical
South Lakeland District Council,http://opendatacommunities.org/id/district-council/south-lakeland,30/11/2018,Lake Wardens,Highways & Transport Services,,RS COMPONENTS LTD,01002091,26-11-2018,0000082067,25.91,0,1 x Black Epoxy Potting Compound,1 x Black Epoxy Potting Compound,Equipment Furniture Materials,101100,Building Electrical
South Lakeland District Council,http://opendatacommunities.org/id/district-council/south-lakeland,30/11/2018,Lake Wardens,Cultural Environmental Regulatory & Planning Services,,RS COMPONENTS LTD,01002091,26-11-2018,0000082067,18.11,0,1 x Black Epoxy Potting Compound,1 x Black Epoxy Potting Compound,Equipment Furniture Materials,101100,Building Electrical
South Lakeland District Council,http://opendatacommunities.org/id/district-council/south-lakeland,30/11/2018,Business Support Community Services,Cultural Environmental Regulatory & Planning Services,,RTPI SUBSCRIPTIONS,,26-11-2018,0000082096,155,0,M B,M B,Professional Fees,391100,Construction Buildings
South Lakeland District Council,http://opendatacommunities.org/id/district-council/south-lakeland,30/11/2018,Business Support Community Services,Cultural Environmental Regulatory & Planning Services,,RTPI SUBSCRIPTIONS,,26-11-2018,0000082097,155,0,M B,M B,Professional Fees,391100,Construction Buildings
South Lakeland District Council,http://opendatacommunities.org/id/district-council/south-lakeland,30/11/2018,Business Support Community Services,Cultural Environmental Regulatory & Planning Services,,RTPI SUBSCRIPTIONS,,03-12-2018,0000082180,309,0,MB,MB,Professional Fees,391100,Construction Buildings
South Lakeland District Council,http://opendatacommunities.org/id/district-council/south-lakeland,30/11/2018,Business Support Community Services,Internal Trading Accounts,,S J Bargh,00532272,07-11-2018,0000081614,136,0,MOTs 2018/19 & vehicle cleaning,MOTs 2018/19 & vehicle cleaning,MOT/Servicing Costs,381400,Vehicle Mgt Maintenance
South Lakeland District Council,http://opendatacommunities.org/id/district-council/south-lakeland,30/11/2018,Business Support Community Services,Internal Trading Accounts,,S J Bargh,00532272,19-11-2018,0000081832,281.3,0,MOTs 2018/19 & vehicle cleaning,MOTs 2018/19 & vehicle cleaning,MOT/Servicing Costs,381400,Vehicle Mgt Maintenance
South Lakeland District Council,http://opendatacommunities.org/id/district-council/south-lakeland,30/11/2018,Business Support Community Services,Internal Trading Accounts,,S J Bargh,00532272,21-11-2018,0000081974,271.3,0,MOTs 2018/19 & vehicle cleaning,MOTs 2018/19 & vehicle cleaning,MOT/Servicing Costs,381400,Vehicle Mgt Maintenance
South Lakeland District Council,http://opendatacommunities.org/id/district-council/south-lakeland,30/11/2018,Electoral Services,Central Services,,SCI PRINT LTD,,03-12-2018,0000082165,75,0,"Non-HEF canvass printing - ITRs, weekly","Non-HEF canvass printing - ITRs, weekly",Individual Electoral Registrat,191600,Facilities Printing
South Lakeland District Council,http://opendatacommunities.org/id/district-council/south-lakeland,30/11/2018,Development Implementation,Cultural Environmental Regulatory & Planning Services,http://opendatacommunities.org/def/concept/finance/sercop/objective/104,SEDBERGH PEOPLE'S HALL,,19-11-2018,0000081843,39,0,Hire of Hall - re Cumbria Tourism Event,Hire of Hall - re Cumbria Tourism Event,Economic Development Fund,201700,Financial Services Grants
South Lakeland District Council,http://opendatacommunities.org/id/district-council/south-lakeland,30/11/2018,Democratic Services,Central Services,,Sellick Partnership Group Ltd,4156002,21-11-2018,0000081988,1500,0,Locum Fees ,Locum Fees ,Contract & Agency staff,281300,Legal Services Legal Opinion
South Lakeland District Council,http://opendatacommunities.org/id/district-council/south-lakeland,30/11/2018,Democratic Services,Central Services,,Sellick Partnership Group Ltd,4156002,21-11-2018,0000081990,1162.5,0,Locum Fees,Locum Fees,Contract & Agency staff,281300,Legal Services Legal Opinion
South Lakeland District Council,http://opendatacommunities.org/id/district-council/south-lakeland,30/11/2018,Democratic Services,Central Services,,Sellick Partnership Group Ltd,4156002,21-11-2018,0000081991,1500,0,Locum Fees ,Locum Fees ,Contract & Agency staff,281300,Legal Services Legal Opinion
South Lakeland District Council,http://opendatacommunities.org/id/district-council/south-lakeland,30/11/2018,Democratic Services,Central Services,,Sellick Partnership Group Ltd,4156002,21-11-2018,0000081992,1525,0,Locum Fees,Locum Fees,Contract & Agency staff,281300,Legal Services Legal Opinion
South Lakeland District Council,http://opendatacommunities.org/id/district-council/south-lakeland,30/11/2018,Democratic Services,Central Services,,Sellick Partnership Group Ltd,4156002,03-12-2018,0000082189,1500,0,Locum Fees -,Locum Fees -,Contract & Agency staff,281300,Legal Services Legal Opinion
South Lakeland District Council,http://opendatacommunities.org/id/district-council/south-lakeland,30/11/2018,Democratic Services,Central Services,,Sellick Partnership Group Ltd,4156002,03-12-2018,0000082237,1525,0,Locum Fees,Locum Fees,Contract & Agency staff,281300,Legal Services Legal Opinion
South Lakeland District Council,http://opendatacommunities.org/id/district-council/south-lakeland,30/11/2018,Democratic Services,Central Services,,Sellick Partnership Group Ltd,4156002,03-12-2018,0000082238,1500,0,Locum Fees,Locum Fees,Contract & Agency staff,281300,Legal Services Legal Opinion
South Lakeland District Council,http://opendatacommunities.org/id/district-council/south-lakeland,30/11/2018,Democratic Services,Central Services,,Sellick Partnership Group Ltd,4156002,03-12-2018,0000082240,1500,0,Locum Fees,Locum Fees,Contract & Agency staff,281300,Legal Services Legal Opinion
South Lakeland District Council,http://opendatacommunities.org/id/district-council/south-lakeland,30/11/2018,Development Management,Cultural Environmental Regulatory & Planning Services,,SETON,04065947,28-11-2018,0000081910,105.15,0,2 x Rolls TRF0251ORG Barrier Fencing,2 x Rolls TRF0251ORG Barrier Fencing,Dangerous Structures Expenses,221000,Health & Safety� Products
South Lakeland District Council,http://opendatacommunities.org/id/district-council/south-lakeland,30/11/2018,Lake Wardens,Cultural Environmental Regulatory & Planning Services,,SHORROCK TRICHEM,04179799,03-12-2018,0000082235,71.3,0,4 x Excel Blue Yarn Socket Mop heads,4 x Excel Blue Yarn Socket Mop heads,Cleaning Supplies & Services,131312,Cleaning & Janitorial Washroom Sanitat
South Lakeland District Council,http://opendatacommunities.org/id/district-council/south-lakeland,30/11/2018,Customer Services,Central Services,http://opendatacommunities.org/def/concept/finance/sercop/objective/102,SHRED-IT,04047194,12-11-2018,0000081263,160.78,0,REMOVAL OF CONFIDENTIAL WASTE,REMOVAL OF CONFIDENTIAL WASTE,Stationery/Office Supplies,279999,ICT Not Elsewhere Classified
South Lakeland District Council,http://opendatacommunities.org/id/district-council/south-lakeland,30/11/2018,Customer Services,Central Services,,SHRED-IT,04047194,21-11-2018,0000081939,161.52,0,REMOVAL OF CONFIDENTIAL WASTE,REMOVAL OF CONFIDENTIAL WASTE,Stationery/Office Supplies,279999,ICT Not Elsewhere Classified
South Lakeland District Council,http://opendatacommunities.org/id/district-council/south-lakeland,30/11/2018,Business Support Community Services,Internal Trading Accounts,,Slicker Recycling Ltd,08652156,05-11-2018,0000081587,165,0,Waste oil collection,Waste oil collection,Job Consumables,182015,Environment Waste Mgt Waste Disposal
South Lakeland District Council,http://opendatacommunities.org/id/district-council/south-lakeland,30/11/2018,Business Support Community Services,Internal Trading Accounts,,Slicker Recycling Ltd,08652156,12-11-2018,0000081774,260,0,Oil collections,Oil collections,Job Consumables,182015,Environment Waste Mgt Waste Disposal
South Lakeland District Council,http://opendatacommunities.org/id/district-council/south-lakeland,30/11/2018,Business Support Community Services,Cultural Environmental Regulatory & Planning Services,http://opendatacommunities.org/def/concept/finance/sercop/objective/104,South Lakeland Hydrotherapy Trust Ltd,,19-11-2018,0000081760,2500,0,2017/18 funding contribution to,2017/18 funding contribution to,Grants & Contribut to Vol Orga,201700,Financial Services Grants
South Lakeland District Council,http://opendatacommunities.org/id/district-council/south-lakeland,30/11/2018,Leisure and Wellbeing,Cultural Environmental Regulatory & Planning Services,http://opendatacommunities.org/def/concept/finance/sercop/objective/104,SOUTH LAKES TREE SURGEONS & LANDSCAPES,05342745,07-11-2018,0000081182,945,0,"Crown reduce two Oak trees, reduce","Crown reduce two Oak trees, reduce",Arboricultural Work,241210,Horticultural Tree Trimming
South Lakeland District Council,http://opendatacommunities.org/id/district-council/south-lakeland,30/11/2018,Leisure and Wellbeing,Cultural Environmental Regulatory & Planning Services,http://opendatacommunities.org/def/concept/finance/sercop/objective/104,SOUTH LAKES TREE SURGEONS & LANDSCAPES,05342745,07-11-2018,0000081383,860,0,Work to trees at Windermere Road car,Work to trees at Windermere Road car,Arboricultural Work,241210,Horticultural Tree Trimming
South Lakeland District Council,http://opendatacommunities.org/id/district-council/south-lakeland,30/11/2018,Leisure and Wellbeing,Culture and Related Serv,http://opendatacommunities.org/def/concept/finance/sercop/objective/104,SOUTH LAKES TREE SURGEONS & LANDSCAPES,05342745,12-11-2018,0000081465,280,0,stump grinding at cockshott path,stump grinding at cockshott path,Contract payments,241210,Horticultural Tree Trimming
South Lakeland District Council,http://opendatacommunities.org/id/district-council/south-lakeland,30/11/2018,Leisure and Wellbeing,Cultural Environmental Regulatory & Planning Services,http://opendatacommunities.org/def/concept/finance/sercop/objective/104,SOUTH LAKES TREE SURGEONS & LANDSCAPES,05342745,19-11-2018,0000081548,458.25,0,Removal of oak branches from damaged,Removal of oak branches from damaged,Arboricultural Work,241210,Horticultural Tree Trimming
South Lakeland District Council,http://opendatacommunities.org/id/district-council/south-lakeland,30/11/2018,Leisure and Wellbeing,Cultural Environmental Regulatory & Planning Services,http://opendatacommunities.org/def/concept/finance/sercop/objective/104,SOUTH LAKES TREE SURGEONS & LANDSCAPES,05342745,07-11-2018,0000081647,720,0,Sedbergh Cemetery,Sedbergh Cemetery,Arboricultural Work,241210,Horticultural Tree Trimming
South Lakeland District Council,http://opendatacommunities.org/id/district-council/south-lakeland,30/11/2018,Leisure and Wellbeing,Cultural Environmental Regulatory & Planning Services,http://opendatacommunities.org/def/concept/finance/sercop/objective/104,SOUTH LAKES TREE SURGEONS & LANDSCAPES,05342745,19-11-2018,0000081792,60,0,"Kendal Leisure Centre, fell 2 cherry","Kendal Leisure Centre, fell 2 cherry",Arboricultural Work,241210,Horticultural Tree Trimming
South Lakeland District Council,http://opendatacommunities.org/id/district-council/south-lakeland,30/11/2018,Leisure and Wellbeing,Cultural Environmental Regulatory & Planning Services,,SOUTH LAKES TREE SURGEONS & LANDSCAPES,05342745,26-11-2018,0000081885,60,0,"Kendal Leisure Centre, fell 2 cherry","Kendal Leisure Centre, fell 2 cherry",Arboricultural Work,241210,Horticultural Tree Trimming
South Lakeland District Council,http://opendatacommunities.org/id/district-council/south-lakeland,30/11/2018,Leisure and Wellbeing,Cultural Environmental Regulatory & Planning Services,,SOUTH LAKES TREE SURGEONS & LANDSCAPES,05342745,21-11-2018,0000081886,980,0,"P C, Kendal","P C, Kendal",Arboricultural Work,241210,Horticultural Tree Trimming
South Lakeland District Council,http://opendatacommunities.org/id/district-council/south-lakeland,30/11/2018,Leisure and Wellbeing,Cultural Environmental Regulatory & Planning Services,,SOUTH LAKES TREE SURGEONS & LANDSCAPES,05342745,26-11-2018,0000081936,180,0,Pruning of trees at Dunmail Drive/canal,Pruning of trees at Dunmail Drive/canal,Arboricultural Work,241210,Horticultural Tree Trimming
South Lakeland District Council,http://opendatacommunities.org/id/district-council/south-lakeland,30/11/2018,Leisure and Wellbeing,Cultural Environmental Regulatory & Planning Services,,SOUTH LAKES TREE SURGEONS & LANDSCAPES,05342745,28-11-2018,0000082058,450,0,"Tree pruning next to 63 Kirkfield,","Tree pruning next to 63 Kirkfield,",Arboricultural Work,241210,Horticultural Tree Trimming
South Lakeland District Council,http://opendatacommunities.org/id/district-council/south-lakeland,30/11/2018,Human Resources,Central Services,http://opendatacommunities.org/def/concept/finance/sercop/objective/102,Specsavers Corporate Eyecare,,12-11-2018,0000081764,340,0,17 x 20 vouchers,17 x 20 vouchers,Health and Safety,311400,Healthcare Fees
South Lakeland District Council,http://opendatacommunities.org/id/district-council/south-lakeland,30/11/2018,Democratic Services,Central Services,http://opendatacommunities.org/def/concept/finance/sercop/objective/102,St John's Chambers,,07-11-2018,0000081690,440,0,Case Ref 197129 Invoice 195,Case Ref 197129 Invoice 195,Legal & Counsels Fees,281200,Legal Services General Support
South Lakeland District Council,http://opendatacommunities.org/id/district-council/south-lakeland,30/11/2018,Democratic Services,Central Services,,St John's Chambers,,28-11-2018,0000082134,750,0,Case Ref 206015,Case Ref 206015,Legal & Counsels Fees,281200,Legal Services General Support
